TRANS No.,Service Area Categorisation,Service Division Categorisation,Responsible Unit,Unit Code,Expenses Type,Expenses Sub Type,Exp Code,Narrative,Amount,Invoice Date,Cap/Rev,Supplier Name
1,Central Services,SupS Chief Execs,Local Involvement Network,A01039,Third Party Payments          ,Private Contractors           ,EH10,Contract Payments                       ,"1,028.00",31/08/2013,R,VOICEABILITY                  
2,Cultural Env Reg&Plan Services,Comm Safety (Crime Reduction),Crime and Strategy Team,A01100,Third Party Payments          ,Private Contractors           ,EH02,Miscellaneous Hired Services            ,"6,168.25",31/10/2013,R,GLOBAL MSC SECURITY LTD       
3,Cultural Env Reg&Plan Services,Comm Safety (Crime Reduction),Anti-Social Behaviour,A01202,Supplies & Services           ,Comms and Computing           ,DG02,Software Licences                       ,"3,512.20",01/10/2013,R,VANTAGE TECHNOLOGIES LIMITED  
4,Adult Social Care,Substance Abuse (Addictions),Retention in Drug Treatmt Srvs,A01303,Third Party Payments          ,Private Contractors           ,EH02,Miscellaneous Hired Services            ,"4,200.00",25/10/2013,R,WENDYKEN CONSULTING LTD       
5,Central Services,SupS Chief Execs,STATUTORY MARKETING & COMM,A02018,Supplies & Services           ,Services                      ,DF02,Misc Advertising/Publicity              ,600,11/10/2013,R,TWGCA LLP T/A CATERER & HOTEL 
6,Central Services,SupS Chief Execs,NON-STATUTORY MARKETING & COMM,A02019,Supplies & Services           ,Services                      ,DF02,Misc Advertising/Publicity              ,555,29/10/2013,R,JCDECAUX UNITED KINGDOM       
7,Central Services,SupS Chief Execs,NON-STATUTORY MARKETING & COMM,A02019,Supplies & Services           ,Services                      ,DF02,Misc Advertising/Publicity              ,788,11/11/2013,R,BAAF REGISTERED CHARITY       
8,Central Services,SupS Chief Execs,NON-STATUTORY MARKETING & COMM,A02019,Supplies & Services           ,Services                      ,DF02,Misc Advertising/Publicity              ,"1,977.13",05/08/2013,R,RADIO JACKIE LTD              
9,Central Services,SupS Chief Execs,NON-STATUTORY MARKETING & COMM,A02019,Supplies & Services           ,Services                      ,DF02,Misc Advertising/Publicity              ,"1,200.00",27/09/2013,R,G&J MEDIA LTD                 
10,Central Services,SupS Chief Execs,NON-STATUTORY MARKETING & COMM,A02019,Supplies & Services           ,Services                      ,DF02,Misc Advertising/Publicity              ,"1,300.00",16/11/2013,R,NEWSQUEST (LONDON)LTD         
11,Central Services,SupS Chief Execs,NON-STATUTORY MARKETING & COMM,A02019,Supplies & Services           ,Services                      ,DF02,Misc Advertising/Publicity              ,537.5,29/10/2013,R,JCDECAUX UNITED KINGDOM       
12,Central Services,SupS Chief Execs,NON-STATUTORY MARKETING & COMM,A02019,Supplies & Services           ,Services                      ,DF02,Misc Advertising/Publicity              ,537.5,29/10/2013,R,JCDECAUX UNITED KINGDOM       
13,Central Services,SupS Chief Execs,NON-STATUTORY MARKETING & COMM,A02019,Supplies & Services           ,Services                      ,DF35,Graphic Design                          ,"3,982.50",30/10/2013,R,THE BIG IDEA (MARK BUCKINGHAM)
14,Central Services,SupS Chief Execs,NON-STATUTORY MARKETING & COMM,A02019,Supplies & Services           ,Services                      ,DF35,Graphic Design                          ,525,30/09/2013,R,CUBIQUITY MEDIA               
15,Central Services,SupS Chief Execs,NON-STATUTORY MARKETING & COMM,A02019,Supplies & Services           ,Services                      ,DF35,Graphic Design                          ,500,30/09/2013,R,CUBIQUITY MEDIA               
16,Central Services,SupS Chief Execs,Democratic Services,A02023,Employees                     ,Indirect Employee Expenses    ,AB02,Recruitment Adverts                     ,"1,512.00",31/10/2013,R,PENNA COMMUNICATIONS (NO 2 A/C
17,Central Services,SupS Chief Execs,Press and Public Relations.,A02026,Supplies & Services           ,Prntng Stnry Gen Off Exp      ,DE20,Council Magazine                        ,"3,952.50",04/11/2013,R,DOMINO 4 LIMITED              
18,Central Services,SupS Chief Execs,Press and Public Relations.,A02026,Supplies & Services           ,Grants and Subscriptions      ,DJ04,Subscriptions                           ,"1,330.00",31/10/2013,R,SOCITM LTD                    
19,CS -Oth Operating Inc & Expend,T/A Corporate Services,Prtng Jobs - Ext Agncy,A03041,Supplies & Services           ,Prntng Stnry Gen Off Exp      ,DE01,External Printing                       ,693,08/11/2013,R,LIMETREE OFFSET LTD           
20,CS -Oth Operating Inc & Expend,T/A Corporate Services,Prtng Jobs - Ext Agncy,A03041,Supplies & Services           ,Prntng Stnry Gen Off Exp      ,DE01,External Printing                       ,660,08/11/2013,R,LIMETREE OFFSET LTD           
21,CS -Oth Operating Inc & Expend,T/A Corporate Services,Prtng Jobs - Ext Agncy,A03041,Supplies & Services           ,Prntng Stnry Gen Off Exp      ,DE01,External Printing                       ,"7,922.00",14/11/2013,R,CLIFFE ENTERPRISE             
22,CS -Oth Operating Inc & Expend,T/A Corporate Services,Prtng Jobs - Ext Agncy,A03041,Supplies & Services           ,Prntng Stnry Gen Off Exp      ,DE01,External Printing                       ,"1,606.00",22/11/2013,R,IMPRESS PRINT SERVICES LTD    
23,CS -Oth Operating Inc & Expend,T/A Corporate Services,Prtng Jobs - Ext Agncy,A03041,Supplies & Services           ,Prntng Stnry Gen Off Exp      ,DE01,External Printing                       ,962.4,05/11/2013,R,ULTIMATE INVOICE FINANCE LTD  
24,CS -Oth Operating Inc & Expend,T/A Corporate Services,Prtng Jobs - Ext Agncy,A03041,Supplies & Services           ,Prntng Stnry Gen Off Exp      ,DE01,External Printing                       ,"3,039.00",14/11/2013,R,CLIFFE ENTERPRISE             
25,CS -Oth Operating Inc & Expend,T/A Corporate Services,PrintUnit-HighVolPhtcopying,A03042,Third Party Payments          ,Private Contractors           ,EH02,Miscellaneous Hired Services            ,"3,900.00",17/11/2013,R,OCE FINANCE                   
26,CS -Oth Operating Inc & Expend,T/A Corporate Services,PrintUnit-HighVolPhtcopying,A03042,Third Party Payments          ,Private Contractors           ,EH02,Miscellaneous Hired Services            ,"3,000.00",17/11/2013,R,OCE FINANCE                   
27,CS -Oth Operating Inc & Expend,T/A Corporate Services,Translation Services,A04060,Supplies & Services           ,Services                      ,DF45,Payment of Sessional Workers            ,792,15/11/2013,R,REDACTED
28,Central Services,SupS Best Value,Merton Link,A04070,Supplies & Services           ,Comms and Computing           ,DG15,Network Maintenance                     ,871.78,01/11/2013,R,NORTHGATE INFORMATION SOLUTION
29,Central Services,SupS Best Value,Merton Link,A04070,Supplies & Services           ,Comms and Computing           ,DG50,Other IT Expenditure                    ,"5,478.00",08/11/2013,R,Q-MATIC UK LTD                
30,Central Services,SupS Comm and Member Services,Local Strategic Partnership,A04080,Supplies & Services           ,Services                      ,DF35,Graphic Design                          ,910,07/10/2013,R,TA2                           
31,Central Services,SupS Comm and Member Services,Local Strategic Partnership,A04080,Supplies & Services           ,Services                      ,DF36,Photography                             ,500,15/10/2013,R,AVIATION IMAGES LTD           
32,Central Services,Grants - Voluntary Groups,VOLUNTARY SECTOR COORDINATION,A04082,Supplies & Services           ,Grants and Subscriptions      ,DJ01,Grants                                  ,"21,091.50",25/11/2013,R,MERTON VOLUNTARY SERV COUNCIL 
33,Central Services,Grants - Voluntary Groups,VOLUNTARY SECTOR COORDINATION,A04082,Supplies & Services           ,Grants and Subscriptions      ,DJ01,Grants                                  ,"12,457.50",25/11/2013,R,VOLUNTEER CENTRE MERTON       
34,Central Services,SupS Comm and Member Services,COMMERICIAL SERVICES,A04085,Employees                     ,Direct Employee Expenses      ,AA17,Agency Staff & Casual Paymts            ,"3,390.00",18/10/2013,R,HAYS RECRUITING EXPERTS       
35,Central Services,SupS Comm and Member Services,COMMERICIAL SERVICES,A04085,Employees                     ,Direct Employee Expenses      ,AA17,Agency Staff & Casual Paymts            ,"3,390.00",11/10/2013,R,HAYS RECRUITING EXPERTS       
36,Central Services,SupS Comm and Member Services,COMMERICIAL SERVICES,A04085,Employees                     ,Direct Employee Expenses      ,AA17,Agency Staff & Casual Paymts            ,"2,712.00",30/10/2013,R,HAYS RECRUITING EXPERTS       
37,Central Services,SupS Comm and Member Services,COMMERICIAL SERVICES,A04085,Employees                     ,Direct Employee Expenses      ,AA17,Agency Staff & Casual Paymts            ,"3,390.00",23/10/2013,R,HAYS RECRUITING EXPERTS       
38,Central Services,Registn Birth/Death/Marriage,Reg of B. Deaths & Ms,B06143,Premises Related Expenditure  ,RepairsAlterations&MtceOfBldgs,BA06,Repairs & Maintenance General           ,"3,250.00",08/09/2013,R,CAPABILITY GARDEN SERVICES    
39,Central Services,SupS Health & Safety,Learning and Development,B06146,Employees                     ,Indirect Employee Expenses    ,AB57,EXTERNAL TRAINING COSTS                 ,650,28/10/2013,R,LONDON SCHOOL OF FIRST AID    
40,Central Services,SupS Health & Safety,Learning and Development,B06146,Employees                     ,Indirect Employee Expenses    ,AB57,EXTERNAL TRAINING COSTS                 ,"1,241.00",28/10/2013,R,CHILD POVERTY ACTION GROUP    
41,Central Services,SupS Health & Safety,Learning and Development,B06146,Employees                     ,Indirect Employee Expenses    ,AB57,EXTERNAL TRAINING COSTS                 ,"1,590.00",15/08/2013,R,KRUGER ASSOCIATES             
42,Central Services,SupS Health & Safety,Learning and Development,B06146,Employees                     ,Indirect Employee Expenses    ,AB57,EXTERNAL TRAINING COSTS                 ,"1,000.00",01/11/2013,R,SKILLSARENA CORPORATE LTD     
43,Central Services,SupS Health & Safety,Learning and Development,B06146,Employees                     ,Indirect Employee Expenses    ,AB57,EXTERNAL TRAINING COSTS                 ,"1,940.00",09/09/2013,R,CIPFA                         
44,Central Services,SupS Health & Safety,Learning and Development,B06146,Employees                     ,Indirect Employee Expenses    ,AB57,EXTERNAL TRAINING COSTS                 ,605,18/10/2013,R,LONDON SCHOOL OF FIRST AID    
45,Central Services,SupS Health & Safety,Learning and Development,B06146,Employees                     ,Indirect Employee Expenses    ,AB57,EXTERNAL TRAINING COSTS                 ,"1,940.00",09/09/2013,R,CIPFA                         
46,Central Services,SupS Health & Safety,Learning and Development,B06146,Employees                     ,Indirect Employee Expenses    ,AB57,EXTERNAL TRAINING COSTS                 ,"3,476.00",05/11/2013,R,UNIVERSITY OF WESTMINSTER     
47,Central Services,SupS Health & Safety,Learning and Development,B06146,Employees                     ,Indirect Employee Expenses    ,AB57,EXTERNAL TRAINING COSTS                 ,"1,241.00",28/10/2013,R,CHILD POVERTY ACTION GROUP    
48,Central Services,SupS Health & Safety,Learning and Development,B06146,Employees                     ,Indirect Employee Expenses    ,AB57,EXTERNAL TRAINING COSTS                 ,"3,485.00",11/11/2013,R,NESCOT                        
49,Central Services,SupS Health & Safety,Learning and Development,B06146,Premises Related Expenditure  ,Rents                         ,BC03,Room/Venue hire                         ,750,20/10/2013,R,HOLIDAY INN                   
51,Central Services,SupS Health & Safety,Strategic Personnel Management,B06151,Supplies & Services           ,Services                      ,DF03,Consultants                             ,"1,730.00",28/10/2013,R,SOLACE ENTERPRISE LIMITED     
52,Central Services,SupS Health & Safety,Strategic Personnel Management,B06151,Supplies & Services           ,Services                      ,DF03,Consultants                             ,"4,757.50",17/10/2013,R,SOLACE ENTERPRISE LIMITED     
106,,,Captive E-Learning CareFirst            ,CC018FC,Vehicles Plant Equipment and Machinery,,D5,,712.8,23/10/2013,C,SOFTCAT LTD                   
107,,,Merton Dementia Hub                     ,CC021AA,New Construction Conversion and Renovation,,B1,,735,12/08/2013,C,PRIORITY RISK LTD             
108,,,Merton Dementia Hub                     ,CC021AA,New Construction Conversion and Renovation,,B4,,"26,127.85",09/11/2013,C,MILLANE CONTRACT SERVICES LTD 
109,,,Raynes Park Cricket Slips               ,CE003CC,New Construction Conversion and Renovation,,B4,,"21,353.62",13/11/2013,C,EXCLUSIVE LEISURE LIMITED     
110,,,Disabled Facilities Grant DCLG          ,CE004RA,Other Capital Expenditure,,E1,,"25,679.50",08/11/2013,C,EFFECTABLE LTD.               
111,,,Disabled Facilities Grant DCLG          ,CE004RA,Other Capital Expenditure,,E1,,"2,523.26",26/11/2013,C,STAYING FIRST                 
112,,,Disabled Facilities Grant DCLG          ,CE004RA,Other Capital Expenditure,,E1,,"4,883.00",04/11/2013,C,TBS ADAPTATIONS LTD           
113,,,Disabled Facilities Grant DCLG          ,CE004RA,Other Capital Expenditure,,E1,,"2,790.00",28/11/2013,C,ZAIMAJ CONSTRUCTION           
114,,,Disabled Facilities Grant DCLG          ,CE004RA,Other Capital Expenditure,,E1,,545.22,22/11/2013,C,R E SHELLEY                   
115,,,Disabled Facilities Grant DCLG          ,CE004RA,Other Capital Expenditure,,E1,,"5,340.00",07/11/2013,C,ASCENDIT LIFTS LTD            
116,,,Disabled Facilities Grant DCLG          ,CE004RA,Other Capital Expenditure,,E1,,"2,375.14",20/11/2013,C,CBS ADAPTATION                
117,,,Disabled Facilities Grant DCLG          ,CE004RA,Other Capital Expenditure,,E1,,"10,959.00",22/11/2013,C,WESSEX LIFT COMPANY LTD       
118,,,Disabled Facilities Grant DCLG          ,CE004RA,Other Capital Expenditure,,E1,,"5,780.90",13/11/2013,C,AQUANEED LIMITED              
119,,,Disabled Facilities Grant DCLG          ,CE004RA,Other Capital Expenditure,,E1,,"1,524.70",22/11/2013,C,CBS ADAPTATION                
120,,,Disabled Facilities Grant DCLG          ,CE004RA,Other Capital Expenditure,,E1,,"5,115.00",18/11/2013,C,AQUANEED LIMITED              
121,,,Disabled Facilities Grant DCLG          ,CE004RA,Other Capital Expenditure,,E1,,"1,533.62",18/11/2013,C,STAYING FIRST                 
122,,,Disabled Facilities Grant DCLG          ,CE004RA,Other Capital Expenditure,,E1,,"5,920.00",18/11/2013,C,AQUANEED LIMITED              
123,,,Disabled Facilities Grant DCLG          ,CE004RA,Other Capital Expenditure,,E1,,"1,086.10",12/11/2013,C,SUTTON STAYING PUT            
124,,,Disabled Facilities Grant DCLG          ,CE004RA,Other Capital Expenditure,,E1,,"3,054.00",08/11/2013,C,PRISM MEDICAL UK              
125,,,Disabled Facilities Grant DCLG          ,CE004RA,Other Capital Expenditure,,E1,,"3,970.44",07/11/2013,C,DAKIN CONSTRUCTION LTD        
126,,,Disabled Facilities Grant DCLG          ,CE004RA,Other Capital Expenditure,,E1,,"4,850.00",05/11/2013,C,ASCENDIT LIFTS LTD            
127,,,Disabled Facilities Grant DCLG          ,CE004RA,Other Capital Expenditure,,E1,,"4,820.00",26/11/2013,C,DREW PARTNERSHIP LTD.         
128,,,Disabled Facilities Grant DCLG          ,CE004RA,Other Capital Expenditure,,E1,,"1,593.12",12/11/2013,C,R E SHELLEY                   
129,,,Disabled Facilities Grant DCLG          ,CE004RA,Other Capital Expenditure,,E1,,"9,997.00",22/11/2013,C,WESSEX LIFT COMPANY LTD       
130,,,Disabled Facilities Grant DCLG          ,CE004RA,Other Capital Expenditure,,E1,,"1,217.95",22/11/2013,C,SUTTON STAYING PUT            
131,,,Disabled Facilities Grant DCLG          ,CE004RA,Other Capital Expenditure,,E1,,"8,289.00",12/11/2013,C,ASCENDIT LIFTS LTD            
132,,,Disabled Facilities Grant DCLG          ,CE004RA,Other Capital Expenditure,,E1,,"1,913.86",13/11/2013,C,STAYING FIRST                 
133,,,Disabled Facilities Grant DCLG          ,CE004RA,Other Capital Expenditure,,E1,,"2,189.88",07/11/2013,C,CBS ADAPTATION                
134,,,Disabled Facilities Grant DCLG          ,CE004RA,Other Capital Expenditure,,E1,,"5,255.00",13/11/2013,C,TBS ADAPTATIONS LTD           
135,,,Disabled Facilities Grant DCLG          ,CE004RA,Other Capital Expenditure,,E1,,"1,644.57",13/11/2013,C,CBS ADAPTATION                
136,,,Disabled Facilities Grant DCLG          ,CE004RA,Other Capital Expenditure,,E1,,"4,506.75",07/11/2013,C,WEALDEN REHAB                 
137,,,Disabled Facilities Grant DCLG          ,CE004RA,Other Capital Expenditure,,E1,,554.75,22/11/2013,C,SUTTON STAYING PUT            
138,,,Disabled Facilities Grant DCLG          ,CE004RA,Other Capital Expenditure,,E1,,"7,277.00",13/11/2013,C,TBS ADAPTATIONS LTD           
139,,,Disabled Facilities Grant DCLG          ,CE004RA,Other Capital Expenditure,,E1,,524.7,22/11/2013,C,R E SHELLEY                   
140,,,Disabled Facilities Grant DCLG          ,CE004RA,Other Capital Expenditure,,E1,,"2,032.00",22/11/2013,C,FREEWAY LIFT SERVICES LTD     
141,,,Disabled Facilities Grant DCLG          ,CE004RA,Other Capital Expenditure,,E1,,"1,482.92",04/11/2013,C,CBS ADAPTATION                
142,,,Mitcham - Outer London Fund             ,CE006FC,New Construction Conversion and Renovation,,B3,,"2,500.00",31/10/2013,C,STUDIO WEAVE LTD              
143,,,Mitcham - Outer London Fund             ,CE006FC,New Construction Conversion and Renovation,,B3,,500,31/10/2013,C,STUDIO WEAVE LTD              
144,,,Mitcham - Outer London Fund             ,CE006FC,New Construction Conversion and Renovation,,B4,,"2,897.00",04/11/2013,C,JD DESIGN                     
145,,,Mitcham - Outer London Fund             ,CE006FC,New Construction Conversion and Renovation,,B4,,"1,080.00",06/10/2013,C,MFS BUILDERS                  
146,,,Restoration of South Park Gdns          ,CE015CA,New Construction Conversion and Renovation,,B2,,700,23/10/2013,C,ARBORHELP                     
147,,,WallRep ChrchLn& JohnInnes Pks          ,CE017SA,New Construction Conversion and Renovation,,B1,,550,12/09/2013,C,REDACTED
148,,,WallRep ChrchLn& JohnInnes Pks          ,CE017SA,New Construction Conversion and Renovation,,B5,,"10,216.05",30/10/2013,C,STONE EDGE CONSERVATION LTD   
149,,,Surface Water Drainage                  ,CE024FA,New Construction Conversion and Renovation,,B4,,"6,527.67",02/11/2013,C,FM CONWAY LTD                 
150,,,Surface Water Drainage                  ,CE024FA,New Construction Conversion and Renovation,,B4,,"9,429.71",14/10/2013,C,FM CONWAY LTD                 
151,,,Surface Water Drainage                  ,CE024FA,New Construction Conversion and Renovation,,B4,,"10,166.17",02/11/2013,C,FM CONWAY LTD                 
152,,,Borough Roads Maintenance               ,CE026FA,New Construction Conversion and Renovation,,B4,,"6,048.83",14/11/2013,C,FM CONWAY LTD                 
153,,,Borough Roads Maintenance               ,CE026FA,New Construction Conversion and Renovation,,B4,,"58,974.10",14/11/2013,C,FM CONWAY LTD                 
154,,,Borough Roads Maintenance               ,CE026FA,New Construction Conversion and Renovation,,B4,,"130,000.00",14/11/2013,C,FM CONWAY LTD                 
155,,,Borough Roads Maintenance               ,CE026FA,New Construction Conversion and Renovation,,B4,,"41,973.49",13/11/2013,C,FM CONWAY LTD                 
156,,,Borough Roads Maintenance               ,CE026FA,New Construction Conversion and Renovation,,B4,,"148,735.98",13/11/2013,C,FM CONWAY LTD                 
157,,,Borough Roads Maintenance               ,CE026FA,New Construction Conversion and Renovation,,B4,,"117,435.31",14/11/2013,C,FM CONWAY LTD                 
158,,,Borough Roads Maintenance               ,CE026FA,New Construction Conversion and Renovation,,B4,,"49,484.14",02/11/2013,C,FM CONWAY LTD                 
159,,,Maintain AntiSkid and Coloured          ,CE027FA,New Construction Conversion and Renovation,,B4,,"12,900.00",12/10/2013,C,FM CONWAY LTD                 
160,,,Repairs to Footways                     ,CE029FA,New Construction Conversion and Renovation,,B4,,"14,931.30",14/10/2013,C,FM CONWAY LTD                 
161,,,Repairs to Footways                     ,CE029FA,New Construction Conversion and Renovation,,B4,,"1,872.25",13/11/2013,C,FM CONWAY LTD                 
162,,,Repairs to Footways                     ,CE029FA,New Construction Conversion and Renovation,,B4,,"3,432.66",13/11/2013,C,FM CONWAY LTD                 
163,,,Repairs to Footways                     ,CE029FA,New Construction Conversion and Renovation,,B4,,"8,619.69",02/11/2013,C,FM CONWAY LTD                 
164,,,Repairs to Footways                     ,CE029FA,New Construction Conversion and Renovation,,B4,,"25,124.93",02/11/2013,C,FM CONWAY LTD                 
165,,,Repairs to Footways                     ,CE029FA,New Construction Conversion and Renovation,,B4,,"3,282.92",02/11/2013,C,FM CONWAY LTD                 
166,,,Improve markings & road signs           ,CE066EA,New Construction Conversion and Renovation,,B4,,757.53,14/10/2013,C,FM CONWAY LTD                 
167,,,Street Lighting Replacement Pr          ,CE068FA,New Construction Conversion and Renovation,,B4,,"3,691.52",31/10/2013,C,MAY GURNEY LTD T/A CARTLEDGE  
168,,,Street Lighting Replacement Pr          ,CE068FA,New Construction Conversion and Renovation,,B4,,574.77,02/11/2013,C,FM CONWAY LTD                 
169,,,Street Lighting Replacement Pr          ,CE068FA,New Construction Conversion and Renovation,,B4,,"2,080.74",11/11/2013,C,MAY GURNEY LTD T/A CARTLEDGE  
170,,,Street Lighting Replacement Pr          ,CE068FA,New Construction Conversion and Renovation,,B4,,982.42,05/11/2013,C,MAY GURNEY LTD T/A CARTLEDGE  
171,,,Street Lighting Replacement Pr          ,CE068FA,New Construction Conversion and Renovation,,B4,,"1,082.57",05/11/2013,C,MAY GURNEY LTD T/A CARTLEDGE  
172,,,Street Lighting Replacement Pr          ,CE068FA,New Construction Conversion and Renovation,,B4,,806,02/11/2013,C,FM CONWAY LTD                 
173,,,Street Lighting Replacement Pr          ,CE068FA,New Construction Conversion and Renovation,,B6,,642,21/11/2013,C,UK POWER NETWORKS (OPERATIONS)
174,,,Street Lighting Replacement Pr          ,CE068FA,New Construction Conversion and Renovation,,B6,,642,21/11/2013,C,UK POWER NETWORKS (OPERATIONS)
175,,,Street Lighting Replacement Pr          ,CE068FA,New Construction Conversion and Renovation,,B6,,"1,284.00",21/11/2013,C,UK POWER NETWORKS (OPERATIONS)
176,,,Area Traffic calming measures           ,CE070FA,New Construction Conversion and Renovation,,B4,,"24,000.00",14/11/2013,C,FM CONWAY LTD                 
177,,,Traffic surveys & Safety Measu          ,CE075FA,New Construction Conversion and Renovation,,B4,,"2,318.85",14/10/2013,C,FM CONWAY LTD                 
178,,,Wimbledon Area Traffic Study            ,CE077FA,New Construction Conversion and Renovation,,B4,,"36,000.00",13/11/2013,C,FM CONWAY LTD                 
179,,,Wimbledon Area Traffic Study            ,CE077FA,New Construction Conversion and Renovation,,B4,,"18,000.00",14/11/2013,C,FM CONWAY LTD                 
180,,,Alley Gating Scheme - Fly Tip           ,CE087FA,Other Capital Expenditure,,E1,,"1,533.60",20/11/2013,C,BCC COMMUNITY ASSOCIATION     
181,,,Alley Gating Scheme - Fly Tip           ,CE087FA,Other Capital Expenditure,,E1,,"1,542.00",20/11/2013,C,STREATHAM ROAD (40-60)        
182,,,Strategic corridor Mitcham              ,CE104FB,New Construction Conversion and Renovation,,B1,,"12,454.56",30/10/2013,C,HYDER CONSULTING (UK) LTD     
183,,,Kingston/Hartfield Rd StratCor          ,CE104FC,New Construction Conversion and Renovation,,B4,,"3,819.57",12/10/2013,C,FM CONWAY LTD                 
184,,,Kingston/Hartfield Rd StratCor          ,CE104FC,New Construction Conversion and Renovation,,C3,,658.8,19/10/2013,C,NEWSQUEST (LONDON)LTD         
185,,,Kingston/Hartfield Rd StratCor          ,CE104FC,Vehicles Plant Equipment and Machinery,,D5,,"1,637.53",22/10/2013,C,PETER BRETT ASSOCIATES        
186,,,Accesibility Programme                  ,CE104FD,New Construction Conversion and Renovation,,B4,,"1,613.97",13/11/2013,C,FM CONWAY LTD                 
187,,,Accesibility Programme                  ,CE104FD,New Construction Conversion and Renovation,,B4,,"15,000.00",14/11/2013,C,FM CONWAY LTD                 
188,,,Accesibility Programme                  ,CE104FD,New Construction Conversion and Renovation,,B6,,"2,000.00",19/11/2013,C,TRANSPORT FOR LONDON          
189,,,Casualty Reduction & Schools            ,CE104RA,New Construction Conversion and Renovation,,B4,,"14,385.00",13/11/2013,C,FM CONWAY LTD                 
190,,,Casualty Reduction & Schools            ,CE104RA,New Construction Conversion and Renovation,,B4,,521.12,13/11/2013,C,FM CONWAY LTD                 
191,,,Casualty Reduction & Schools            ,CE104RA,New Construction Conversion and Renovation,,B4,,"1,000.00",13/11/2013,C,FM CONWAY LTD                 
192,,,Casualty Reduction & Schools            ,CE104RA,New Construction Conversion and Renovation,,B5,,500,23/10/2013,C,UNIPART RAIL LTD - DORMAN     
193,,,School & Road Safety Campaigns          ,CE104RC,Other Capital Expenditure,,E4,,803.5,06/09/2013,C,THE SITE SUPPLY COMPANY LTD   
194,,,TFL Slippage - Corridors&Neigh          ,CE104RK,New Construction Conversion and Renovation,,B4,,"15,000.00",12/10/2013,C,FM CONWAY LTD                 
195,,,TFL Slippage - Corridors&Neigh          ,CE104RK,New Construction Conversion and Renovation,,B4,,"12,000.00",12/10/2013,C,FM CONWAY LTD                 
196,,,King George Rec Play Area               ,CE110CB,New Construction Conversion and Renovation,,B4,,"3,273.00",08/11/2013,C,CPLC WATER LIMITED            
197,,,King George Rec Play Area               ,CE110CB,New Construction Conversion and Renovation,,B4,,"3,455.00",11/11/2013,C,REDACTED
198,,,Lewis Road Rec Alt Play Facili          ,CE110CC,New Construction Conversion and Renovation,,B4,,"1,395.00",31/10/2013,C,THE CRESCENT FENCING CO       
199,,,Sir Joseph Hood Crazy Golf              ,CE110CF,New Construction Conversion and Renovation,,B4,,"6,660.00",04/11/2013,C,DAPPA MRP FLOORING            
200,,,Sir Joseph Hood Crazy Golf              ,CE110CF,New Construction Conversion and Renovation,,B4,,"3,350.00",09/11/2013,C,REDACTED
201,,,All Saints Play Area                    ,CE110CH,New Construction Conversion and Renovation,,B4,,"1,450.00",29/10/2013,C,HAGS - SMP LIMITED            
202,,,All Saints Play Area                    ,CE110CH,New Construction Conversion and Renovation,,B4,,"4,305.00",29/10/2013,C,HAGS - SMP LIMITED            
203,,,All Saints Play Area                    ,CE110CH,New Construction Conversion and Renovation,,B4,,"6,913.00",29/10/2013,C,HAGS - SMP LIMITED            
204,,,All Saints Play Area                    ,CE110CH,New Construction Conversion and Renovation,,B4,,"9,362.00",29/10/2013,C,HAGS - SMP LIMITED            
205,,,Nelson Gardens Community Space          ,CE110CJ,New Construction Conversion and Renovation,,B4,,"5,860.00",22/11/2013,C,TAYLOR BUILDING COMPANY LTD   
206,,,Nelson Gardens Community Space          ,CE110CJ,New Construction Conversion and Renovation,,B4,,"4,436.00",22/11/2013,C,TAYLOR BUILDING COMPANY LTD   
207,,,Borough Support - Training              ,CE123RA,Other Capital Expenditure,,E4,,"4,800.00",21/11/2013,C,LONDON SOUTH BANK UNIVERSITY  
208,,,Biking Borough Project                  ,CE128FA,New Construction Conversion and Renovation,,B4,,"17,100.00",12/10/2013,C,FM CONWAY LTD                 
209,,,Enhancement of Invest Property,CE138BA,New Construction Conversion and Renovation,,B4,,"1,750.00",05/09/2013,C,TAYLOR BUILDING COMPANY LTD   
210,,,Civic Centre refurbishment              ,CF001AB,New Construction Conversion and Renovation,,B4,,"22,028.00",30/10/2013,C,COBSEN-DAVIES ROOFING (LOND)LT
211,,,Civic Centre refurbishment              ,CF001AB,New Construction Conversion and Renovation,,B4,,"64,325.28",05/11/2013,C,SALTASH ENTERPRISES LTD       
212,,,CHP Equipment                           ,CF001AE,New Construction Conversion and Renovation,,B4,,"14,290.00",05/11/2013,C,SALTASH ENTERPRISES LTD       
213,,,Civic Centre Windows                    ,CF001AK,New Construction Conversion and Renovation,,B4,,"3,500.00",05/11/2013,C,SALTASH ENTERPRISES LTD       
214,,,Civic Centre Windows                    ,CF001AK,New Construction Conversion and Renovation,,B4,,"2,450.00",30/10/2013,C,FIRST CHOICE FACILITIES PLC   
215,,,Civic Centre Windows                    ,CF001AK,New Construction Conversion and Renovation,,B4,,"2,196.70",29/10/2013,C,NETWORK BLINDS LIMITED        
216,,,Civic Centre Windows                    ,CF001AK,New Construction Conversion and Renovation,,B4,,669.8,15/11/2013,C,NETWORK BLINDS LIMITED        
217,,,Civic Centre Windows                    ,CF001AK,New Construction Conversion and Renovation,,B4,,"3,990.00",31/10/2013,C,EDE'S (U.K.) LTD              
218,,,Civic Centre Windows                    ,CF001AK,New Construction Conversion and Renovation,,B4,,"303,738.50",08/11/2013,C,HAZLEMERE WINDOW CO LIMITED   
219,,,Repair and Maintenance                  ,CF004SA,New Construction Conversion and Renovation,,B4,,"10,000.00",30/10/2013,C,COFELY LIMITED                
220,,,Repair and Maintenance                  ,CF004SA,New Construction Conversion and Renovation,,B4,,"44,124.00",08/10/2013,C,WOODLAND COMMERCIAL LTD       
221,,,Repair and Maintenance                  ,CF004SA,New Construction Conversion and Renovation,,B4,,"11,537.14",06/11/2013,C,SALTASH ENTERPRISES LTD       
222,,,Gifford House DDA - Lift                ,CF006AC,New Construction Conversion and Renovation,,B4,,"46,840.00",08/10/2013,C,WOODLAND COMMERCIAL LTD       
223,,,Gifford House Minor Refurb              ,CF058AC,New Construction Conversion and Renovation,,B4,,"4,780.55",29/10/2013,C,COFELY LIMITED                
224,,,Gifford House Minor Refurb              ,CF058AC,New Construction Conversion and Renovation,,B4,,"36,604.51",08/10/2013,C,WOODLAND COMMERCIAL LTD       
225,,,Raynes Park Sports Pavilion             ,CS003CA,New Construction Conversion and Renovation,,B1,,"5,151.00",28/10/2013,C,HAVERSTOCK ASSOCIATES LLP     
226,,,Raynes Park Sports Pavilion             ,CS003CA,New Construction Conversion and Renovation,,B4,,"13,800.00",22/11/2013,C,LENGUARD LIMITED              
227,,,Aragon expansion                        ,CS008AA,New Construction Conversion and Renovation,,B4,,"11,083.00",24/09/2013,C,S & S BURNER SERVICES LTD     
228,,,St Mary's expansion                     ,CS008RA,New Construction Conversion and Renovation,,B5,,"1,284.06",17/10/2013,C,BLUE CUBE CONNECTIONS LTD     
229,,,All Saints/ South Wim YCC exp           ,CS008SB,Vehicles Plant Equipment and Machinery,,D3,,568.13,03/09/2013,C,IC2 CCTV & SECUR.SPEC. (UK)LTD
230,,,Cranmer expansion                       ,CS010AA,New Construction Conversion and Renovation,,B4,,"247,924.35",08/11/2013,C,WILLMOTT DIXON CONSTRUCT'N LTD
231,,,Joseph Hood Permanent Expansn           ,CS012AA,New Construction Conversion and Renovation,,B4,,"4,352.41",13/11/2013,C,FM CONWAY LTD                 
232,,,Gorringe Park expansion                 ,CS018AB,New Construction Conversion and Renovation,,B1,,"12,074.00",21/10/2013,C,HAVERSTOCK ASSOCIATES LLP     
233,,,Hillcross School Expansion              ,CS020AC,New Construction Conversion and Renovation,,B1,,"1,925.00",21/11/2013,C,STACE LLP                     
234,,,Hillcross School Expansion              ,CS020AC,New Construction Conversion and Renovation,,B1,,925,31/10/2013,C,STACE LLP                     
235,,,Hillcross School Expansion              ,CS020AC,New Construction Conversion and Renovation,,B2,,700,15/11/2013,C,MIDDLEMARCH ENVIRONMENTAL LTD 
236,,,Merton Abbey Temp Accomodation          ,CS022AC,New Construction Conversion and Renovation,,B1,,750,31/10/2013,C,STACE LLP                     
237,,,Merton Abbey Temp Accomodation          ,CS022AC,New Construction Conversion and Renovation,,B1,,"21,435.00",31/10/2013,C,PELLINGS LLP                  
238,,,Merton Abbey Temp Accomodation          ,CS022AC,New Construction Conversion and Renovation,,B2,,"3,290.00",31/10/2013,C,KEEGANS LIMITED               
239,,,Pelham School Expansion                 ,CS023AC,New Construction Conversion and Renovation,,B1,,"34,158.00",28/10/2013,C,HAVERSTOCK ASSOCIATES LLP     
240,,,Pelham School Expansion                 ,CS023AC,New Construction Conversion and Renovation,,B1,,"1,975.00",13/11/2013,C,STACE LLP                     
241,,,Pelham School Expansion                 ,CS023AC,New Construction Conversion and Renovation,,B1,,"1,025.00",31/10/2013,C,STACE LLP                     
242,,,Dundonald expansion                     ,CS031AC,New Construction Conversion and Renovation,,B1,,"2,868.75",31/10/2013,C,SYNERGY CPC LLP               
243,,,Dundonald expansion                     ,CS031AC,New Construction Conversion and Renovation,,B1,,"15,385.00",28/10/2013,C,HAVERSTOCK ASSOCIATES LLP     
244,,,Dundonald expansion                     ,CS031AC,New Construction Conversion and Renovation,,B1,,750,22/10/2013,C,EIGHT ASSOCIATES              
245,,,Dundonald expansion                     ,CS031AC,New Construction Conversion and Renovation,,B2,,"6,065.00",08/11/2013,C,NOISE.CO.UK                   
246,,,Dundonald expansion                     ,CS031AC,New Construction Conversion and Renovation,,B2,,795,19/11/2013,C,SURVEY DESIGN SERV & ASSOC LTD
247,,,Poplar Permanent Expansion              ,CS034AB,New Construction Conversion and Renovation,,B1,,"1,000.00",31/10/2013,C,STACE LLP                     
248,,,Poplar Permanent Expansion              ,CS034AB,New Construction Conversion and Renovation,,B1,,"44,646.87",31/10/2013,C,PELLINGS LLP                  
249,,,Poplar Permanent Expansion              ,CS034AB,New Construction Conversion and Renovation,,B2,,"2,025.00",31/10/2013,C,KEEGANS LIMITED               
250,,,Singlegate expansion                    ,CS049AA,New Construction Conversion and Renovation,,B4,,"2,722.00",22/10/2013,C,MOY CONSTRUCTION CO LTD       
251,,,Singlegate expansion                    ,CS049AA,New Construction Conversion and Renovation,,B6,,500,31/10/2013,C,PUMP SERVICES CAMBERLEY LTD   
252,,,Singlegate expansion                    ,CS049AA,New Construction Conversion and Renovation,,B6,,"2,840.00",12/11/2013,C,PUMP SERVICES CAMBERLEY LTD   
253,,,Wimbledon Park expansion                ,CS050AA,New Construction Conversion and Renovation,,B1,,"1,068.00",31/10/2013,C,SYNERGY CPC LLP               
254,,,Wimbledon Park expansion                ,CS050AA,New Construction Conversion and Renovation,,B1,,"24,815.74",25/10/2013,C,CURL LA TOURELLE ARCHITECTS   
255,,,Wimbledon Park expansion                ,CS050AA,New Construction Conversion and Renovation,,B2,,800,31/10/2013,C,MIDDLEMARCH ENVIRONMENTAL LTD 
256,,,Wimbledon Park expansion                ,CS050AA,New Construction Conversion and Renovation,,B4,,"150,150.38",11/11/2013,C,GEE CONSTRUCTION LTD          
257,,,Wimbledon Park expansion                ,CS050AA,Vehicles Plant Equipment and Machinery,,D3,,-800,14/11/2013,C,KEYSTAGE LTD                  
258,,,Wimbledon Park expansion                ,CS050AA,Vehicles Plant Equipment and Machinery,,D3,,"20,140.89",21/08/2013,C,KEYSTAGE LTD                  
259,,,Wimbledon Park expansion                ,CS050AA,Vehicles Plant Equipment and Machinery,,D3,,"4,603.50",06/09/2013,C,KEYSTAGE LTD                  
260,,,Youth&Comm centres reprovision          ,CS083SA,New Construction Conversion and Renovation,,B2,,980,29/08/2013,C,LUCION ENVIRONMENTAL LTD      
261,,,Lonesome - Main Heating                 ,CS091AD,New Construction Conversion and Renovation,,B4,,"35,161.60",18/10/2013,C,T BROWN LTD                   
262,,,The Sherwood-Boiler&Perim Fnc           ,CS091AF,New Construction Conversion and Renovation,,B4,,"60,693.88",18/10/2013,C,T BROWN LTD                   
263,,,Disaster recovery                       ,CT003EA,Other Capital Expenditure,,E3,,"2,850.00",28/10/2013,C,FORDWAY LTD                   
264,,,IT Equipment                            ,CT006EA,Vehicles Plant Equipment and Machinery,,D3,,"1,640.00",16/10/2013,C,SPECIALIST COMPUTER CENT. PLC 
265,,,IT Equipment                            ,CT006EA,Vehicles Plant Equipment and Machinery,,D3,,"18,821.34",06/11/2013,C,AXIAL SYSTEMS                 
266,,,IT Equipment                            ,CT006EA,Vehicles Plant Equipment and Machinery,,D3,,747,28/10/2013,C,VIGLEN LIMITED                
267,,,IT Equipment                            ,CT006EA,Vehicles Plant Equipment and Machinery,,D3,,"2,296.00",07/10/2013,C,SPECIALIST COMPUTER CENT. PLC 
268,,,IT Equipment                            ,CT006EA,Vehicles Plant Equipment and Machinery,,D3,,592,16/10/2013,C,SPECIALIST COMPUTER CENT. PLC 
269,,,IT Equipment                            ,CT006EA,Vehicles Plant Equipment and Machinery,,D3,,"27,857.07",06/11/2013,C,AXIAL SYSTEMS                 
270,,,IT Equipment                            ,CT006EA,Other Capital Expenditure,,E3,,"3,500.00",06/11/2013,C,AXIAL SYSTEMS                 
271,,,IT Strategy - unallocated               ,CT007EW,New Construction Conversion and Renovation,,B4,,-540.21,11/11/2013,C,DATA TECHNIQUES               
272,,,IT Strategy - unallocated               ,CT007EW,New Construction Conversion and Renovation,,B4,,"2,369.92",04/11/2013,C,DATA TECHNIQUES               
273,,,IT Strategy - unallocated               ,CT007EW,New Construction Conversion and Renovation,,B4,,"14,080.31",04/11/2013,C,DATA TECHNIQUES               
274,Central Services,Council tax collection,Local Taxation Services,E02100,Supplies & Services           ,Services                      ,DF11,Counsel's Fees                          ,920,05/11/2013,R,WELBECK LAW LLP               
275,Central Services,Council tax collection,Local Taxation Services,E02100,Supplies & Services           ,Services                      ,DF11,Counsel's Fees                          ,"1,230.00",26/08/2013,R,HL SOLICITORS                 
276,Central Services,Council tax collection,Local Taxation Services,E02100,Supplies & Services           ,Services                      ,DF11,Counsel's Fees                          ,920,18/11/2013,R,WELBECK LAW LLP               
277,Central Services,Council tax collection,Local Taxation Services,E02100,Supplies & Services           ,Comms and Computing           ,DG07,Computer Software                       ,517.75,29/10/2013,R,VISIONAID TECHNOLOGIES LTD    
278,Central Services,Council tax collection,Local Taxation Services,E02100,Supplies & Services           ,Comms and Computing           ,DG09,Computer Purchases - Misc               ,725,25/10/2013,R,MAG:NET SOLUTIONS             
279,Central Services,Council tax collection,Local Taxation Services,E02100,Supplies & Services           ,Comms and Computing           ,DG09,Computer Purchases - Misc               ,"1,550.00",18/11/2013,R,CIVICA UK LIMITED             
280,Central Services,Council tax collection,Local Taxation Services,E02100,Supplies & Services           ,Comms and Computing           ,DG09,Computer Purchases - Misc               ,"1,581.00",25/10/2013,R,MAG:NET SOLUTIONS             
281,Central Services,Council tax collection,Local Taxation Bailiffs,E02101,Supplies & Services           ,Services                      ,DF18,Bailiffs' fees                          ,945,16/10/2013,R,QUARTIX                       
282,Central Services,Council tax collection,Local Taxation Bailiffs,E02101,Supplies & Services           ,Services                      ,DF18,Bailiffs' fees                          ,679.4,31/10/2013,R,HPI LIMITED                   
283,Central Services,SupS Corporate Finance,TRANSACTIONS,E02139,Supplies & Services           ,Comms and Computing           ,DG50,Other IT Expenditure                    ,"3,654.09",15/10/2013,R,LONDON BOROUGH OF SUTTON      
284,Central Services,SupS Corporate Finance,TRANSACTIONS,E02139,Supplies & Services           ,Comms and Computing           ,DG50,Other IT Expenditure                    ,"7,308.18",25/10/2013,R,LONDON BOROUGH OF SUTTON      
285,Central Services,SupS Payroll,Payroll,E02140,Third Party Payments          ,Private Contractors           ,EH10,Contract Payments                       ,"2,775.51",11/11/2013,R,LONDON BOROUGH OF SUTTON      
286,Central Services,SupS Facilities,Security Services,E02221,Employees                     ,Direct Employee Expenses      ,AA17,Agency Staff & Casual Paymts            ,"2,141.10",01/11/2013,R,SIGHT & SOUND                 
287,Central Services,SupS Facilities,Security Services,E02221,Employees                     ,Direct Employee Expenses      ,AA17,Agency Staff & Casual Paymts            ,"1,614.60",01/11/2013,R,SIGHT & SOUND                 
288,Central Services,SupS Facilities,Security Services,E02221,Employees                     ,Direct Employee Expenses      ,AA17,Agency Staff & Casual Paymts            ,947.7,01/11/2013,R,SIGHT & SOUND                 
289,Central Services,SupS Facilities,Security Services,E02221,Employees                     ,Direct Employee Expenses      ,AA17,Agency Staff & Casual Paymts            ,"3,744.00",01/11/2013,R,SIGHT & SOUND                 
290,Central Services,SupS Facilities,Civic Centre,E02222,Premises Related Expenditure  ,RepairsAlterations&MtceOfBldgs,BA29,BUILD MAINT MGT FEES                    ,702,31/10/2013,R,EDE'S (U.K.) LTD              
291,Central Services,SupS Facilities,Civic Centre,E02222,Premises Related Expenditure  ,Cleaning and Domestic Supplies,BH01,Cleaning Materials                      ,504,29/10/2013,R,GREENHAM TRADING LTD          
292,Central Services,SupS Facilities,Civic Centre,E02222,Premises Related Expenditure  ,Cleaning and Domestic Supplies,BH01,Cleaning Materials                      ,504,14/11/2013,R,GREENHAM TRADING LTD          
293,Central Services,SupS Facilities,Civic Centre,E02222,Premises Related Expenditure  ,Cleaning and Domestic Supplies,BH03,Cleaning Services                       ,"3,035.93",31/10/2013,R,BIRKIN CLEANING SERVICES LTD  
294,Central Services,SupS Facilities,Civic Centre,E02222,Premises Related Expenditure  ,Cleaning and Domestic Supplies,BH03,Cleaning Services                       ,"1,395.29",31/10/2013,R,BIRKIN CLEANING SERVICES LTD  
295,Central Services,SupS Facilities,Civic Centre,E02222,Premises Related Expenditure  ,Cleaning and Domestic Supplies,BH03,Cleaning Services                       ,"1,464.69",31/10/2013,R,BIRKIN CLEANING SERVICES LTD  
296,Central Services,SupS Facilities,Civic Centre,E02222,Premises Related Expenditure  ,Cleaning and Domestic Supplies,BH03,Cleaning Services                       ,"1,215.98",31/10/2013,R,BIRKIN CLEANING SERVICES LTD  
297,Central Services,SupS Facilities,Civic Centre,E02222,Premises Related Expenditure  ,Cleaning and Domestic Supplies,BH03,Cleaning Services                       ,"1,511.31",31/10/2013,R,BIRKIN CLEANING SERVICES LTD  
298,Central Services,SupS Facilities,Civic Centre,E02222,Premises Related Expenditure  ,Cleaning and Domestic Supplies,BH03,Cleaning Services                       ,"1,199.41",31/10/2013,R,BIRKIN CLEANING SERVICES LTD  
299,Central Services,SupS Facilities,Civic Centre,E02222,Premises Related Expenditure  ,Cleaning and Domestic Supplies,BH03,Cleaning Services                       ,"1,642.40",31/10/2013,R,BIRKIN CLEANING SERVICES LTD  
300,Central Services,SupS Facilities,Civic Centre,E02222,Premises Related Expenditure  ,Cleaning and Domestic Supplies,BH03,Cleaning Services                       ,"6,473.18",31/10/2013,R,BIRKIN CLEANING SERVICES LTD  
301,Central Services,SupS Facilities,Civic Centre,E02222,Premises Related Expenditure  ,Cleaning and Domestic Supplies,BH03,Cleaning Services                       ,819.47,31/10/2013,R,BIRKIN CLEANING SERVICES LTD  
302,Central Services,SupS Facilities,Civic Centre,E02222,Third Party Payments          ,Private Contractors           ,EH10,Contract Payments                       ,"6,203.32",25/10/2013,R,ISS COLLECTIONS LTD           
303,Central Services,SupS Facilities,Facilities,E02231,Premises Related Expenditure  ,RepairsAlterations&MtceOfBldgs,BA84,Asbestos                                ,858,30/08/2013,R,LUCION ENVIRONMENTAL LTD      
304,Central Services,SupS Facilities,Facilities,E02231,Premises Related Expenditure  ,RepairsAlterations&MtceOfBldgs,BA84,Asbestos                                ,"1,698.00",19/08/2013,R,LUCION ENVIRONMENTAL LTD      
305,Central Services,SupS Facilities,Facilities,E02231,Premises Related Expenditure  ,RepairsAlterations&MtceOfBldgs,BA89,Fire Safety Risk Assessment             ,"2,850.00",12/11/2013,R,SALTASH ENTERPRISES LTD       
306,Central Services,SupS Facilities,Corporate Services Buildings,E02240,Premises Related Expenditure  ,RepairsAlterations&MtceOfBldgs,BA01,DDM - General Building                  ,"1,898.83",12/11/2013,R,SALTASH ENTERPRISES LTD       
307,Central Services,SupS Facilities,Corporate Services Buildings,E02240,Premises Related Expenditure  ,RepairsAlterations&MtceOfBldgs,BA01,DDM - General Building                  ,"4,957.57",12/11/2013,R,SALTASH ENTERPRISES LTD       
308,Central Services,SupS Facilities,Corporate Services Buildings,E02240,Premises Related Expenditure  ,RepairsAlterations&MtceOfBldgs,BA01,DDM - General Building                  ,"1,500.00",12/11/2013,R,SALTASH ENTERPRISES LTD       
309,Central Services,SupS Facilities,Corporate Services Buildings,E02240,Premises Related Expenditure  ,RepairsAlterations&MtceOfBldgs,BA01,DDM - General Building                  ,"2,225.00",20/06/2013,R,AXIS ELEVATORS LTD            
310,Central Services,SupS Facilities,Corporate Services Buildings,E02240,Premises Related Expenditure  ,RepairsAlterations&MtceOfBldgs,BA01,DDM - General Building                  ,"1,509.00",01/11/2013,R,AVON BARRIER COMPANY LTD      
311,Central Services,SupS Facilities,Corporate Services Buildings,E02240,Premises Related Expenditure  ,RepairsAlterations&MtceOfBldgs,BA01,DDM - General Building                  ,"2,270.00",20/06/2013,R,AXIS ELEVATORS LTD            
312,Central Services,SupS Facilities,Corporate Services Buildings,E02240,Premises Related Expenditure  ,RepairsAlterations&MtceOfBldgs,BA03,DDM - Mechanical                        ,732.17,21/10/2013,R,COFELY LIMITED                
313,Central Services,SupS Facilities,Corporate Services Buildings,E02240,Premises Related Expenditure  ,RepairsAlterations&MtceOfBldgs,BA03,DDM - Mechanical                        ,"1,000.00",21/10/2013,R,COFELY LIMITED                
314,Central Services,SupS Facilities,Corporate Services Buildings,E02240,Premises Related Expenditure  ,RepairsAlterations&MtceOfBldgs,BA03,DDM - Mechanical                        ,"4,118.70",29/10/2013,R,COFELY LIMITED                
315,Central Services,SupS Facilities,Corporate Services Buildings,E02240,Premises Related Expenditure  ,RepairsAlterations&MtceOfBldgs,BA05,DDM - Electrical                        ,"1,467.73",08/11/2013,R,AXIS ELEVATORS LTD            
316,Central Services,SupS Facilities,Corporate Services Buildings,E02240,Premises Related Expenditure  ,RepairsAlterations&MtceOfBldgs,BA05,DDM - Electrical                        ,562.5,01/11/2013,R,AXIS ELEVATORS LTD            
317,Central Services,SupS Facilities,Corporate Services Buildings,E02240,Premises Related Expenditure  ,RepairsAlterations&MtceOfBldgs,BA06,Repairs & Maintenance General           ,"3,100.00",31/10/2013,R,CARDS & SPECIALIST SVS LTD.   
318,Central Services,SupS Facilities,Corporate Services Buildings,E02240,Premises Related Expenditure  ,Energy Costs                  ,BB02,Electricity                             ,"17,437.55",06/11/2013,R,SCOTTISHPOWER                 
319,Central Services,SupS Facilities,Corporate Services Buildings,E02240,Premises Related Expenditure  ,Energy Costs                  ,BB02,Electricity                             ,"1,151.80",01/08/2013,R,EDF ENERGY 1 LIMITED          
320,Central Services,SupS Facilities,Corporate Services Buildings,E02240,Premises Related Expenditure  ,Water Services                ,BE01,Use of Water (Metered)                  ,"1,080.46",25/10/2013,R,SUTTON & EAST SURREY WATER PLC
321,Cultural Env Reg&Plan Services,Parks & Open Spaces,E & R Buildings,E02344,Premises Related Expenditure  ,RepairsAlterations&MtceOfBldgs,BA03,DDM - Mechanical                        ,572.3,29/10/2013,R,COFELY LIMITED                
322,Adult Social Care,PS u65 Day Care,C & H Buildings,E02345,Premises Related Expenditure  ,RepairsAlterations&MtceOfBldgs,BA01,DDM - General Building                  ,"1,284.00",12/11/2013,R,SALTASH ENTERPRISES LTD       
323,Adult Social Care,PS u65 Day Care,C & H Buildings,E02345,Premises Related Expenditure  ,RepairsAlterations&MtceOfBldgs,BA05,DDM - Electrical                        ,697.87,29/10/2013,R,COFELY LIMITED                
324,Cultural Env Reg&Plan Services,Parks & Open Spaces,Leisure Buildings,E02350,Premises Related Expenditure  ,RepairsAlterations&MtceOfBldgs,BA01,DDM - General Building                  ,567,22/10/2013,R,JUST METAL UK LTD             
325,Cultural Env Reg&Plan Services,Parks & Open Spaces,Leisure Buildings,E02350,Premises Related Expenditure  ,RepairsAlterations&MtceOfBldgs,BA03,DDM - Mechanical                        ,"-1,494.50",19/09/2013,R,CHUBB FIRE LIMITED            
326,Cultural Env Reg&Plan Services,Parks & Open Spaces,Leisure Buildings,E02350,Premises Related Expenditure  ,RepairsAlterations&MtceOfBldgs,BA03,DDM - Mechanical                        ,671.82,29/10/2013,R,COFELY LIMITED                
327,Cultural Env Reg&Plan Services,Parks & Open Spaces,Leisure Buildings,E02350,Premises Related Expenditure  ,RepairsAlterations&MtceOfBldgs,BA03,DDM - Mechanical                        ,"1,494.50",29/08/2013,R,CHUBB FIRE LIMITED            
328,Cultural Env Reg&Plan Services,Parks & Open Spaces,Leisure Buildings,E02350,Premises Related Expenditure  ,RepairsAlterations&MtceOfBldgs,BA05,DDM - Electrical                        ,751.12,01/11/2013,R,COFELY LIMITED                
329,Central Services,SupS DOF,Director of Corporate Services,E04060,Supplies & Services           ,Services                      ,DF11,Counsel's Fees                          ,618,22/10/2013,R,REDACTED
330,Central Services,SupS DOF,Director of Corporate Services,E04060,Supplies & Services           ,Services                      ,DF11,Counsel's Fees                          ,"2,245.00",31/10/2013,R,WRAGGE & CO LLP               
331,Central Services,SupS DOF,Director of Corporate Services,E04060,Supplies & Services           ,Services                      ,DF11,Counsel's Fees                          ,"1,706.25",31/10/2013,R,WRAGGE & CO LLP               
332,Central Services,SupS DOF,AD RESOURCES,E04061,Employees                     ,Direct Employee Expenses      ,AA17,Agency Staff & Casual Paymts            ,"15,750.00",30/10/2013,R,REDACTED
333,Central Services,SupS DOF,AD RESOURCES,E04061,Employees                     ,Direct Employee Expenses      ,AA17,Agency Staff & Casual Paymts            ,"17,250.00",01/11/2013,R,REDACTED
334,Central Services,SupS DOF,AD RESOURCES,E04061,Supplies & Services           ,Services                      ,DF03,CONSULTANTS                             ,"8,740.00",04/11/2013,R,PUBLIC SECTOR CONSULTANTS     
335,Central Services,SupS Audit and Fraud,Internal Audit&Service Review,E05101,Supplies & Services           ,Services                      ,DF58,Audit fee                               ,"4,500.00",19/10/2013,R,RSM TENON                     
336,Central Services,SupS Corporate Finance,Corporate Accountancy,E06209,Supplies & Services           ,Services                      ,DF58,Audit Fee                               ,"60,808.00",30/10/2013,R,ERNST & YOUNG LLP             
337,Central Services,SupS Corporate Finance,Corporate Accountancy,E06209,Supplies & Services           ,Expenses                      ,DH02,Conferences                             ,535,12/11/2013,R,CIPFA                         
338,Central Services,SupS Strategic Finance,Treasury & Insurance,E06222,Employees                     ,Direct Employee Expenses      ,AA17,Agency Staff & Casual Paymts            ,"6,580.00",19/09/2013,R,RANDSTAD FIN & PROF LTD.      
339,Central Services,GENERATED ACCOUNT,Parking Cash Collect'n Contrct,E06225,Third Party Payments          ,Private Contractors           ,EH02,Miscellaneous Hired Services            ,"1,167.71",31/10/2013,R,BANKING AUTOMATION LTD        
340,Central Services,GENERATED ACCOUNT,Parking Cash Collect'n Contrct,E06225,Third Party Payments          ,Private Contractors           ,EH02,Miscellaneous Hired Services            ,"10,980.00",31/10/2013,R,BANKING AUTOMATION LTD        
341,Central Services,SupS DOF,Service Accountancy,E06227,Employees                     ,Direct Employee Expenses      ,AA17,Agency Staff & Casual Paymts            ,"8,740.00",19/09/2013,R,RANDSTAD FIN & PROF LTD.      
342,Central Services,SupS Legal,AD CORPORATE GOVERNANCE,E10279,Supplies & Services           ,Grants and Subscriptions      ,DJ04,Subscriptions                           ,"2,075.00",27/06/2013,R,AUDIT COMMISSION              
343,Central Services,SupS Legal,Legal Services,E10282,Supplies & Services           ,Services                      ,DF28,Court Fees                              ,"3,860.00",08/11/2013,R,REDACTED
344,Central Services,SupS Legal,Legal Services,E10282,Supplies & Services           ,Services                      ,DF28,Court Fees                              ,565,13/11/2013,R,REDACTED
345,Central Services,Registration of electors,Electoral Registration,E10285,Supplies & Services           ,Prntng Stnry Gen Off Exp      ,DE02,General Publications                    ,863,16/09/2013,R,LEXISNEXIS                    
346,Central Services,Registration of electors,Electoral Registration,E10285,Supplies & Services           ,Comms and Computing           ,DG04,Postage - General                       ,"3,765.96",28/10/2013,R,ROYAL MAIL GROUP LTD          
347,Central Services,SupS Legal,Shared Legal Service,E10288,Supplies & Services           ,Equip Furniture/Materials     ,DA80,Books                                   ,"1,333.00",25/10/2013,R,THOMSON REUTERS               
348,Central Services,SupS Legal,Shared Legal Service,E10288,Supplies & Services           ,Services                      ,DF09,Miscellaneous Fees                      ,867.78,31/10/2013,R,WINCANTON RECORDS MANAGEMENT  
349,Central Services,SupS Legal,Shared Legal Service,E10288,Supplies & Services           ,Comms and Computing           ,DG04,Postage - General                       ,500,28/10/2013,R,NEOPOST FINANCE LIMITED       
350,Central Services,SupS Legal,Shared Legal Service,E10288,Supplies & Services           ,Comms and Computing           ,DG04,Postage - General                       ,775,11/11/2013,R,ROYAL MAIL GROUP LTD          
351,Central Services,SupS Legal,Shared Legal Service,E10288,Supplies & Services           ,Grants and Subscriptions      ,DJ04,Subscriptions                           ,"13,472.00",29/10/2013,R,THE LAW SOCIETY               
352,Central Services,SupS Legal,Richmond Legal,E10289,Supplies & Services           ,Services                      ,DF11,Counsel's Fees                          ,"1,500.00",31/10/2013,R,REDACTED
353,Central Services,SupS Legal,Richmond Legal,E10289,Supplies & Services           ,Services                      ,DF11,Counsel's Fees                          ,750,30/10/2013,R,REDACTED
354,Central Services,SupS Legal,Richmond Legal,E10289,Supplies & Services           ,Services                      ,DF11,Counsel's Fees                          ,"1,875.00",27/08/2013,R,REDACTED
355,Central Services,SupS Legal,Richmond Legal,E10289,Supplies & Services           ,Services                      ,DF11,Counsel's Fees                          ,"4,322.50",02/10/2013,R,REDACTED
356,Central Services,SupS Legal,4 Borough Legal Service                 ,E10290,Supplies & Services           ,Services                      ,DF03,Consultants                             ,"5,700.00",09/10/2013,R,LEXIS NEXIS                   
357,Central Services,SupS Legal,4 Borough Legal Service                 ,E10290,Supplies & Services           ,Services                      ,DF03,Consultants                             ,"26,808.60",09/10/2013,R,LEXIS NEXIS                   
358,Central Services,SupS Legal,4 Borough Legal Service                 ,E10290,Supplies & Services           ,Comms and Computing           ,DG02,Software Licences                       ,"5,937.50",17/10/2013,R,LEXIS NEXIS                   
359,Central Services,SupS Legal,4 Borough Legal Service                 ,E10290,Supplies & Services           ,Comms and Computing           ,DG14,Telephones - Mobile                     ,"8,678.00",17/07/2013,R,T MOBILE (UK)                 
360,K&S Shared Legal                        ,SupS Legal,K&S Shared Legal                        ,E10291,Supplies & Services           ,Services                      ,DF95,Services from Provider                  ,600,22/11/2013,R,SAM SOLICITORS                
361,K&S Shared Legal                        ,SupS Legal,K&S Shared Legal                        ,E10291,Supplies & Services           ,Services                      ,DF95,Services from Provider                  ,"3,000.00",22/11/2013,R,SOUTH WEST LONDON LAW CENTRES 
362,Central Services,SupS IT,AD Business Improvement,E14358,Employees                     ,Direct Employee Expenses      ,AA17,Agency Staff & Casual Paymts            ,"9,000.00",31/10/2013,R,REDACTED
363,Central Services,SupS IT,BI IT Projects,E14360,Supplies & Services           ,Services                      ,DF03,Consultants                             ,"2,000.00",14/11/2013,R,NORTHGATE  INFORMATION SOLUT. 
364,Central Services,SupS IT,AD I&T,E14363,Employees                     ,Direct Employee Expenses      ,AA17,Agency Staff & Casual Paymts            ,"12,000.00",29/10/2013,R,GATENBY SANDERSON             
365,Central Services,SupS IT,AD I&T,E14363,Supplies & Services           ,Comms and Computing           ,DG16,Distributed & Network Purchase          ,"1,380.00",31/10/2013,R,VERISEC LIMITED               
366,Central Services,SupS IT,Systems & Projects,E14366,Supplies & Services           ,Comms and Computing           ,DG50,Other IT Expenditure                    ,"17,267.06",23/09/2013,R,INFOR GLOBAL SOLUTIONS-FRIMLEY
367,Central Services,SupS IT,Systems & Projects,E14366,Supplies & Services           ,Comms and Computing           ,DG65,Application Licences                    ,"3,491.41",22/10/2013,R,OPEN TEXT UK LTD              
368,Central Services,SupS IT,Systems & Projects,E14366,Supplies & Services           ,Grants and Subscriptions      ,DJ04,Subscriptions                           ,"1,290.00",06/11/2013,R,SOCITM LTD                    
369,Central Services,SupS IT,Operations & Telecomms,E14367,Premises Related Expenditure  ,RepairsAlterations&MtceOfBldgs,BA05,DDM - Electrical                        ,500,30/10/2013,R,DATA TECHNIQUES               
370,Central Services,SupS IT,Operations & Telecomms,E14367,Premises Related Expenditure  ,RepairsAlterations&MtceOfBldgs,BA05,DDM - Electrical                        ,500,30/10/2013,R,DATA TECHNIQUES               
371,Central Services,SupS IT,Operations & Telecomms,E14367,Premises Related Expenditure  ,RepairsAlterations&MtceOfBldgs,BA05,DDM - Electrical                        ,707.59,30/10/2013,R,DATA TECHNIQUES               
372,Central Services,SupS IT,Operations & Telecomms,E14367,Supplies & Services           ,Comms and Computing           ,DG53,EDI Comms                               ,525,28/10/2013,R,AMTEC COMPUTER CORPORATION LTD
373,Central Services,SupS IT,Operations & Telecomms,E14367,Supplies & Services           ,Comms and Computing           ,DG54,Corporate Telephones                    ,"9,211.96",02/11/2013,R,COLT TELECOMMUNICATIONS       
374,Central Services,SupS IT,Operations & Telecomms,E14367,Supplies & Services           ,Comms and Computing           ,DG54,Corporate Telephones                    ,"9,451.91",04/11/2013,R,T MOBILE (UK)                 
375,Central Services,SupS IT,Operations & Telecomms,E14367,Supplies & Services           ,Comms and Computing           ,DG54,Corporate Telephones                    ,-500,01/08/2013,R,EVERYTHING EVERYWHERE         
376,Central Services,SupS IT,Operations & Telecomms,E14367,Supplies & Services           ,Comms and Computing           ,DG54,Corporate Telephones                    ,"3,597.95",14/10/2013,R,BRITISH TELECOMMUNICATIONS PLC
377,Central Services,SupS IT,Distributed Services,E14368,Supplies & Services           ,Comms and Computing           ,DG63,Software Licences - Data                ,"1,205.66",30/09/2013,R,FORDWAY LTD                   
378,Central Services,SupS IT,Distributed Services,E14368,Supplies & Services           ,Comms and Computing           ,DG65,Application Licences                    ,"13,054.12",12/11/2013,R,RANDOMSTORM LTD               
379,Central Services,SupS IT,Corp Saving-IT Consolidation,E14370,Premises Related Expenditure  ,RepairsAlterations&MtceOfBldgs,BA01,DDM - General Building                  ,"4,685.00",09/11/2013,R,REDACTED
380,Central Services,SupS IT,No longer used,E14371,Employees                     ,Direct Employee Expenses      ,AA17,Agency Staff & Casual Paymts            ,"2,995.00",31/10/2013,R,HAYS RECRUITING EXPERTS       
381,Central Services,SupS IT,No longer used,E14371,Employees                     ,Direct Employee Expenses      ,AA17,Agency Staff & Casual Paymts            ,"2,995.00",24/10/2013,R,HAYS RECRUITING EXPERTS       
382,Central Services,SupS IT,No longer used,E14371,Employees                     ,Direct Employee Expenses      ,AA17,Agency Staff & Casual Paymts            ,"2,995.00",24/10/2013,R,HAYS RECRUITING EXPERTS       
383,Central Services,SupS IT,No longer used,E14371,Employees                     ,Direct Employee Expenses      ,AA17,Agency Staff & Casual Paymts            ,"1,198.00",30/10/2013,R,HAYS RECRUITING EXPERTS       
384,Central Services,SupS IT,No longer used,E14371,Employees                     ,Direct Employee Expenses      ,AA17,Agency Staff & Casual Paymts            ,"2,396.00",24/10/2013,R,HAYS RECRUITING EXPERTS       
385,Central Services,SupS IT,No longer used,E14371,Supplies & Services           ,Services                      ,DF03,Consultants                             ,"10,700.00",04/11/2013,R,V4 SERVICES LIMITED           
386,Central Services,SupS IT,No longer used,E14371,Supplies & Services           ,Services                      ,DF03,Consultants                             ,"9,525.00",31/10/2013,R,REDQUADRANT LTD               
387,Central Services,SupS IT,Business Systems - Deptl Supt,E14377,Supplies & Services           ,Comms and Computing           ,DG15,Network Maintenance                     ,"2,020.74",06/11/2013,R,AXIAL SYSTEMS                 
388,Central Services,SupS IT,Business Systems - Deptl Supt,E14377,Supplies & Services           ,Comms and Computing           ,DG15,Network Maintenance                     ,"3,001.05",04/11/2013,R,THINTECH LIMITED              
389,Central Services,SupS IT,Business Systems - Deptl Supt,E14377,Supplies & Services           ,Comms and Computing           ,DG15,Network Maintenance                     ,"6,400.00",04/11/2013,R,THINTECH LIMITED              
390,Central Services,SupS IT,Business Systems - Deptl Supt,E14377,Supplies & Services           ,Comms and Computing           ,DG15,Network Maintenance                     ,"1,300.00",06/11/2013,R,AXIAL SYSTEMS                 
391,Central Services,SupS IT,Business Systems - Deptl Supt,E14377,Supplies & Services           ,Comms and Computing           ,DG15,Network Maintenance                     ,"3,121.03",06/11/2013,R,AXIAL SYSTEMS                 
392,Central Services,SupS IT,Business Systems - Deptl Supt,E14377,Supplies & Services           ,Comms and Computing           ,DG15,Network Maintenance                     ,"8,250.00",06/11/2013,R,AXIAL SYSTEMS                 
393,Central Services,SupS IT,Business Systems - Deptl Supt,E14377,Supplies & Services           ,Comms and Computing           ,DG15,Network Maintenance                     ,"22,800.00",04/11/2013,R,THINTECH LIMITED              
394,Central Services,SupS IT,Business Systems - Deptl Supt,E14377,Supplies & Services           ,Comms and Computing           ,DG15,Network Maintenance                     ,"4,623.15",06/11/2013,R,AXIAL SYSTEMS                 
395,Cultural Env Reg&Plan Services,Housing Standards,Shared Regulatory Service Proj          ,G00091,Supplies & Services           ,Services                      ,DF03,Consultants                             ,"9,100.00",30/09/2013,R,GATENBYSANDERSON LIMITED      
396,Cultural Env Reg&Plan Services,Housing Standards,Shared Regulatory Service Proj          ,G00091,Supplies & Services           ,Services                      ,DF03,Consultants                             ,"15,400.00",31/10/2013,R,GATENBYSANDERSON LIMITED      
397,Cultural Env Reg&Plan Services,Mgt & Support (Env),Senior Mgt. - E.S.C.,G00100,Supplies & Services           ,Services                      ,DF03,Consultants                             ,"16,850.00",21/10/2013,R,PROJECT CENTRE                
398,Cultural Env Reg&Plan Services,BC Regs & Other not split,HoS - PP&D                              ,G00111,Supplies & Services           ,Services                      ,DF11,Counsel's Fees                          ,850,22/10/2013,R,REDACTED
399,Highways & Transport Services,Repair prin/oth rds not split,Walk Sheets,G00127,Third Party Payments          ,Private Contractors           ,EH56,Carriageway/Fway Maint                  ,"7,269.87",13/11/2013,R,FM CONWAY LTD                 
400,Highways & Transport Services,Repair prin/oth rds not split,Walk Sheets,G00127,Third Party Payments          ,Private Contractors           ,EH56,Carriageway/Fway Maint                  ,"7,676.16",13/11/2013,R,FM CONWAY LTD                 
401,Highways & Transport Services,Repair prin/oth rds not split,Walk Sheets,G00127,Third Party Payments          ,Private Contractors           ,EH56,Carriageway/Fway Maint                  ,"1,100.09",14/10/2013,R,FM CONWAY LTD                 
402,Highways & Transport Services,Repair prin/oth rds not split,Walk Sheets,G00127,Third Party Payments          ,Private Contractors           ,EH56,Carriageway/Fway Maint                  ,"3,067.49",13/11/2013,R,FM CONWAY LTD                 
403,Highways & Transport Services,Repair prin/oth rds not split,Walk Sheets,G00127,Third Party Payments          ,Private Contractors           ,EH56,Carriageway/Fway Maint                  ,"3,389.01",13/11/2013,R,FM CONWAY LTD                 
404,Highways & Transport Services,Repair prin/oth rds not split,Walk Sheets,G00127,Third Party Payments          ,Private Contractors           ,EH56,Carriageway/Fway Maint                  ,"4,008.70",13/11/2013,R,FM CONWAY LTD                 
405,Highways & Transport Services,Repair prin/oth rds not split,Walk Sheets,G00127,Third Party Payments          ,Private Contractors           ,EH56,Carriageway/Fway Maint                  ,520.34,13/11/2013,R,FM CONWAY LTD                 
406,Highways & Transport Services,Repair prin/oth rds not split,Walk Sheets,G00127,Third Party Payments          ,Private Contractors           ,EH56,Carriageway/Fway Maint                  ,"14,265.29",13/11/2013,R,FM CONWAY LTD                 
407,Highways & Transport Services,Repair prin/oth rds not split,Walk Sheets,G00127,Third Party Payments          ,Private Contractors           ,EH56,Carriageway/Fway Maint                  ,580.94,02/11/2013,R,FM CONWAY LTD                 
408,Highways & Transport Services,Repair prin/oth rds not split,Walk Sheets,G00127,Third Party Payments          ,Private Contractors           ,EH56,Carriageway/Fway Maint                  ,"3,614.07",14/10/2013,R,FM CONWAY LTD                 
409,Highways & Transport Services,Repair prin/oth rds not split,Walk Sheets,G00127,Third Party Payments          ,Private Contractors           ,EH56,Carriageway/Fway Maint                  ,"1,337.15",02/11/2013,R,FM CONWAY LTD                 
410,Highways & Transport Services,Winter Maintenance.,Winter Maintenance,G00150,Third Party Payments          ,Other Local Authorities       ,EB50,WINTER CONTRACT                         ,"10,393.60",13/11/2013,R,FM CONWAY LTD                 
411,Highways & Transport Services,Saf mtc prin/oth rds not split,Traffic Signs.,G00160,Third Party Payments          ,Private Contractors           ,EH01,Miscellaneous Agency Services           ,687.44,31/10/2013,R,MAY GURNEY LTD T/A CARTLEDGE  
412,Highways & Transport Services,Saf mtc prin/oth rds not split,Traffic Signs.,G00160,Third Party Payments          ,Private Contractors           ,EH01,Miscellaneous Agency Services           ,"1,659.73",05/11/2013,R,MAY GURNEY LTD T/A CARTLEDGE  
413,Highways & Transport Services,Saf mtc prin/oth rds not split,Traffic Signs.,G00160,Third Party Payments          ,Private Contractors           ,EH01,Miscellaneous Agency Services           ,"1,698.00",11/11/2013,R,MAY GURNEY LTD T/A CARTLEDGE  
414,Highways & Transport Services,Saf mtc prin/oth rds not split,Traffic Signs.,G00160,Third Party Payments          ,Private Contractors           ,EH02,Miscellaneous Hired Services            ,646.04,13/11/2013,R,FM CONWAY LTD                 
415,Highways & Transport Services,Saf mtc prin/oth rds not split,Traffic Signs.,G00160,Third Party Payments          ,Private Contractors           ,EH02,Miscellaneous Hired Services            ,"4,758.93",02/11/2013,R,FM CONWAY LTD                 
416,Highways & Transport Services,Saf mtc prin/oth rds not split,Traffic Signs.,G00160,Third Party Payments          ,Private Contractors           ,EH02,Miscellaneous Hired Services            ,726.07,13/11/2013,R,FM CONWAY LTD                 
417,Highways & Transport Services,TRAF & HWYS CAPITAL PROJECTS,TRAF & HWYS CAPITAL PROJECTS,G00210,Supplies & Services           ,Services                      ,DF03,Consultants                             ,"1,540.00",15/10/2013,R,AXIOM TRAFFIC LTD             
418,Highways & Transport Services,TRAF & HWYS CAPITAL PROJECTS,TRAF & HWYS CAPITAL PROJECTS,G00210,Supplies & Services           ,Services                      ,DF05,Surveys (General)                       ,"6,852.86",08/11/2013,R,HIGHWAY SURVEYORS             
419,Highways & Transport Services,Street Lighting.,Street Lighting .,G00260,Premises Related Expenditure  ,Energy Costs                  ,BB02,Electricity                             ,"3,548.77",04/11/2013,R,SCOTTISHPOWER                 
420,Highways & Transport Services,Street Lighting.,Street Lighting .,G00260,Premises Related Expenditure  ,Energy Costs                  ,BB02,Electricity                             ,"44,781.55",04/11/2013,R,SCOTTISHPOWER                 
421,Highways & Transport Services,Street Lighting.,Street Lighting .,G00260,Third Party Payments          ,Private Contractors           ,EH01,Miscellaneous Agency Services           ,642,14/11/2013,R,UK POWER NETWORKS (OPERATIONS)
422,Highways & Transport Services,Street Lighting.,Street Lighting .,G00260,Third Party Payments          ,Private Contractors           ,EH01,Miscellaneous Agency Services           ,"2,978.56",22/11/2013,R,MAY GURNEY LTD T/A CARTLEDGE  
423,Highways & Transport Services,Street Lighting.,Street Lighting .,G00260,Third Party Payments          ,Private Contractors           ,EH01,Miscellaneous Agency Services           ,711.05,13/11/2013,R,FM CONWAY LTD                 
424,Highways & Transport Services,Street Lighting.,Street Lighting .,G00260,Third Party Payments          ,Private Contractors           ,EH01,Miscellaneous Agency Services           ,"13,687.88",31/10/2013,R,MAY GURNEY LTD T/A CARTLEDGE  
425,Highways & Transport Services,Street Lighting.,Street Lighting .,G00260,Third Party Payments          ,Private Contractors           ,EH01,Miscellaneous Agency Services           ,"2,206.81",31/10/2013,R,MAY GURNEY LTD T/A CARTLEDGE  
426,Highways & Transport Services,Street Lighting.,Street Lighting .,G00260,Third Party Payments          ,Private Contractors           ,EH01,Miscellaneous Agency Services           ,642,21/11/2013,R,UK POWER NETWORKS (OPERATIONS)
427,Highways & Transport Services,Street Lighting.,Street Lighting .,G00260,Third Party Payments          ,Private Contractors           ,EH01,Miscellaneous Agency Services           ,642,14/11/2013,R,UK POWER NETWORKS (OPERATIONS)
428,Highways & Transport Services,Street Lighting.,Street Lighting .,G00260,Third Party Payments          ,Private Contractors           ,EH01,Miscellaneous Agency Services           ,704,21/11/2013,R,UK POWER NETWORKS (OPERATIONS)
429,Highways & Transport Services,Street Lighting.,Street Lighting .,G00260,Third Party Payments          ,Private Contractors           ,EH01,Miscellaneous Agency Services           ,"1,737.97",31/10/2013,R,MAY GURNEY LTD T/A CARTLEDGE  
430,Highways & Transport Services,Street Lighting.,Street Lighting .,G00260,Third Party Payments          ,Private Contractors           ,EH01,Miscellaneous Agency Services           ,"2,073.49",11/11/2013,R,MAY GURNEY LTD T/A CARTLEDGE  
431,Highways & Transport Services,Off-street parking,St. Georges Car Park WEST M/S,G00302,Premises Related Expenditure  ,Energy Costs                  ,BB02,Electricity                             ,"1,286.32",01/11/2013,R,SCOTTISHPOWER                 
432,Highways & Transport Services,Off-street parking,St. Georges Car Park WEST M/S,G00302,Premises Related Expenditure  ,Energy Costs                  ,BB02,Electricity                             ,"1,166.17",01/10/2013,R,SCOTTISHPOWER                 
433,Highways & Transport Services,Off-street parking,Peel Hse C P - Upper,G00303,Premises Related Expenditure  ,Rents                         ,BC01,Miscellaneous Rents                     ,"56,243.00",26/10/2013,R,TRANSPORT TRADING LTD PROP A/C
434,Highways & Transport Services,On-street parking,On Street Parking.,G00311,Premises Related Expenditure  ,RepairsAlterations&MtceOfBldgs,BA06,Repairs & Maintenance General           ,599.55,04/10/2013,R,FM CONWAY LTD                 
435,Highways & Transport Services,Parking Enforcement not split,Operational Running Costs,G00331,Supplies & Services           ,Equip Furniture/Materials     ,DA09,Equip-Purchases                         ,"1,855.46",15/10/2013,R,RAEVAN SUPPLIES LTD           
436,Highways & Transport Services,Parking Enforcement not split,Operational Running Costs,G00331,Supplies & Services           ,Prntng Stnry Gen Off Exp      ,DE01,External Printing                       ,"1,738.00",31/10/2013,R,LIBERTY SERVICES              
437,Highways & Transport Services,Parking Enforcement not split,Operational Running Costs,G00331,Supplies & Services           ,Prntng Stnry Gen Off Exp      ,DE01,External Printing                       ,"2,889.60",19/11/2013,R,NAGELS UK LTD                 
438,Highways & Transport Services,Parking Enforcement not split,Operational Running Costs,G00331,Supplies & Services           ,Prntng Stnry Gen Off Exp      ,DE01,External Printing                       ,"1,426.00",10/11/2013,R,ORION SECURITY PRINT LIMITED  
439,Highways & Transport Services,Parking Enforcement not split,Operational Running Costs,G00331,Supplies & Services           ,Prntng Stnry Gen Off Exp      ,DE01,External Printing                       ,"3,890.00",13/11/2013,R,LIBERTY SERVICES              
440,Highways & Transport Services,Parking Enforcement not split,Operational Running Costs,G00331,Third Party Payments          ,Other Agencies                ,EJ58,Parking Cttee for London                ,"24,596.60",23/10/2013,R,LONDON COUNCILS               
441,Highways & Transport Services,Hwys/Rds (struct) not split,Footpath Crossings.,G00390,Third Party Payments          ,Private Contractors           ,EH56,Carriageway/Fway Maint                  ,"1,894.00",05/11/2013,R,MAY GURNEY LTD T/A CARTLEDGE  
442,Highways & Transport Services,Hwys/Rds (struct) not split,Footpath Crossings.,G00390,Third Party Payments          ,Private Contractors           ,EH56,Carriageway/Fway Maint                  ,"15,858.71",13/11/2013,R,FM CONWAY LTD                 
443,Highways & Transport Services,Hwys/Rds (struct) not split,Footpath Crossings.,G00390,Third Party Payments          ,Private Contractors           ,EH56,Carriageway/Fway Maint                  ,"2,404.44",14/11/2013,R,FM CONWAY LTD                 
444,Highways & Transport Services,Hwys/Rds (struct) not split,Footpath Crossings.,G00390,Third Party Payments          ,Private Contractors           ,EH56,Carriageway/Fway Maint                  ,"1,040.00",21/11/2013,R,UK POWER NETWORKS (OPERATIONS)
445,Cultural Env Reg&Plan Services,Street Clean - Not highways,Street Cleansing (Inc. Gully),G00492,Premises Related Expenditure  ,Energy Costs                  ,BB02,Electricity                             ,585.36,01/11/2013,R,EDF ENERGY                    
446,Cultural Env Reg&Plan Services,Street Clean - Not highways,Street Cleansing (Inc. Gully),G00492,Premises Related Expenditure  ,Rents                         ,BC01,Miscellaneous Rents                     ,955.24,31/10/2013,R,MERTON PRIORY HOMES (RENT)    
447,Cultural Env Reg&Plan Services,Street Clean - Not highways,Street Cleansing (Inc. Gully),G00492,Supplies & Services           ,Equip Furniture/Materials     ,DA08,Tools-Purchase                          ,"2,867.10",10/10/2013,R,BELL BRUSH                    
448,Cultural Env Reg&Plan Services,Street Clean - Not highways,Street Cleansing (Inc. Gully),G00492,Supplies & Services           ,Equip Furniture/Materials     ,DA31,Waste Sacks & Bags                      ,"3,888.00",24/10/2013,R,CROMWELL POLYTHENE            
449,Cultural Env Reg&Plan Services,Street Clean - Not highways,Street Cleansing (Inc. Gully),G00492,Supplies & Services           ,Equip Furniture/Materials     ,DA31,Waste Sacks & Bags                      ,"1,852.20",04/10/2013,R,POLARIS PLASTICS LTD          
450,Cultural Env Reg&Plan Services,Street Clean - Not highways,Street Cleansing (Inc. Gully),G00492,Supplies & Services           ,Equip Furniture/Materials     ,DA31,Waste Sacks & Bags                      ,"3,175.20",28/10/2013,R,POLARIS PLASTICS LTD          
451,Cultural Env Reg&Plan Services,Street Clean - Not highways,Street Cleansing (Inc. Gully),G00492,Supplies & Services           ,Clothing Unfrms Laundry       ,DC02,Clothing & Uniforms                     ,750,14/10/2013,R,SAFETY MANAGEMENT             
452,Cultural Env Reg&Plan Services,Street Clean - Not highways,Street Cleansing (Inc. Gully),G00492,Supplies & Services           ,Clothing Unfrms Laundry       ,DC02,Clothing & Uniforms                     ,740.63,30/10/2013,R,SAFETY MANAGEMENT             
453,Cultural Env Reg&Plan Services,Waste Disposal (not separated),Waste Disposal .,G00550,Third Party Payments          ,Private Contractors           ,EH01,Dog Bin Disposal - Biffa                ,775.29,01/11/2013,R,BIFFA WASTE SERVICES LTD      
454,Cultural Env Reg&Plan Services,Waste Disposal (not separated),Waste Disposal .,G00550,Third Party Payments          ,Private Contractors           ,EH01,Dog Bin Disposal - Biffa                ,636.67,04/10/2013,R,BIFFA WASTE SERVICES LTD      
455,Cultural Env Reg&Plan Services,Waste Disposal (not separated),Waste Disposal .,G00550,Third Party Payments          ,Private Contractors           ,EH04,C1 Viridor SLWP Landfill Contract       ,"385,399.82",29/10/2013,R,KINGSTON CORPORATION          
456,Cultural Env Reg&Plan Services,Waste Disposal (not separated),Waste Disposal .,G00550,Third Party Payments          ,Private Contractors           ,EH04,C1 Viridor SLWP Landfill Contract       ,"316,164.35",29/10/2013,R,KINGSTON CORPORATION          
457,Cultural Env Reg&Plan Services,Waste Disposal (not separated),Waste Disposal .,G00550,Third Party Payments          ,Private Contractors           ,EH10,SLWP C1 HAULAGE DRY RECYCLABLES         ,"32,653.22",29/10/2013,R,KINGSTON CORPORATION          
458,Cultural Env Reg&Plan Services,Waste Disposal (not separated),Waste Disposal .,G00550,Third Party Payments          ,Private Contractors           ,EH10,SLWP C1 HAULAGE DRY RECYCLABLES         ,"31,493.21",29/10/2013,R,KINGSTON CORPORATION          
459,Cultural Env Reg&Plan Services,Waste Disposal (not separated),Waste Disposal .,G00550,Third Party Payments          ,Private Contractors           ,EH66,Clinical Waste Disposal                 ,"1,078.43",31/10/2013,R,S.GRUNDON (WASTE) LTD.        
460,Cultural Env Reg&Plan Services,Waste Disposal (not separated),Waste Disposal .,G00550,Third Party Payments          ,Private Contractors           ,EH91,Disposal of Asbestos                    ,"1,500.00",08/10/2013,R,CITY OF LONDON CORPORATION    
461,Cultural Env Reg&Plan Services,Waste Disposal (not separated),Waste Disposal .,G00550,Third Party Payments          ,Private Contractors           ,EH91,Disposal of Asbestos                    ,"1,500.00",08/10/2013,R,CITY OF LONDON CORPORATION    
462,Cultural Env Reg&Plan Services,Waste Disposal (not separated),Waste Disposal .,G00550,Third Party Payments          ,Private Contractors           ,EH96,GULLY DISPOSAL                          ,"1,448.47",31/10/2013,R,CORY ENVIRONMENTAL LIMITED    
463,Highways & Transport Services,Hwys/Rds (struct) not split,Grass Cut/Tr Mtce,G00600,Premises Related Expenditure  ,RepairsAlterations&MtceOfBldgs,BA59,Periodic Inspections                    ,"1,520.00",13/11/2013,R,A.COLEBROOK ARBORICULTURE CON.
464,Cultural Env Reg&Plan Services,Public Health,Dog Control.,G00620,Third Party Payments          ,Private Contractors           ,EH02,Miscellaneous Hired Services            ,"3,007.04",08/10/2013,R,NOAH'S ARK ENVIRONMENTAL SERV.
465,Cultural Env Reg&Plan Services,Recycling (Collection),Recycling Activities,G00640,Supplies & Services           ,Equip Furniture/Materials     ,DA01,Equipment - R & M                       ,"1,000.00",10/11/2013,R,R.J.H.WELDING                 
466,Cultural Env Reg&Plan Services,Recycling (Collection),Recycling Activities,G00640,Third Party Payments          ,Private Contractors           ,EH03,C3 DRY RECYCLING GATE FEE               ,"50,892.30",29/10/2013,R,KINGSTON CORPORATION          
467,Cultural Env Reg&Plan Services,Recycling (Collection),Recycling Activities,G00640,Third Party Payments          ,Private Contractors           ,EH03,C3 DRY RECYCLING GATE FEE               ,"47,011.51",29/10/2013,R,KINGSTON CORPORATION          
468,Cultural Env Reg&Plan Services,Recycling (Collection),Recycling Activities,G00640,Third Party Payments          ,Private Contractors           ,EH03,C3 DRY RECYCLING GATE FEE               ,"45,341.43",29/10/2013,R,KINGSTON CORPORATION          
469,Cultural Env Reg&Plan Services,Recycling (Collection),Recycling Activities,G00640,Third Party Payments          ,Private Contractors           ,EH10,SLWP C1 EFW HAULAGE                     ,"7,257.07",29/10/2013,R,KINGSTON CORPORATION          
470,Cultural Env Reg&Plan Services,Recycling (Collection),Recycling Activities,G00640,Third Party Payments          ,Private Contractors           ,EH10,SLWP C1 EFW HAULAGE                     ,"7,257.07",29/10/2013,R,KINGSTON CORPORATION          
471,Cultural Env Reg&Plan Services,Recycling (Collection),Recycling Activities,G00640,Third Party Payments          ,Private Contractors           ,EH18,C3 FOOD WASTE GATE FEE                  ,"18,171.19",29/10/2013,R,KINGSTON CORPORATION          
472,Cultural Env Reg&Plan Services,Recycling (Collection),Recycling Activities,G00640,Third Party Payments          ,Private Contractors           ,EH18,C3 FOOD WASTE GATE FEE                  ,"20,842.39",29/10/2013,R,KINGSTON CORPORATION          
473,Cultural Env Reg&Plan Services,Recycling (Collection),Recycling Activities,G00640,Third Party Payments          ,Private Contractors           ,EH18,C3 FOOD WASTE GATE FEE                  ,"18,549.87",29/10/2013,R,KINGSTON CORPORATION          
474,Cultural Env Reg&Plan Services,Recycling (Collection),Recycling Activities,G00640,Third Party Payments          ,Private Contractors           ,EH19,C1 EFW ACCEPTANCE & BULK                ,"2,246.75",29/10/2013,R,KINGSTON CORPORATION          
475,Cultural Env Reg&Plan Services,Recycling (Collection),Recycling Activities,G00640,Third Party Payments          ,Private Contractors           ,EH19,C1 EFW ACCEPTANCE & BULK                ,"2,246.75",29/10/2013,R,KINGSTON CORPORATION          
476,Cultural Env Reg&Plan Services,Recycling (Collection),Recycling Activities,G00640,Third Party Payments          ,Private Contractors           ,EH61,Green Waste Disposal                    ,"8,637.23",31/10/2013,R,VIRIDOR WASTE KENT LTD        
477,Cultural Env Reg&Plan Services,Recycling (Collection),Recycling Activities,G00640,Third Party Payments          ,Private Contractors           ,EH63,EFW C3 GATE FEES                        ,"22,344.17",29/10/2013,R,KINGSTON CORPORATION          
478,Cultural Env Reg&Plan Services,Recycling (Collection),Recycling Activities,G00640,Third Party Payments          ,Private Contractors           ,EH63,EFW C3 GATE FEES                        ,"22,344.17",29/10/2013,R,KINGSTON CORPORATION          
479,Cultural Env Reg&Plan Services,Recycling (Collection),Recycling Activities,G00640,Third Party Payments          ,Private Contractors           ,EH63,EFW C3 GATE FEES                        ,"22,344.17",29/10/2013,R,KINGSTON CORPORATION          
480,Cultural Env Reg&Plan Services,Recycling (Collection),Recycling Activities,G00640,Third Party Payments          ,Private Contractors           ,EH90,ADDITIONAL EFW UNDER SUFFOLK SCHEME     ,"128,207.50",29/10/2013,R,KINGSTON CORPORATION          
481,Cultural Env Reg&Plan Services,Recycling (Collection),Recycling Activities,G00640,Third Party Payments          ,Private Contractors           ,EH90,ADDITIONAL EFW UNDER SUFFOLK SCHEME     ,"81,515.02",29/10/2013,R,KINGSTON CORPORATION          
482,Cultural Env Reg&Plan Services,Recycling (Collection),Recycling Activities,G00640,Third Party Payments          ,Private Contractors           ,EH94,C1 DRY RECYCLING ACCEPTANCE & BULK      ,"6,808.30",29/10/2013,R,KINGSTON CORPORATION          
483,Cultural Env Reg&Plan Services,Recycling (Collection),Recycling Activities,G00640,Third Party Payments          ,Private Contractors           ,EH94,C1 DRY RECYCLING ACCEPTANCE & BULK      ,"6,566.44",29/10/2013,R,KINGSTON CORPORATION          
484,Cultural Env Reg&Plan Services,Recycling (Collection),BARROW AND BINS REPLACEMENT,G00641,Supplies & Services           ,Equip Furniture/Materials     ,DA09,STREET BARROWS                          ,567,10/11/2013,R,R.J.H.WELDING                 
485,Cultural Env Reg&Plan Services,Recycling (Collection),BARROW AND BINS REPLACEMENT,G00641,Supplies & Services           ,Equip Furniture/Materials     ,DA31,RESIDENTIAL RECYCLING SACKS             ,"5,479.00",15/11/2013,R,EGBERT H TAYLOR & CO LTD      
486,Cultural Env Reg&Plan Services,Recycling (Collection),BARROW AND BINS REPLACEMENT,G00641,Supplies & Services           ,Equip Furniture/Materials     ,DA31,RESIDENTIAL RECYCLING SACKS             ,"2,780.00",15/11/2013,R,EGBERT H TAYLOR & CO LTD      
487,Cultural Env Reg&Plan Services,Recycling (Collection),Garden Waste Service,G00647,Supplies & Services           ,Equip Furniture/Materials     ,DA32,Wheeled Bins (GARDEN BINS)              ,"5,060.00",18/11/2013,R,SSI SCHAEFER LTD              
488,Cultural Env Reg&Plan Services,Recycling (Collection),WCSS Recycl Encourgmnt&Incentv          ,G00650,Supplies & Services           ,Services                      ,DF35,Graphic Design                          ,560,21/10/2013,R,STUDIO ELEVEN LTD             
489,Cultural Env Reg&Plan Services,Household Waste Collection,Refuse Collection (Operations),G00661,Supplies & Services           ,Equip Furniture/Materials     ,DA08,Tools-Purchase                          ,"1,040.05",29/10/2013,R,BELL BRUSH                    
490,Cultural Env Reg&Plan Services,Household Waste Collection,Refuse Collection (Operations),G00661,Supplies & Services           ,Equip Furniture/Materials     ,DA32,Wheeled Bins                            ,560,06/11/2013,R,UK CONTAINER MAINTENANCE LTD  
491,Cultural Env Reg&Plan Services,Household Waste Collection,Refuse Collection (Operations),G00661,Supplies & Services           ,Equip Furniture/Materials     ,DA32,Wheeled Bins                            ,"1,120.00",06/11/2013,R,UK CONTAINER MAINTENANCE LTD  
492,Cultural Env Reg&Plan Services,Household Waste Collection,Refuse Collection (Operations),G00661,Supplies & Services           ,Clothing Unfrms Laundry       ,DC02,Clothing & Uniforms                     ,"1,064.49",14/10/2013,R,SAFETY MANAGEMENT             
493,Cultural Env Reg&Plan Services,Trade Waste Collection,Commercial Waste Collection,G00665,Supplies & Services           ,Equip Furniture/Materials     ,DA32,Wheeled Bins                            ,800,06/11/2013,R,UK CONTAINER MAINTENANCE LTD  
494,Cultural Env Reg&Plan Services,Public Health,Merton Winter Warmer Programme,G00696,Supplies & Services           ,Equip Furniture/Materials     ,DA02,Op. Leasing Equipment                   ,"1,554.00",05/11/2013,R,AGE UK MERTON LIMITED         
495,Cultural Env Reg&Plan Services,Mortuaries,Mortuary,G00700,Third Party Payments          ,Other Local Authorities       ,EB01,Payments to OLAs                        ,"14,895.00",24/10/2013,R,ST GEORGES HEALTHCARE TRUST   
496,Cultural Env Reg&Plan Services,Mortuaries,Mortuary,G00700,Third Party Payments          ,Other Local Authorities       ,EB01,Payments to OLAs                        ,"3,322.00",24/10/2013,R,ST GEORGES HEALTHCARE TRUST   
497,Cultural Env Reg&Plan Services,Pest Control,Pest Control,G00724,Supplies & Services           ,Equip Furniture/Materials     ,DA04,Materials                               ,835.04,21/10/2013,R,KILLGERM CHEMICALS LIMITED    
498,Cultural Env Reg&Plan Services,Pest Control,Pest Control,G00724,Supplies & Services           ,Equip Furniture/Materials     ,DA04,Materials                               ,"1,097.78",01/10/2013,R,KILLGERM CHEMICALS LIMITED    
499,Cultural Env Reg&Plan Services,Licencing,LICENSING TEAM,G00740,Third Party Payments          ,Private Contractors           ,EH59,VETERINARY COSTS                        ,"3,837.00",11/11/2013,R,CITY OF LONDON CORPORATION    
500,Cultural Env Reg&Plan Services,Mgt & Support (Env),Waste Management,G00900,Premises Related Expenditure  ,Energy Costs                  ,BB02,Electricity                             ,892.26,04/11/2013,R,EDF ENERGY                    
501,Central Services,Grants - Voluntary Groups,Vestry Hall,G19290,Employees                     ,Direct Employee Expenses      ,AA17,Agency Staff & Casual Paymts            ,579.68,31/10/2013,R,REDACTED
502,Central Services,Grants - Voluntary Groups,Vestry Hall,G19290,Employees                     ,Direct Employee Expenses      ,AA17,Agency Staff & Casual Paymts            ,"4,611.35",10/11/2013,R,REDACTED
503,Central Services,Grants - Voluntary Groups,Vestry Hall,G19290,Premises Related Expenditure  ,Energy Costs                  ,BB02,Electricity                             ,"2,303.81",01/11/2013,R,EDF ENERGY 1 LIMITED          
504,Central Services,Grants - Voluntary Groups,Vestry Hall,G19290,Premises Related Expenditure  ,Energy Costs                  ,BB03,Gas (incl. Butane)                      ,620.81,12/11/2013,R,GAZPROM MARKETING&TRADING LTD 
505,Central Services,Grants - Voluntary Groups,Vestry Hall,G19290,Premises Related Expenditure  ,Water Services                ,BE01,Use of Water (Metered)                  ,629.61,28/10/2013,R,THAMES WATER UTILITIES LTD    
506,Central Services,Grants - Voluntary Groups,Vestry Hall,G19290,Premises Related Expenditure  ,Cleaning and Domestic Supplies,BH03,Cleaning Services                       ,"1,357.76",31/10/2013,R,BIRKIN CLEANING SERVICES LTD  
507,Cultural Env Reg&Plan Services,BC Regs & Other not split,Building Control,H01100,Supplies & Services           ,Services                      ,DF57,Consulting Engineers Fees               ,"1,246.00",01/11/2013,R,BSI CUSTOMER SERVICES         
508,Cultural Env Reg&Plan Services,DC Advice Apps & Reg not split,Development Control,H01130,Supplies & Services           ,Services                      ,DF02,Misc Advertising/Publicity              ,505.08,12/10/2013,R,NEWSQUEST (LONDON)LTD         
509,Cultural Env Reg&Plan Services,DC Advice Apps & Reg not split,Development Control,H01130,Supplies & Services           ,Services                      ,DF02,Misc Advertising/Publicity              ,570.96,09/11/2013,R,NEWSQUEST (LONDON)LTD         
510,Cultural Env Reg&Plan Services,DC Advice Apps & Reg not split,Development Control,H01130,Supplies & Services           ,Comms and Computing           ,DG09,Computer Purchases - Misc               ,"1,500.00",04/09/2013,R,NORTHGATE INFORMATION SOLUTION
511,Cultural Env Reg&Plan Services,DC Advice Apps & Reg not split,Development Control,H01130,Supplies & Services           ,Comms and Computing           ,DG09,Computer Purchases - Misc               ,"3,000.00",31/10/2013,R,NORTHGATE INFORMATION SOLUTION
512,Cultural Env Reg&Plan Services,Museums & Galleries,The Wheelhouse Abbey Mills,H01171,Premises Related Expenditure  ,RepairsAlterations&MtceOfBldgs,BA06,Repairs & Maintenance General           ,876.85,19/11/2013,R,WANDLE HERITAGE LTD           
513,Cultural Env Reg&Plan Services,Planning Policy not split,Spatial Policy,H01173,Third Party Payments          ,Private Contractors           ,EH10,Contract Payments                       ,"1,090.00",01/10/2013,R,REDACTED
514,Cultural Env Reg&Plan Services,Planning Policy not split,Spatial Policy,H01173,Third Party Payments          ,Private Contractors           ,EH10,Contract Payments                       ,"9,556.08",08/11/2013,R,THE PLANNING INSPECTORATE     
515,Cultural Env Reg&Plan Services,Planning Policy not split,Spatial Policy,H01173,Third Party Payments          ,Private Contractors           ,EH10,Contract Payments                       ,"9,800.00",31/10/2013,R,SHARED INTELLIGENCE LTD       
516,Cultural Env Reg&Plan Services,Planning Policy not split,Spatial Policy,H01173,Third Party Payments          ,Private Contractors           ,EH10,Contract Payments                       ,"2,450.00",04/11/2013,R,REDACTED
517,Cultural Env Reg&Plan Services,Planning Policy not split,REGENERATION & INVESTMENT,H01174,Supplies & Services           ,Prntng Stnry Gen Off Exp      ,DE22,Marketing                               ,"1,550.00",08/11/2013,R,HB CREATIVITY                 
518,CS -Oth Operating Inc & Expend,Extraordinary Items & PY Adj.,MILES RD GENERATOR,H01203,Third Party Payments          ,Private Contractors           ,EH10,Contract Payments                       ,600,18/10/2013,R,MERTON CHAMBER OF COMMERCE    
519,Cultural Env Reg&Plan Services,Market Undertakings,MBIF (Admin),H01220,Supplies & Services           ,Services                      ,DF03,Consultants                             ,"6,532.00",03/11/2013,R,RETAIL REVIVAL                
520,Cultural Env Reg&Plan Services,Economic Dev (Not separated),Mitcham Means Business,H01230,Supplies & Services           ,Prntng Stnry Gen Off Exp      ,DE22,Marketing                               ,938,08/11/2013,R,HB CREATIVITY                 
521,CS -Oth Operating Inc & Expend,T/A Vehicle Maintenance etc,Transport-Contract Hire,J01374,Premises Related Expenditure  ,RepairsAlterations&MtceOfBldgs,BA05,DDM - Electrical                        ,"1,762.44",14/10/2013,R,COFELY LIMITED                
522,CS -Oth Operating Inc & Expend,T/A Vehicle Maintenance etc,Transport-Contract Hire,J01374,Premises Related Expenditure  ,Energy Costs                  ,BB02,Electricity                             ,"1,015.47",01/11/2013,R,EDF ENERGY 1 LIMITED          
523,CS -Oth Operating Inc & Expend,T/A Vehicle Maintenance etc,Transport-Contract Hire,J01374,Transport Related Expenditure ,Direct Transport Costs        ,CA01,Petrol Derv & Oil                       ,"38,318.00",30/10/2013,R,HARVEST ENERGY LIMITED        
524,CS -Oth Operating Inc & Expend,T/A Vehicle Maintenance etc,Transport-Contract Hire,J01374,Transport Related Expenditure ,Direct Transport Costs        ,CA02,Tyres                                   ,"2,010.00",12/11/2013,R,MORDEN TYRE SERVICES LTD      
525,CS -Oth Operating Inc & Expend,T/A Vehicle Maintenance etc,Transport-Contract Hire,J01374,Transport Related Expenditure ,Direct Transport Costs        ,CA02,Tyres                                   ,515,13/11/2013,R,MORDEN TYRE SERVICES LTD      
526,CS -Oth Operating Inc & Expend,T/A Vehicle Maintenance etc,Transport-Contract Hire,J01374,Transport Related Expenditure ,Direct Transport Costs        ,CA02,Tyres                                   ,530,14/11/2013,R,MORDEN TYRE SERVICES LTD      
527,CS -Oth Operating Inc & Expend,T/A Vehicle Maintenance etc,Transport-Contract Hire,J01374,Transport Related Expenditure ,Direct Transport Costs        ,CA55,Specialist Maint. (Off Site)            ,568.78,31/10/2013,R,KINGSLEY COMM COMPONENTS LTD  
528,CS -Oth Operating Inc & Expend,T/A Vehicle Maintenance etc,Transport-Contract Hire,J01374,Transport Related Expenditure ,Direct Transport Costs        ,CA55,Specialist Maint. (Off Site)            ,586.68,24/10/2013,R,KINGSLEY COMM COMPONENTS LTD  
529,CS -Oth Operating Inc & Expend,T/A Vehicle Maintenance etc,Transport-Contract Hire,J01374,Transport Related Expenditure ,Direct Transport Costs        ,CA55,Specialist Maint. (Off Site)            ,577.38,31/10/2013,R,KINGSLEY COMM COMPONENTS LTD  
530,CS -Oth Operating Inc & Expend,T/A Vehicle Maintenance etc,Transport-Contract Hire,J01374,Transport Related Expenditure ,Direct Transport Costs        ,CA55,Specialist Maint. (Off Site)            ,585.78,31/10/2013,R,KINGSLEY COMM COMPONENTS LTD  
531,CS -Oth Operating Inc & Expend,T/A Vehicle Maintenance etc,Transport-Contract Hire,J01374,Transport Related Expenditure ,Direct Transport Costs        ,CA55,Specialist Maint. (Off Site)            ,568.78,24/10/2013,R,KINGSLEY COMM COMPONENTS LTD  
532,CS -Oth Operating Inc & Expend,T/A Vehicle Maintenance etc,Transport-Contract Hire,J01374,Transport Related Expenditure ,Direct Transport Costs        ,CA56,Specialist Maint. (On Site)             ,506.25,10/11/2013,R,R.J.H.WELDING                 
533,CS -Oth Operating Inc & Expend,T/A Vehicle Maintenance etc,Transport-Contract Hire,J01374,Transport Related Expenditure ,Direct Transport Costs        ,CA56,Specialist Maint. (On Site)             ,"1,897.50",10/11/2013,R,R.J.H.WELDING                 
534,CS -Oth Operating Inc & Expend,T/A Vehicle Maintenance etc,Transport-Contract Hire,J01374,Transport Related Expenditure ,Direct Transport Costs        ,CA56,Specialist Maint. (On Site)             ,936.18,10/11/2013,R,R.J.H.WELDING                 
535,CS -Oth Operating Inc & Expend,T/A Vehicle Maintenance etc,Transport-Contract Hire,J01374,Transport Related Expenditure ,Direct Transport Costs        ,CA56,Specialist Maint. (On Site)             ,525,10/11/2013,R,R.J.H.WELDING                 
536,CS -Oth Operating Inc & Expend,T/A Vehicle Maintenance etc,Transport-Contract Hire,J01374,Transport Related Expenditure ,Direct Transport Costs        ,CA56,Specialist Maint. (On Site)             ,"1,150.00",10/11/2013,R,R.J.H.WELDING                 
537,CS -Oth Operating Inc & Expend,T/A Vehicle Maintenance etc,Transport-Contract Hire,J01374,Transport Related Expenditure ,Direct Transport Costs        ,CA56,Specialist Maint. (On Site)             ,661.75,10/11/2013,R,R.J.H.WELDING                 
538,CS -Oth Operating Inc & Expend,T/A Vehicle Maintenance etc,Transport-Contract Hire,J01374,Transport Related Expenditure ,Direct Transport Costs        ,CA56,Specialist Maint. (On Site)             ,"1,552.50",10/11/2013,R,R.J.H.WELDING                 
539,CS -Oth Operating Inc & Expend,T/A Vehicle Maintenance etc,Transport-Contract Hire,J01374,Transport Related Expenditure ,Direct Transport Costs        ,CA56,Specialist Maint. (On Site)             ,575,10/11/2013,R,R.J.H.WELDING                 
540,CS -Oth Operating Inc & Expend,T/A Vehicle Maintenance etc,Transport-Contract Hire,J01374,Transport Related Expenditure ,Direct Transport Costs        ,CA72,Vehicle Parts                           ,785.24,29/10/2013,R,DENNIS EAGLE LIMITED          
541,CS -Oth Operating Inc & Expend,T/A Vehicle Maintenance etc,Transport-Contract Hire,J01374,Transport Related Expenditure ,Direct Transport Costs        ,CA72,Vehicle Parts                           ,524.29,28/10/2013,R,GEESINK NORBA                 
542,CS -Oth Operating Inc & Expend,T/A Vehicle Maintenance etc,Transport-Contract Hire,J01374,Transport Related Expenditure ,Direct Transport Costs        ,CA72,Vehicle Parts                           ,556.92,11/11/2013,R,COMMERCIAL & PLANT LTD        
543,CS -Oth Operating Inc & Expend,T/A Vehicle Maintenance etc,Transport-Contract Hire,J01374,Transport Related Expenditure ,Direct Transport Costs        ,CA72,Vehicle Parts                           ,"1,048.58",25/10/2013,R,GEESINK NORBA                 
544,CS -Oth Operating Inc & Expend,T/A Vehicle Maintenance etc,Transport-Contract Hire,J01374,Transport Related Expenditure ,Direct Transport Costs        ,CA72,Vehicle Parts                           ,"1,893.40",21/11/2013,R,REDACTED
545,CS -Oth Operating Inc & Expend,T/A Vehicle Maintenance etc,Transport-Contract Hire,J01374,Transport Related Expenditure ,Direct Transport Costs        ,CA72,Vehicle Parts                           ,"1,060.00",24/10/2013,R,CBOC LUBRICANTS               
546,CS -Oth Operating Inc & Expend,T/A Vehicle Maintenance etc,Transport-Contract Hire,J01374,Transport Related Expenditure ,Contract Hire and Op Leasing  ,CC53,Plant Hire for MRCS                     ,"1,932.00",04/11/2013,R,GVS HIRE LTD                  
547,CS -Oth Operating Inc & Expend,T/A Vehicle Maintenance etc,Transport-Contract Hire,J01374,Transport Related Expenditure ,Contract Hire and Op Leasing  ,CC53,Plant Hire for MRCS                     ,759,31/10/2013,R,REDACTED
548,CS -Oth Operating Inc & Expend,T/A Vehicle Maintenance etc,Transport-Contract Hire,J01374,Transport Related Expenditure ,Contract Hire and Op Leasing  ,CC53,Plant Hire for MRCS                     ,700,31/10/2013,R,B&T PLANT HIRE LTD            
549,CS -Oth Operating Inc & Expend,T/A Vehicle Maintenance etc,Transport-Contract Hire,J01374,Transport Related Expenditure ,Contract Hire and Op Leasing  ,CC53,Plant Hire for MRCS                     ,850,07/11/2013,R,FIVEWAYS MUNICIPAL VEHICLE HIR
550,CS -Oth Operating Inc & Expend,T/A Vehicle Maintenance etc,Transport-Contract Hire,J01374,Transport Related Expenditure ,Contract Hire and Op Leasing  ,CC53,Plant Hire for MRCS                     ,850,07/11/2013,R,FIVEWAYS MUNICIPAL VEHICLE HIR
551,CS -Oth Operating Inc & Expend,T/A Vehicle Maintenance etc,Transport-Contract Hire,J01374,Transport Related Expenditure ,Contract Hire and Op Leasing  ,CC53,Plant Hire for MRCS                     ,620,31/10/2013,R,B&T PLANT HIRE LTD            
552,CS -Oth Operating Inc & Expend,T/A Vehicle Maintenance etc,Transport-Contract Hire,J01374,Transport Related Expenditure ,Contract Hire and Op Leasing  ,CC53,Plant Hire for MRCS                     ,850,04/11/2013,R,FIVEWAYS MUNICIPAL VEHICLE HIR
553,CS -Oth Operating Inc & Expend,T/A Vehicle Maintenance etc,Transport-Contract Hire,J01374,Transport Related Expenditure ,Contract Hire and Op Leasing  ,CC56,Plant Hire for Leisure                  ,"1,755.00",31/10/2013,R,REDACTED
554,CS -Oth Operating Inc & Expend,T/A Vehicle Maintenance etc,Transport-Contract Hire,J01374,Transport Related Expenditure ,Contract Hire and Op Leasing  ,CC57,Pland Hire for Housing                  ,940,31/10/2013,R,REDACTED
555,CS -Oth Operating Inc & Expend,T/A Vehicle Maintenance etc,Transport-Contract Hire,J01374,Transport Related Expenditure ,Contract Hire and Op Leasing  ,CC59,HIRING TRANSPORT OPERATIONS             ,"1,518.00",31/10/2013,R,BURNT TREE VEHICLE RENTAL     
556,CS -Oth Operating Inc & Expend,T/A Vehicle Maintenance etc,Transport-Contract Hire,J01374,Transport Related Expenditure ,Contract Hire and Op Leasing  ,CC59,HIRING TRANSPORT OPERATIONS             ,"2,238.32",31/10/2013,R,REDACTED
557,CS -Oth Operating Inc & Expend,T/A Vehicle Maintenance etc,Transport-Contract Hire,J01374,Transport Related Expenditure ,Contract Hire and Op Leasing  ,CC59,HIRING TRANSPORT OPERATIONS             ,"1,518.00",31/10/2013,R,BURNT TREE VEHICLE RENTAL     
558,CS -Oth Operating Inc & Expend,T/A Vehicle Maintenance etc,Transport-Contract Hire,J01374,Transport Related Expenditure ,Contract Hire and Op Leasing  ,CC59,HIRING TRANSPORT OPERATIONS             ,"1,518.00",31/10/2013,R,BURNT TREE VEHICLE RENTAL     
559,CS -Oth Operating Inc & Expend,T/A Vehicle Maintenance etc,Transport-Contract Hire,J01374,Transport Related Expenditure ,Contract Hire and Op Leasing  ,CC64,HIRING TRANSPORT SEN CABS               ,"2,206.26",31/10/2013,R,KINGSTON ACCESSIBILITY TRAN LT
560,CS -Oth Operating Inc & Expend,T/A Vehicle Maintenance etc,Transport-Contract Hire,J01374,Transport Related Expenditure ,Contract Hire and Op Leasing  ,CC64,HIRING TRANSPORT SEN CABS               ,"1,370.00",31/10/2013,R,GALPINS SERVICE               
561,CS -Oth Operating Inc & Expend,T/A Vehicle Maintenance etc,Transport-Contract Hire,J01374,Transport Related Expenditure ,Contract Hire and Op Leasing  ,CC64,HIRING TRANSPORT SEN CABS               ,"1,260.00",17/11/2013,R,SHERWOOD TRANSPORT GROUP      
562,CS -Oth Operating Inc & Expend,T/A Vehicle Maintenance etc,Transport-Contract Hire,J01374,Transport Related Expenditure ,Contract Hire and Op Leasing  ,CC64,HIRING TRANSPORT SEN CABS               ,"1,130.50",31/10/2013,R,CAPITAL CARS                  
563,CS -Oth Operating Inc & Expend,T/A Vehicle Maintenance etc,Transport-Contract Hire,J01374,Transport Related Expenditure ,Contract Hire and Op Leasing  ,CC64,HIRING TRANSPORT SEN CABS               ,720,31/10/2013,R,BARCLAYS ASSET & SALES FINANCE
564,CS -Oth Operating Inc & Expend,T/A Vehicle Maintenance etc,Transport-Contract Hire,J01374,Transport Related Expenditure ,Contract Hire and Op Leasing  ,CC64,HIRING TRANSPORT SEN CABS               ,588,31/10/2013,R,NVCAR HIRE LTD                
565,CS -Oth Operating Inc & Expend,T/A Vehicle Maintenance etc,Transport-Contract Hire,J01374,Transport Related Expenditure ,Contract Hire and Op Leasing  ,CC64,HIRING TRANSPORT SEN CABS               ,"1,330.00",31/10/2013,R,KINGSTON ACCESSIBILITY TRAN LT
566,CS -Oth Operating Inc & Expend,T/A Vehicle Maintenance etc,Transport-Contract Hire,J01374,Transport Related Expenditure ,Contract Hire and Op Leasing  ,CC64,HIRING TRANSPORT SEN CABS               ,"1,782.00",17/11/2013,R,SHERWOOD TRANSPORT GROUP      
567,CS -Oth Operating Inc & Expend,T/A Vehicle Maintenance etc,Transport-Contract Hire,J01374,Transport Related Expenditure ,Contract Hire and Op Leasing  ,CC64,HIRING TRANSPORT SEN CABS               ,748,31/10/2013,R,CHEAM STATION CARS            
568,CS -Oth Operating Inc & Expend,T/A Vehicle Maintenance etc,Transport-Contract Hire,J01374,Transport Related Expenditure ,Contract Hire and Op Leasing  ,CC64,HIRING TRANSPORT SEN CABS               ,"1,728.00",31/10/2013,R,KINGSTON ACCESSIBILITY TRAN LT
569,CS -Oth Operating Inc & Expend,T/A Vehicle Maintenance etc,Transport-Contract Hire,J01374,Transport Related Expenditure ,Contract Hire and Op Leasing  ,CC64,HIRING TRANSPORT SEN CABS               ,"1,188.00",31/10/2013,R,CAPITAL CARS                  
570,CS -Oth Operating Inc & Expend,T/A Vehicle Maintenance etc,Transport-Contract Hire,J01374,Transport Related Expenditure ,Contract Hire and Op Leasing  ,CC64,HIRING TRANSPORT SEN CABS               ,"1,036.00",25/10/2013,R,SILVERBURN FINANCE (UK) LTD   
571,CS -Oth Operating Inc & Expend,T/A Vehicle Maintenance etc,Transport-Contract Hire,J01374,Transport Related Expenditure ,Contract Hire and Op Leasing  ,CC64,HIRING TRANSPORT SEN CABS               ,"2,548.80",31/10/2013,R,BARCLAYS ASSET & SALES FINANCE
572,CS -Oth Operating Inc & Expend,T/A Vehicle Maintenance etc,Transport-Contract Hire,J01374,Transport Related Expenditure ,Contract Hire and Op Leasing  ,CC64,HIRING TRANSPORT SEN CABS               ,"3,222.00",25/10/2013,R,SILVERBURN FINANCE (UK) LTD   
573,CS -Oth Operating Inc & Expend,T/A Vehicle Maintenance etc,Transport-Contract Hire,J01374,Transport Related Expenditure ,Contract Hire and Op Leasing  ,CC64,HIRING TRANSPORT SEN CABS               ,"2,850.00",27/10/2013,R,WALLINGTON CARS & COURIERS LTD
574,CS -Oth Operating Inc & Expend,T/A Vehicle Maintenance etc,Transport-Contract Hire,J01374,Transport Related Expenditure ,Contract Hire and Op Leasing  ,CC64,HIRING TRANSPORT SEN CABS               ,525,31/10/2013,R,CAPITAL CARS                  
575,CS -Oth Operating Inc & Expend,T/A Vehicle Maintenance etc,Transport-Contract Hire,J01374,Transport Related Expenditure ,Contract Hire and Op Leasing  ,CC64,HIRING TRANSPORT SEN CABS               ,770,31/10/2013,R,CAPITAL CARS                  
576,CS -Oth Operating Inc & Expend,T/A Vehicle Maintenance etc,Transport-Contract Hire,J01374,Transport Related Expenditure ,Contract Hire and Op Leasing  ,CC64,HIRING TRANSPORT SEN CABS               ,"2,660.00",31/10/2013,R,BARCLAYS ASSET & SALES FINANCE
577,CS -Oth Operating Inc & Expend,T/A Vehicle Maintenance etc,Transport-Contract Hire,J01374,Transport Related Expenditure ,Contract Hire and Op Leasing  ,CC64,HIRING TRANSPORT SEN CABS               ,"3,420.00",31/10/2013,R,BARCLAYS ASSET & SALES FINANCE
578,CS -Oth Operating Inc & Expend,T/A Vehicle Maintenance etc,Transport-Contract Hire,J01374,Transport Related Expenditure ,Contract Hire and Op Leasing  ,CC64,HIRING TRANSPORT SEN CABS               ,"1,512.00",31/10/2013,R,SILVERBURN FINANCE (UK) LTD   
579,CS -Oth Operating Inc & Expend,T/A Vehicle Maintenance etc,Transport-Contract Hire,J01374,Transport Related Expenditure ,Contract Hire and Op Leasing  ,CC64,HIRING TRANSPORT SEN CABS               ,"2,204.00",31/10/2013,R,BARCLAYS ASSET & SALES FINANCE
580,CS -Oth Operating Inc & Expend,T/A Vehicle Maintenance etc,Transport-Contract Hire,J01374,Transport Related Expenditure ,Contract Hire and Op Leasing  ,CC64,HIRING TRANSPORT SEN CABS               ,723.96,25/10/2013,R,SILVERBURN FINANCE (UK) LTD   
581,CS -Oth Operating Inc & Expend,T/A Vehicle Maintenance etc,Transport-Contract Hire,J01374,Transport Related Expenditure ,Contract Hire and Op Leasing  ,CC64,HIRING TRANSPORT SEN CABS               ,"3,021.00",31/10/2013,R,KINGSTON ACCESSIBILITY TRAN LT
582,CS -Oth Operating Inc & Expend,T/A Vehicle Maintenance etc,Transport-Contract Hire,J01374,Transport Related Expenditure ,Contract Hire and Op Leasing  ,CC64,HIRING TRANSPORT SEN CABS               ,630,01/11/2013,R,AERIAL CAR SERVICES LTD       
583,CS -Oth Operating Inc & Expend,T/A Vehicle Maintenance etc,Transport-Contract Hire,J01374,Transport Related Expenditure ,Contract Hire and Op Leasing  ,CC64,HIRING TRANSPORT SEN CABS               ,"1,519.24",31/10/2013,R,KINGSTON ACCESSIBILITY TRAN LT
584,CS -Oth Operating Inc & Expend,T/A Vehicle Maintenance etc,Transport-Contract Hire,J01374,Transport Related Expenditure ,Contract Hire and Op Leasing  ,CC64,HIRING TRANSPORT SEN CABS               ,"3,021.00",31/10/2013,R,BRUNSWICK CARS LTD            
585,CS -Oth Operating Inc & Expend,T/A Vehicle Maintenance etc,Transport-Contract Hire,J01374,Transport Related Expenditure ,Contract Hire and Op Leasing  ,CC64,HIRING TRANSPORT SEN CABS               ,"1,296.00",31/10/2013,R,NVCAR HIRE LTD                
586,CS -Oth Operating Inc & Expend,T/A Vehicle Maintenance etc,Transport-Contract Hire,J01374,Transport Related Expenditure ,Contract Hire and Op Leasing  ,CC64,HIRING TRANSPORT SEN CABS               ,792,01/11/2013,R,AERIAL CAR SERVICES LTD       
587,CS -Oth Operating Inc & Expend,T/A Vehicle Maintenance etc,Transport-Contract Hire,J01374,Transport Related Expenditure ,Contract Hire and Op Leasing  ,CC64,HIRING TRANSPORT SEN CABS               ,"1,312.00",31/10/2013,R,CAPITAL CARS                  
588,CS -Oth Operating Inc & Expend,T/A Vehicle Maintenance etc,Transport-Contract Hire,J01374,Transport Related Expenditure ,Contract Hire and Op Leasing  ,CC64,HIRING TRANSPORT SEN CABS               ,"1,577.26",31/10/2013,R,KINGSTON ACCESSIBILITY TRAN LT
589,CS -Oth Operating Inc & Expend,T/A Vehicle Maintenance etc,Transport-Contract Hire,J01374,Transport Related Expenditure ,Contract Hire and Op Leasing  ,CC64,HIRING TRANSPORT SEN CABS               ,"1,737.15",31/10/2013,R,KINGSTON ACCESSIBILITY TRAN LT
590,CS -Oth Operating Inc & Expend,T/A Vehicle Maintenance etc,Transport-Contract Hire,J01374,Transport Related Expenditure ,Contract Hire and Op Leasing  ,CC64,HIRING TRANSPORT SEN CABS               ,"1,254.00",25/10/2013,R,SILVERBURN FINANCE (UK) LTD   
591,CS -Oth Operating Inc & Expend,T/A Vehicle Maintenance etc,Transport-Contract Hire,J01374,Transport Related Expenditure ,Contract Hire and Op Leasing  ,CC64,HIRING TRANSPORT SEN CABS               ,807.5,17/11/2013,R,SHERWOOD TRANSPORT GROUP      
592,CS -Oth Operating Inc & Expend,T/A Vehicle Maintenance etc,Transport-Contract Hire,J01374,Transport Related Expenditure ,Contract Hire and Op Leasing  ,CC64,HIRING TRANSPORT SEN CABS               ,"1,686.06",31/10/2013,R,KINGSTON ACCESSIBILITY TRAN LT
593,CS -Oth Operating Inc & Expend,T/A Vehicle Maintenance etc,Transport-Contract Hire,J01374,Transport Related Expenditure ,Contract Hire and Op Leasing  ,CC64,HIRING TRANSPORT SEN CABS               ,752,31/10/2013,R,CAPITAL CARS                  
594,CS -Oth Operating Inc & Expend,T/A Vehicle Maintenance etc,Transport-Contract Hire,J01374,Transport Related Expenditure ,Contract Hire and Op Leasing  ,CC64,HIRING TRANSPORT SEN CABS               ,"1,663.20",25/10/2013,R,SILVERBURN FINANCE (UK) LTD   
595,CS -Oth Operating Inc & Expend,T/A Vehicle Maintenance etc,Transport-Contract Hire,J01374,Transport Related Expenditure ,Contract Hire and Op Leasing  ,CC64,HIRING TRANSPORT SEN CABS               ,"1,080.00",31/10/2013,R,SILVERBURN FINANCE (UK) LTD   
596,CS -Oth Operating Inc & Expend,T/A Vehicle Maintenance etc,Transport-Contract Hire,J01374,Transport Related Expenditure ,Contract Hire and Op Leasing  ,CC64,HIRING TRANSPORT SEN CABS               ,806,31/10/2013,R,NVCAR HIRE LTD                
597,CS -Oth Operating Inc & Expend,T/A Vehicle Maintenance etc,Transport-Contract Hire,J01374,Transport Related Expenditure ,Contract Hire and Op Leasing  ,CC64,HIRING TRANSPORT SEN CABS               ,504,31/10/2013,R,CHEAM STATION CARS            
598,CS -Oth Operating Inc & Expend,T/A Vehicle Maintenance etc,Transport-Contract Hire,J01374,Transport Related Expenditure ,Contract Hire and Op Leasing  ,CC64,HIRING TRANSPORT SEN CABS               ,972,25/10/2013,R,SILVERBURN FINANCE (UK) LTD   
599,CS -Oth Operating Inc & Expend,T/A Vehicle Maintenance etc,Transport-Contract Hire,J01374,Transport Related Expenditure ,Contract Hire and Op Leasing  ,CC64,HIRING TRANSPORT SEN CABS               ,"1,095.00",31/10/2013,R,NVCAR HIRE LTD                
600,CS -Oth Operating Inc & Expend,T/A Vehicle Maintenance etc,Transport-Contract Hire,J01374,Transport Related Expenditure ,Contract Hire and Op Leasing  ,CC64,HIRING TRANSPORT SEN CABS               ,"1,258.00",31/10/2013,R,CAPITAL CARS                  
601,CS -Oth Operating Inc & Expend,T/A Vehicle Maintenance etc,Transport-Contract Hire,J01374,Transport Related Expenditure ,Contract Hire and Op Leasing  ,CC64,HIRING TRANSPORT SEN CABS               ,858,31/10/2013,R,NVCAR HIRE LTD                
602,CS -Oth Operating Inc & Expend,T/A Vehicle Maintenance etc,Transport-Contract Hire,J01374,Transport Related Expenditure ,Contract Hire and Op Leasing  ,CC64,HIRING TRANSPORT SEN CABS               ,"2,356.00",31/10/2013,R,KINGSTON ACCESSIBILITY TRAN LT
603,CS -Oth Operating Inc & Expend,T/A Vehicle Maintenance etc,Transport-Contract Hire,J01374,Transport Related Expenditure ,Contract Hire and Op Leasing  ,CC64,HIRING TRANSPORT SEN CABS               ,"1,739.00",31/10/2013,R,CAPITAL CARS                  
604,CS -Oth Operating Inc & Expend,T/A Vehicle Maintenance etc,Transport-Contract Hire,J01374,Transport Related Expenditure ,Contract Hire and Op Leasing  ,CC64,HIRING TRANSPORT SEN CABS               ,740,29/10/2013,R,KENDALL CARS                  
605,CS -Oth Operating Inc & Expend,T/A Vehicle Maintenance etc,Transport-Contract Hire,J01374,Transport Related Expenditure ,Contract Hire and Op Leasing  ,CC64,HIRING TRANSPORT SEN CABS               ,544,31/10/2013,R,BARCLAYS ASSET & SALES FINANCE
606,CS -Oth Operating Inc & Expend,T/A Vehicle Maintenance etc,Transport-Contract Hire,J01374,Transport Related Expenditure ,Contract Hire and Op Leasing  ,CC64,HIRING TRANSPORT SEN CABS               ,532,25/10/2013,R,SILVERBURN FINANCE (UK) LTD   
607,CS -Oth Operating Inc & Expend,T/A Vehicle Maintenance etc,Transport-Contract Hire,J01374,Transport Related Expenditure ,Contract Hire and Op Leasing  ,CC64,HIRING TRANSPORT SEN CABS               ,"1,018.00",31/10/2013,R,BARCLAYS ASSET & SALES FINANCE
608,CS -Oth Operating Inc & Expend,T/A Vehicle Maintenance etc,Transport-Contract Hire,J01374,Transport Related Expenditure ,Contract Hire and Op Leasing  ,CC64,HIRING TRANSPORT SEN CABS               ,"1,054.00",31/10/2013,R,A STAR TRANSPORT LIMITED      
609,CS -Oth Operating Inc & Expend,T/A Vehicle Maintenance etc,Transport-Contract Hire,J01374,Transport Related Expenditure ,Contract Hire and Op Leasing  ,CC64,HIRING TRANSPORT SEN CABS               ,795,17/11/2013,R,SHERWOOD TRANSPORT GROUP      
610,CS -Oth Operating Inc & Expend,T/A Vehicle Maintenance etc,Transport-Contract Hire,J01374,Transport Related Expenditure ,Contract Hire and Op Leasing  ,CC64,HIRING TRANSPORT SEN CABS               ,"1,248.00",31/10/2013,R,NVCAR HIRE LTD                
611,CS -Oth Operating Inc & Expend,T/A Vehicle Maintenance etc,Transport-Contract Hire,J01374,Transport Related Expenditure ,Contract Hire and Op Leasing  ,CC64,HIRING TRANSPORT SEN CABS               ,"1,440.00",17/11/2013,R,SHERWOOD TRANSPORT GROUP      
612,CS -Oth Operating Inc & Expend,T/A Vehicle Maintenance etc,Transport-Contract Hire,J01374,Transport Related Expenditure ,Contract Hire and Op Leasing  ,CC64,HIRING TRANSPORT SEN CABS               ,"1,764.00",31/10/2013,R,CAPITAL CARS                  
613,CS -Oth Operating Inc & Expend,T/A Vehicle Maintenance etc,Transport-Contract Hire,J01374,Transport Related Expenditure ,Contract Hire and Op Leasing  ,CC64,HIRING TRANSPORT SEN CABS               ,"1,862.00",31/10/2013,R,KINGSTON ACCESSIBILITY TRAN LT
614,CS -Oth Operating Inc & Expend,T/A Vehicle Maintenance etc,Transport-Contract Hire,J01374,Transport Related Expenditure ,Contract Hire and Op Leasing  ,CC64,HIRING TRANSPORT SEN CABS               ,750,31/10/2013,R,A STAR TRANSPORT LIMITED      
615,CS -Oth Operating Inc & Expend,T/A Vehicle Maintenance etc,Transport-Contract Hire,J01374,Transport Related Expenditure ,Contract Hire and Op Leasing  ,CC64,HIRING TRANSPORT SEN CABS               ,"1,944.00",31/10/2013,R,CAPITAL CARS                  
616,CS -Oth Operating Inc & Expend,T/A Vehicle Maintenance etc,Transport-Contract Hire,J01374,Transport Related Expenditure ,Contract Hire and Op Leasing  ,CC64,HIRING TRANSPORT SEN CABS               ,840,29/10/2013,R,KENDALL CARS                  
617,CS -Oth Operating Inc & Expend,T/A Vehicle Maintenance etc,Transport-Contract Hire,J01374,Transport Related Expenditure ,Contract Hire and Op Leasing  ,CC64,HIRING TRANSPORT SEN CABS               ,"2,261.00",17/11/2013,R,SHERWOOD TRANSPORT GROUP      
618,CS -Oth Operating Inc & Expend,T/A Vehicle Maintenance etc,Transport-Contract Hire,J01374,Transport Related Expenditure ,Contract Hire and Op Leasing  ,CC64,HIRING TRANSPORT SEN CABS               ,"1,062.00",31/10/2013,R,NVCAR HIRE LTD                
619,CS -Oth Operating Inc & Expend,T/A Vehicle Maintenance etc,Transport-Contract Hire,J01374,Transport Related Expenditure ,Contract Hire and Op Leasing  ,CC64,HIRING TRANSPORT SEN CABS               ,"2,774.00",31/10/2013,R,KINGSTON ACCESSIBILITY TRAN LT
620,CS -Oth Operating Inc & Expend,T/A Vehicle Maintenance etc,Transport-Contract Hire,J01374,Transport Related Expenditure ,Contract Hire and Op Leasing  ,CC64,HIRING TRANSPORT SEN CABS               ,"2,520.00",31/10/2013,R,BARCLAYS ASSET & SALES FINANCE
621,CS -Oth Operating Inc & Expend,T/A Vehicle Maintenance etc,Transport-Contract Hire,J01374,Transport Related Expenditure ,Contract Hire and Op Leasing  ,CC64,HIRING TRANSPORT SEN CABS               ,578,31/10/2013,R,BRUNSWICK CARS LTD            
622,CS -Oth Operating Inc & Expend,T/A Vehicle Maintenance etc,Transport-Contract Hire,J01374,Transport Related Expenditure ,Contract Hire and Op Leasing  ,CC64,HIRING TRANSPORT SEN CABS               ,"1,260.00",17/11/2013,R,SHERWOOD TRANSPORT GROUP      
623,CS -Oth Operating Inc & Expend,T/A Vehicle Maintenance etc,Transport-Contract Hire,J01374,Transport Related Expenditure ,Contract Hire and Op Leasing  ,CC64,HIRING TRANSPORT SEN CABS               ,"2,991.36",25/10/2013,R,SILVERBURN FINANCE (UK) LTD   
624,CS -Oth Operating Inc & Expend,T/A Vehicle Maintenance etc,Transport-Contract Hire,J01374,Transport Related Expenditure ,Contract Hire and Op Leasing  ,CC64,HIRING TRANSPORT SEN CABS               ,"1,481.62",31/10/2013,R,KINGSTON ACCESSIBILITY TRAN LT
625,CS -Oth Operating Inc & Expend,T/A Vehicle Maintenance etc,Transport-Contract Hire,J01374,Transport Related Expenditure ,Contract Hire and Op Leasing  ,CC64,HIRING TRANSPORT SEN CABS               ,"1,839.20",17/11/2013,R,SHERWOOD TRANSPORT GROUP      
626,CS -Oth Operating Inc & Expend,T/A Vehicle Maintenance etc,Transport-Contract Hire,J01374,Transport Related Expenditure ,Contract Hire and Op Leasing  ,CC64,HIRING TRANSPORT SEN CABS               ,"1,422.00",17/11/2013,R,SHERWOOD TRANSPORT GROUP      
627,CS -Oth Operating Inc & Expend,T/A Vehicle Maintenance etc,Transport-Contract Hire,J01374,Transport Related Expenditure ,Contract Hire and Op Leasing  ,CC64,HIRING TRANSPORT SEN CABS               ,"1,872.00",31/10/2013,R,BARCLAYS ASSET & SALES FINANCE
628,CS -Oth Operating Inc & Expend,T/A Vehicle Maintenance etc,Transport-Contract Hire,J01374,Transport Related Expenditure ,Contract Hire and Op Leasing  ,CC64,HIRING TRANSPORT SEN CABS               ,800,17/11/2013,R,SHERWOOD TRANSPORT GROUP      
629,CS -Oth Operating Inc & Expend,T/A Vehicle Maintenance etc,Transport-Contract Hire,J01374,Transport Related Expenditure ,Contract Hire and Op Leasing  ,CC64,HIRING TRANSPORT SEN CABS               ,"1,140.00",31/10/2013,R,GALPINS SERVICE               
630,CS -Oth Operating Inc & Expend,T/A Vehicle Maintenance etc,Transport-Contract Hire,J01374,Transport Related Expenditure ,Contract Hire and Op Leasing  ,CC64,HIRING TRANSPORT SEN CABS               ,"1,080.00",31/10/2013,R,SILVERBURN FINANCE (UK) LTD   
631,CS -Oth Operating Inc & Expend,T/A Vehicle Maintenance etc,Transport-Contract Hire,J01374,Transport Related Expenditure ,Contract Hire and Op Leasing  ,CC64,HIRING TRANSPORT SEN CABS               ,"1,786.00",30/09/2013,R,CAPITAL CARS                  
632,CS -Oth Operating Inc & Expend,T/A Vehicle Maintenance etc,Transport-Contract Hire,J01374,Transport Related Expenditure ,Contract Hire and Op Leasing  ,CC64,HIRING TRANSPORT SEN CABS               ,"2,376.00",31/10/2013,R,BARCLAYS ASSET & SALES FINANCE
633,CS -Oth Operating Inc & Expend,T/A Vehicle Maintenance etc,Transport-Contract Hire,J01374,Transport Related Expenditure ,Contract Hire and Op Leasing  ,CC64,HIRING TRANSPORT SEN CABS               ,550,31/10/2013,R,GALPINS SERVICE               
634,CS -Oth Operating Inc & Expend,T/A Vehicle Maintenance etc,Transport-Contract Hire,J01374,Transport Related Expenditure ,Contract Hire and Op Leasing  ,CC64,HIRING TRANSPORT SEN CABS               ,"1,008.00",25/10/2013,R,SILVERBURN FINANCE (UK) LTD   
635,CS -Oth Operating Inc & Expend,T/A Vehicle Maintenance etc,Transport-Contract Hire,J01374,Transport Related Expenditure ,Contract Hire and Op Leasing  ,CC64,HIRING TRANSPORT SEN CABS               ,646,31/10/2013,R,CAPITAL CARS                  
636,CS -Oth Operating Inc & Expend,T/A Vehicle Maintenance etc,Transport-Contract Hire,J01374,Transport Related Expenditure ,Contract Hire and Op Leasing  ,CC64,HIRING TRANSPORT SEN CABS               ,"1,080.00",31/10/2013,R,CHEAM STATION CARS            
637,CS -Oth Operating Inc & Expend,T/A Vehicle Maintenance etc,Transport-Contract Hire,J01374,Transport Related Expenditure ,Contract Hire and Op Leasing  ,CC64,HIRING TRANSPORT SEN CABS               ,"2,466.00",31/10/2013,R,NVCAR HIRE LTD                
638,CS -Oth Operating Inc & Expend,T/A Vehicle Maintenance etc,Transport-Contract Hire,J01374,Transport Related Expenditure ,Contract Hire and Op Leasing  ,CC64,HIRING TRANSPORT SEN CABS               ,680,31/10/2013,R,NVCAR HIRE LTD                
639,CS -Oth Operating Inc & Expend,T/A Vehicle Maintenance etc,Transport-Contract Hire,J01374,Transport Related Expenditure ,Contract Hire and Op Leasing  ,CC64,HIRING TRANSPORT SEN CABS               ,725,17/11/2013,R,SHERWOOD TRANSPORT GROUP      
640,CS -Oth Operating Inc & Expend,T/A Vehicle Maintenance etc,Transport-Contract Hire,J01374,Transport Related Expenditure ,Contract Hire and Op Leasing  ,CC64,HIRING TRANSPORT SEN CABS               ,"1,508.04",31/10/2013,R,KINGSTON ACCESSIBILITY TRAN LT
641,CS -Oth Operating Inc & Expend,T/A Vehicle Maintenance etc,Transport-Contract Hire,J01374,Transport Related Expenditure ,Contract Hire and Op Leasing  ,CC64,HIRING TRANSPORT SEN CABS               ,"3,230.00",31/10/2013,R,BARCLAYS ASSET & SALES FINANCE
642,CS -Oth Operating Inc & Expend,T/A Vehicle Maintenance etc,Transport-Contract Hire,J01374,Transport Related Expenditure ,Contract Hire and Op Leasing  ,CC64,HIRING TRANSPORT SEN CABS               ,"1,709.43",31/10/2013,R,KINGSTON ACCESSIBILITY TRAN LT
643,CS -Oth Operating Inc & Expend,T/A Vehicle Maintenance etc,Transport-Contract Hire,J01374,Transport Related Expenditure ,Contract Hire and Op Leasing  ,CC64,HIRING TRANSPORT SEN CABS               ,"1,200.00",31/10/2013,R,CHEAM STATION CARS            
644,CS -Oth Operating Inc & Expend,T/A Vehicle Maintenance etc,Transport-Contract Hire,J01374,Transport Related Expenditure ,Contract Hire and Op Leasing  ,CC64,HIRING TRANSPORT SEN CABS               ,"3,116.00",31/10/2013,R,BARCLAYS ASSET & SALES FINANCE
645,CS -Oth Operating Inc & Expend,T/A Vehicle Maintenance etc,Transport-Contract Hire,J01374,Transport Related Expenditure ,Contract Hire and Op Leasing  ,CC64,HIRING TRANSPORT SEN CABS               ,"1,504.00",31/10/2013,R,CAPITAL CARS                  
646,CS -Oth Operating Inc & Expend,T/A Vehicle Maintenance etc,Transport-Contract Hire,J01374,Transport Related Expenditure ,Contract Hire and Op Leasing  ,CC64,HIRING TRANSPORT SEN CABS               ,"2,831.00",17/11/2013,R,SHERWOOD TRANSPORT GROUP      
647,CS -Oth Operating Inc & Expend,T/A Vehicle Maintenance etc,Transport-Contract Hire,J01374,Transport Related Expenditure ,Contract Hire and Op Leasing  ,CC64,HIRING TRANSPORT SEN CABS               ,558,31/10/2013,R,NVCAR HIRE LTD                
648,CS -Oth Operating Inc & Expend,T/A Vehicle Maintenance etc,Transport-Contract Hire,J01374,Transport Related Expenditure ,Contract Hire and Op Leasing  ,CC64,HIRING TRANSPORT SEN CABS               ,"3,021.00",17/11/2013,R,SHERWOOD TRANSPORT GROUP      
649,CS -Oth Operating Inc & Expend,T/A Vehicle Maintenance etc,Transport-Contract Hire,J01374,Transport Related Expenditure ,Contract Hire and Op Leasing  ,CC64,HIRING TRANSPORT SEN CABS               ,"2,660.00",31/10/2013,R,KINGSTON ACCESSIBILITY TRAN LT
650,CS -Oth Operating Inc & Expend,T/A Vehicle Maintenance etc,Transport-Contract Hire,J01374,Transport Related Expenditure ,Contract Hire and Op Leasing  ,CC64,HIRING TRANSPORT SEN CABS               ,648,31/10/2013,R,NVCAR HIRE LTD                
651,CS -Oth Operating Inc & Expend,T/A Vehicle Maintenance etc,Transport-Contract Hire,J01374,Transport Related Expenditure ,Contract Hire and Op Leasing  ,CC64,HIRING TRANSPORT SEN CABS               ,"1,330.00",31/10/2013,R,CAPITAL CARS                  
652,CS -Oth Operating Inc & Expend,T/A Vehicle Maintenance etc,Transport-Contract Hire,J01374,Transport Related Expenditure ,Contract Hire and Op Leasing  ,CC64,HIRING TRANSPORT SEN CABS               ,"1,728.00",31/10/2013,R,BARCLAYS ASSET & SALES FINANCE
653,CS -Oth Operating Inc & Expend,T/A Vehicle Maintenance etc,Transport-Contract Hire,J01374,Transport Related Expenditure ,Contract Hire and Op Leasing  ,CC64,HIRING TRANSPORT SEN CABS               ,"2,016.00",31/10/2013,R,KINGSTON ACCESSIBILITY TRAN LT
654,CS -Oth Operating Inc & Expend,T/A Vehicle Maintenance etc,Transport-Contract Hire,J01374,Transport Related Expenditure ,Contract Hire and Op Leasing  ,CC64,HIRING TRANSPORT SEN CABS               ,777.1,25/10/2013,R,SILVERBURN FINANCE (UK) LTD   
655,CS -Oth Operating Inc & Expend,T/A Vehicle Maintenance etc,Transport-Contract Hire,J01374,Transport Related Expenditure ,Contract Hire and Op Leasing  ,CC64,HIRING TRANSPORT SEN CABS               ,730,31/10/2013,R,GALPINS SERVICE               
656,CS -Oth Operating Inc & Expend,T/A Vehicle Maintenance etc,Transport-Contract Hire,J01374,Transport Related Expenditure ,Contract Hire and Op Leasing  ,CC64,HIRING TRANSPORT SEN CABS               ,"2,340.00",31/10/2013,R,BARCLAYS ASSET & SALES FINANCE
657,CS -Oth Operating Inc & Expend,T/A Vehicle Maintenance etc,Transport-Contract Hire,J01374,Transport Related Expenditure ,Contract Hire and Op Leasing  ,CC64,HIRING TRANSPORT SEN CABS               ,"2,703.00",17/11/2013,R,SHERWOOD TRANSPORT GROUP      
658,CS -Oth Operating Inc & Expend,T/A Vehicle Maintenance etc,Transport-Contract Hire,J01374,Transport Related Expenditure ,Contract Hire and Op Leasing  ,CC64,HIRING TRANSPORT SEN CABS               ,700,31/10/2013,R,KINGSTON ACCESSIBILITY TRAN LT
659,CS -Oth Operating Inc & Expend,T/A Vehicle Maintenance etc,Transport-Contract Hire,J01374,Transport Related Expenditure ,Contract Hire and Op Leasing  ,CC64,HIRING TRANSPORT SEN CABS               ,"1,344.00",25/10/2013,R,SILVERBURN FINANCE (UK) LTD   
660,CS -Oth Operating Inc & Expend,T/A Vehicle Maintenance etc,Transport-Contract Hire,J01374,Transport Related Expenditure ,Contract Hire and Op Leasing  ,CC64,HIRING TRANSPORT SEN CABS               ,649.44,31/10/2013,R,BARCLAYS ASSET & SALES FINANCE
661,CS -Oth Operating Inc & Expend,T/A Vehicle Maintenance etc,Transport-Contract Hire,J01374,Transport Related Expenditure ,Contract Hire and Op Leasing  ,CC64,HIRING TRANSPORT SEN CABS               ,"1,736.00",31/10/2013,R,CAPITAL CARS                  
662,CS -Oth Operating Inc & Expend,T/A Vehicle Maintenance etc,Transport-Contract Hire,J01374,Transport Related Expenditure ,Contract Hire and Op Leasing  ,CC64,HIRING TRANSPORT SEN CABS               ,"2,463.00",31/10/2013,R,GALPINS SERVICE               
663,CS -Oth Operating Inc & Expend,T/A Vehicle Maintenance etc,Transport-Contract Hire,J01374,Transport Related Expenditure ,Contract Hire and Op Leasing  ,CC64,HIRING TRANSPORT SEN CABS               ,867,31/10/2013,R,GALPINS SERVICE               
664,CS -Oth Operating Inc & Expend,T/A Vehicle Maintenance etc,Transport-Contract Hire,J01374,Transport Related Expenditure ,Contract Hire and Op Leasing  ,CC64,HIRING TRANSPORT SEN CABS               ,"2,268.00",31/10/2013,R,CAPITAL CARS                  
665,CS -Oth Operating Inc & Expend,T/A Vehicle Maintenance etc,Transport-Contract Hire,J01374,Transport Related Expenditure ,Contract Hire and Op Leasing  ,CC64,HIRING TRANSPORT SEN CABS               ,950,31/10/2013,R,KINGSTON ACCESSIBILITY TRAN LT
666,CS -Oth Operating Inc & Expend,T/A Vehicle Maintenance etc,Transport-Contract Hire,J01374,Transport Related Expenditure ,Contract Hire and Op Leasing  ,CC64,HIRING TRANSPORT SEN CABS               ,"2,402.64",31/10/2013,R,KINGSTON ACCESSIBILITY TRAN LT
667,CS -Oth Operating Inc & Expend,T/A Vehicle Maintenance etc,Transport-Contract Hire,J01374,Transport Related Expenditure ,Contract Hire and Op Leasing  ,CC64,HIRING TRANSPORT SEN CABS               ,"1,896.25",17/11/2013,R,SHERWOOD TRANSPORT GROUP      
668,CS -Oth Operating Inc & Expend,T/A Vehicle Maintenance etc,Transport-Contract Hire,J01374,Transport Related Expenditure ,Contract Hire and Op Leasing  ,CC64,HIRING TRANSPORT SEN CABS               ,"1,330.00",31/10/2013,R,NVCAR HIRE LTD                
669,CS -Oth Operating Inc & Expend,T/A Vehicle Maintenance etc,Transport-Contract Hire,J01374,Transport Related Expenditure ,Contract Hire and Op Leasing  ,CC64,HIRING TRANSPORT SEN CABS               ,"1,534.50",17/11/2013,R,SHERWOOD TRANSPORT GROUP      
670,CS -Oth Operating Inc & Expend,T/A Vehicle Maintenance etc,Transport-Contract Hire,J01374,Transport Related Expenditure ,Contract Hire and Op Leasing  ,CC64,HIRING TRANSPORT SEN CABS               ,"1,296.00",31/10/2013,R,NVCAR HIRE LTD                
671,CS -Oth Operating Inc & Expend,T/A Vehicle Maintenance etc,Transport-Contract Hire,J01374,Transport Related Expenditure ,Contract Hire and Op Leasing  ,CC64,HIRING TRANSPORT SEN CABS               ,"1,824.00",25/10/2013,R,SILVERBURN FINANCE (UK) LTD   
672,CS -Oth Operating Inc & Expend,T/A Vehicle Maintenance etc,Transport-Contract Hire,J01374,Transport Related Expenditure ,Contract Hire and Op Leasing  ,CC64,HIRING TRANSPORT SEN CABS               ,"1,216.00",31/10/2013,R,CAPITAL CARS                  
673,CS -Oth Operating Inc & Expend,T/A Vehicle Maintenance etc,Transport-Contract Hire,J01374,Transport Related Expenditure ,Contract Hire and Op Leasing  ,CC64,HIRING TRANSPORT SEN CABS               ,"1,782.00",17/11/2013,R,SHERWOOD TRANSPORT GROUP      
674,CS -Oth Operating Inc & Expend,T/A Vehicle Maintenance etc,Transport-Contract Hire,J01374,Transport Related Expenditure ,Contract Hire and Op Leasing  ,CC64,HIRING TRANSPORT SEN CABS               ,"1,512.00",31/10/2013,R,CAPITAL CARS                  
675,CS -Oth Operating Inc & Expend,T/A Vehicle Maintenance etc,Transport-Contract Hire,J01374,Transport Related Expenditure ,Contract Hire and Op Leasing  ,CC66,HIRING TRANSPORT H&SS CAB CHILDREN      ,680,31/10/2013,R,BARCLAYS ASSET & SALES FINANCE
676,CS -Oth Operating Inc & Expend,T/A Vehicle Maintenance etc,Transport-Contract Hire,J01374,Transport Related Expenditure ,Contract Hire and Op Leasing  ,CC66,HIRING TRANSPORT H&SS CAB CHILDREN      ,612,31/10/2013,R,NVCAR HIRE LTD                
677,CS -Oth Operating Inc & Expend,T/A Vehicle Maintenance etc,Transport-Contract Hire,J01374,Transport Related Expenditure ,Contract Hire and Op Leasing  ,CC66,HIRING TRANSPORT H&SS CAB CHILDREN      ,"1,836.00",31/10/2013,R,KINGSTON ACCESSIBILITY TRAN LT
678,CS -Oth Operating Inc & Expend,T/A Vehicle Maintenance etc,Transport-Contract Hire,J01374,Transport Related Expenditure ,Contract Hire and Op Leasing  ,CC66,HIRING TRANSPORT H&SS CAB CHILDREN      ,"2,339.61",31/10/2013,R,KINGSTON ACCESSIBILITY TRAN LT
679,CS -Oth Operating Inc & Expend,T/A Vehicle Maintenance etc,Transport-Contract Hire,J01374,Transport Related Expenditure ,Contract Hire and Op Leasing  ,CC66,HIRING TRANSPORT H&SS CAB CHILDREN      ,"1,296.00",31/10/2013,R,NVCAR HIRE LTD                
680,CS -Oth Operating Inc & Expend,T/A Vehicle Maintenance etc,Transport-Contract Hire,J01374,Transport Related Expenditure ,Contract Hire and Op Leasing  ,CC67,HIRING TRANSPORT H&SS CAB ADULTS        ,846,31/10/2013,R,CAPITAL CARS                  
681,CS -Oth Operating Inc & Expend,T/A Vehicle Maintenance etc,Transport-Contract Hire,J01374,Transport Related Expenditure ,Contract Hire and Op Leasing  ,CC67,HIRING TRANSPORT H&SS CAB ADULTS        ,987.69,31/10/2013,R,KINGSTON ACCESSIBILITY TRAN LT
682,CS -Oth Operating Inc & Expend,T/A Vehicle Maintenance etc,Transport-Contract Hire,J01374,Transport Related Expenditure ,Contract Hire and Op Leasing  ,CC67,HIRING TRANSPORT H&SS CAB ADULTS        ,980,31/10/2013,R,KINGSTON ACCESSIBILITY TRAN LT
683,CS -Oth Operating Inc & Expend,T/A Vehicle Maintenance etc,Transport-Contract Hire,J01374,Transport Related Expenditure ,Contract Hire and Op Leasing  ,CC67,HIRING TRANSPORT H&SS CAB ADULTS        ,"1,292.00",25/10/2013,R,SILVERBURN FINANCE (UK) LTD   
684,CS -Oth Operating Inc & Expend,T/A Vehicle Maintenance etc,Transport-Contract Hire,J01374,Transport Related Expenditure ,Contract Hire and Op Leasing  ,CC67,HIRING TRANSPORT H&SS CAB ADULTS        ,"1,450.00",31/10/2013,R,NVCAR HIRE LTD                
685,CS -Oth Operating Inc & Expend,T/A Vehicle Maintenance etc,Transport-Contract Hire,J01374,Transport Related Expenditure ,Contract Hire and Op Leasing  ,CC67,HIRING TRANSPORT H&SS CAB ADULTS        ,"1,062.00",31/10/2013,R,CAPITAL CARS                  
686,CS -Oth Operating Inc & Expend,T/A Vehicle Maintenance etc,Transport-Contract Hire,J01374,Transport Related Expenditure ,Contract Hire and Op Leasing  ,CC67,HIRING TRANSPORT H&SS CAB ADULTS        ,756,25/10/2013,R,SILVERBURN FINANCE (UK) LTD   
687,CS -Oth Operating Inc & Expend,T/A Vehicle Maintenance etc,Transport-Contract Hire,J01374,Transport Related Expenditure ,Contract Hire and Op Leasing  ,CC67,HIRING TRANSPORT H&SS CAB ADULTS        ,760,31/10/2013,R,NVCAR HIRE LTD                
688,CS -Oth Operating Inc & Expend,T/A Vehicle Maintenance etc,Transport-Contract Hire,J01374,Transport Related Expenditure ,Contract Hire and Op Leasing  ,CC67,HIRING TRANSPORT H&SS CAB ADULTS        ,896,31/10/2013,R,NVCAR HIRE LTD                
689,CS -Oth Operating Inc & Expend,T/A Vehicle Maintenance etc,Transport-Contract Hire,J01374,Transport Related Expenditure ,Contract Hire and Op Leasing  ,CC67,HIRING TRANSPORT H&SS CAB ADULTS        ,"1,280.00",31/10/2013,R,A STAR TRANSPORT LIMITED      
690,CS -Oth Operating Inc & Expend,T/A Vehicle Maintenance etc,Transport-Contract Hire,J01374,Transport Related Expenditure ,Contract Hire and Op Leasing  ,CC67,HIRING TRANSPORT H&SS CAB ADULTS        ,720,31/10/2013,R,CAPITAL CARS                  
691,CS -Oth Operating Inc & Expend,T/A Vehicle Maintenance etc,Transport-Contract Hire,J01374,Transport Related Expenditure ,Contract Hire and Op Leasing  ,CC67,HIRING TRANSPORT H&SS CAB ADULTS        ,504,31/10/2013,R,A STAR TRANSPORT LIMITED      
692,CS -Oth Operating Inc & Expend,T/A Vehicle Maintenance etc,Transport-Contract Hire,J01374,Transport Related Expenditure ,Contract Hire and Op Leasing  ,CC67,HIRING TRANSPORT H&SS CAB ADULTS        ,"2,064.94",31/10/2013,R,KINGSTON ACCESSIBILITY TRAN LT
693,CS -Oth Operating Inc & Expend,T/A Vehicle Maintenance etc,Transport-Contract Hire,J01374,Transport Related Expenditure ,Contract Hire and Op Leasing  ,CC67,HIRING TRANSPORT H&SS CAB ADULTS        ,723.96,25/10/2013,R,SILVERBURN FINANCE (UK) LTD   
694,CS -Oth Operating Inc & Expend,T/A Vehicle Maintenance etc,Transport-Contract Hire,J01374,Transport Related Expenditure ,Contract Hire and Op Leasing  ,CC67,HIRING TRANSPORT H&SS CAB ADULTS        ,740,31/10/2013,R,CAPITAL CARS                  
695,CS -Oth Operating Inc & Expend,T/A Vehicle Maintenance etc,Transport-Contract Hire,J01374,Transport Related Expenditure ,Contract Hire and Op Leasing  ,CC67,HIRING TRANSPORT H&SS CAB ADULTS        ,750,31/10/2013,R,NVCAR HIRE LTD                
696,CS -Oth Operating Inc & Expend,T/A Vehicle Maintenance etc,Transport-Contract Hire,J01374,Transport Related Expenditure ,Contract Hire and Op Leasing  ,CC67,HIRING TRANSPORT H&SS CAB ADULTS        ,836,27/10/2013,R,WALLINGTON CARS & COURIERS LTD
697,CS -Oth Operating Inc & Expend,T/A Vehicle Maintenance etc,Transport-Contract Hire,J01374,Transport Related Expenditure ,Contract Hire and Op Leasing  ,CC67,HIRING TRANSPORT H&SS CAB ADULTS        ,896,31/10/2013,R,BARCLAYS ASSET & SALES FINANCE
698,CS -Oth Operating Inc & Expend,T/A Vehicle Maintenance etc,Transport-Contract Hire,J01374,Transport Related Expenditure ,Contract Hire and Op Leasing  ,CC67,HIRING TRANSPORT H&SS CAB ADULTS        ,597.96,31/10/2013,R,KINGSTON ACCESSIBILITY TRAN LT
699,CS -Oth Operating Inc & Expend,T/A Vehicle Maintenance etc,Transport-Contract Hire,J01374,Transport Related Expenditure ,Contract Hire and Op Leasing  ,CC67,HIRING TRANSPORT H&SS CAB ADULTS        ,"2,347.00",31/10/2013,R,BARCLAYS ASSET & SALES FINANCE
700,CS -Oth Operating Inc & Expend,T/A Vehicle Maintenance etc,Transport-Contract Hire,J01374,Transport Related Expenditure ,Contract Hire and Op Leasing  ,CC67,HIRING TRANSPORT H&SS CAB ADULTS        ,"1,224.00",31/10/2013,R,BARCLAYS ASSET & SALES FINANCE
701,CS -Oth Operating Inc & Expend,T/A Vehicle Maintenance etc,Transport-Contract Hire,J01374,Transport Related Expenditure ,Contract Hire and Op Leasing  ,CC67,HIRING TRANSPORT H&SS CAB ADULTS        ,624,31/10/2013,R,BARCLAYS ASSET & SALES FINANCE
702,CS -Oth Operating Inc & Expend,T/A Vehicle Maintenance etc,Transport-Contract Hire,J01374,Transport Related Expenditure ,Contract Hire and Op Leasing  ,CC67,HIRING TRANSPORT H&SS CAB ADULTS        ,"2,204.00",31/10/2013,R,BARCLAYS ASSET & SALES FINANCE
703,CS -Oth Operating Inc & Expend,T/A Vehicle Maintenance etc,Transport-Contract Hire,J01374,Transport Related Expenditure ,Contract Hire and Op Leasing  ,CC67,HIRING TRANSPORT H&SS CAB ADULTS        ,630,31/10/2013,R,CAPITAL CARS                  
704,CS -Oth Operating Inc & Expend,T/A Vehicle Maintenance etc,Transport-Contract Hire,J01374,Transport Related Expenditure ,Contract Hire and Op Leasing  ,CC67,HIRING TRANSPORT H&SS CAB ADULTS        ,"1,016.00",31/10/2013,R,CAPITAL CARS                  
705,CS -Oth Operating Inc & Expend,T/A Vehicle Maintenance etc,Transport-Contract Hire,J01374,Transport Related Expenditure ,Contract Hire and Op Leasing  ,CC67,HIRING TRANSPORT H&SS CAB ADULTS        ,"1,620.00",31/10/2013,R,KINGSTON ACCESSIBILITY TRAN LT
706,CS -Oth Operating Inc & Expend,T/A Vehicle Maintenance etc,Transport-Contract Hire,J01374,Transport Related Expenditure ,Contract Hire and Op Leasing  ,CC67,HIRING TRANSPORT H&SS CAB ADULTS        ,920,01/11/2013,R,AERIAL CAR SERVICES LTD       
707,CS -Oth Operating Inc & Expend,T/A Vehicle Maintenance etc,Transport-Contract Hire,J01374,Transport Related Expenditure ,Contract Hire and Op Leasing  ,CC67,HIRING TRANSPORT H&SS CAB ADULTS        ,"1,520.00",31/10/2013,R,NVCAR HIRE LTD                
708,CS -Oth Operating Inc & Expend,T/A Vehicle Maintenance etc,Transport-Contract Hire,J01374,Transport Related Expenditure ,Contract Hire and Op Leasing  ,CC68,HIRING TRANSPORT SEN COLLEGES CABS      ,"2,963.35",31/10/2013,R,KINGSTON ACCESSIBILITY TRAN LT
709,CS -Oth Operating Inc & Expend,T/A Vehicle Maintenance etc,Transport-Contract Hire,J01374,Transport Related Expenditure ,Contract Hire and Op Leasing  ,CC68,HIRING TRANSPORT SEN COLLEGES CABS      ,780,31/10/2013,R,CAPITAL CARS                  
710,CS -Oth Operating Inc & Expend,T/A Vehicle Maintenance etc,Transport-Contract Hire,J01374,Transport Related Expenditure ,Contract Hire and Op Leasing  ,CC68,HIRING TRANSPORT SEN COLLEGES CABS      ,"2,244.00",31/10/2013,R,BARCLAYS ASSET & SALES FINANCE
711,CS -Oth Operating Inc & Expend,T/A Vehicle Maintenance etc,Transport-Contract Hire,J01374,Transport Related Expenditure ,Contract Hire and Op Leasing  ,CC68,HIRING TRANSPORT SEN COLLEGES CABS      ,"1,481.55",31/10/2013,R,KINGSTON ACCESSIBILITY TRAN LT
712,CS -Oth Operating Inc & Expend,T/A Vehicle Maintenance etc,Transport-Contract Hire,J01374,Transport Related Expenditure ,Contract Hire and Op Leasing  ,CC68,HIRING TRANSPORT SEN COLLEGES CABS      ,"1,102.00",31/10/2013,R,BARCLAYS ASSET & SALES FINANCE
713,CS -Oth Operating Inc & Expend,T/A Vehicle Maintenance etc,Transport-Contract Hire,J01374,Transport Related Expenditure ,Contract Hire and Op Leasing  ,CC68,HIRING TRANSPORT SEN COLLEGES CABS      ,650,31/10/2013,R,CAPITAL CARS                  
714,CS -Oth Operating Inc & Expend,T/A Vehicle Maintenance etc,Transport-Contract Hire,J01374,Transport Related Expenditure ,Contract Hire and Op Leasing  ,CC68,HIRING TRANSPORT SEN COLLEGES CABS      ,"2,370.82",31/10/2013,R,KINGSTON ACCESSIBILITY TRAN LT
715,CS -Oth Operating Inc & Expend,T/A Vehicle Maintenance etc,Transport-Contract Hire,J01374,Transport Related Expenditure ,Contract Hire and Op Leasing  ,CC68,HIRING TRANSPORT SEN COLLEGES CABS      ,"1,386.00",31/10/2013,R,CAPITAL CARS                  
716,CS -Oth Operating Inc & Expend,T/A Vehicle Maintenance etc,Transport-Contract Hire,J01374,Transport Related Expenditure ,Contract Hire and Op Leasing  ,CC68,HIRING TRANSPORT SEN COLLEGES CABS      ,"1,216.00",31/10/2013,R,CAPITAL CARS                  
717,CS -Oth Operating Inc & Expend,T/A Vehicle Maintenance etc,Transport-Contract Hire,J01374,Transport Related Expenditure ,Contract Hire and Op Leasing  ,CC68,HIRING TRANSPORT SEN COLLEGES CABS      ,"1,195.92",31/10/2013,R,KINGSTON ACCESSIBILITY TRAN LT
718,CS -Oth Operating Inc & Expend,T/A Vehicle Maintenance etc,Transport-Workshop,J01376,Premises Related Expenditure  ,Energy Costs                  ,BB02,Electricity                             ,"1,015.47",01/11/2013,R,EDF ENERGY 1 LIMITED          
719,CS -Oth Operating Inc & Expend,T/A Vehicle Maintenance etc,Transport-Workshop,J01376,Transport Related Expenditure ,Contract Hire and Op Leasing  ,CC60,Vehicle Hire for LB Sutton              ,"5,704.00",31/10/2013,R,BARCLAYS ASSET & SALES FINANCE
720,CS -Oth Operating Inc & Expend,T/A Vehicle Maintenance etc,Transport-Workshop,J01376,Transport Related Expenditure ,Contract Hire and Op Leasing  ,CC60,Vehicle Hire for LB Sutton              ,560,31/10/2013,R,BARCLAYS ASSET & SALES FINANCE
721,CS -Oth Operating Inc & Expend,T/A Vehicle Maintenance etc,Transport-Workshop,J01376,Transport Related Expenditure ,Contract Hire and Op Leasing  ,CC60,Vehicle Hire for LB Sutton              ,"1,699.20",31/10/2013,R,BARCLAYS ASSET & SALES FINANCE
722,CS -Oth Operating Inc & Expend,T/A Vehicle Maintenance etc,Transport-Workshop,J01376,Transport Related Expenditure ,Contract Hire and Op Leasing  ,CC60,Vehicle Hire for LB Sutton              ,"2,660.00",31/10/2013,R,BRUNSWICK CARS LTD            
723,CS -Oth Operating Inc & Expend,T/A Vehicle Maintenance etc,Transport-Workshop,J01376,Transport Related Expenditure ,Contract Hire and Op Leasing  ,CC60,Vehicle Hire for LB Sutton              ,"1,854.00",31/10/2013,R,BRUNSWICK CARS LTD            
724,CS -Oth Operating Inc & Expend,T/A Vehicle Maintenance etc,Transport-Workshop,J01376,Transport Related Expenditure ,Contract Hire and Op Leasing  ,CC60,Vehicle Hire for LB Sutton              ,569.81,31/10/2013,R,KINGSTON ACCESSIBILITY TRAN LT
725,CS -Oth Operating Inc & Expend,T/A Vehicle Maintenance etc,Transport-Workshop,J01376,Transport Related Expenditure ,Contract Hire and Op Leasing  ,CC60,Vehicle Hire for LB Sutton              ,"1,634.00",31/10/2013,R,BARCLAYS ASSET & SALES FINANCE
726,CS -Oth Operating Inc & Expend,T/A Vehicle Maintenance etc,Transport-Workshop,J01376,Transport Related Expenditure ,Contract Hire and Op Leasing  ,CC65,Vehicle Hire for Education              ,"1,215.00",31/10/2013,R,NVCAR HIRE LTD                
727,CS -Oth Operating Inc & Expend,T/A Vehicle Maintenance etc,Transport-Workshop,J01376,Transport Related Expenditure ,Contract Hire and Op Leasing  ,CC65,Vehicle Hire for Education              ,860,05/11/2013,R,GOLDEN SOVEREIGN COACHES      
728,CS -Oth Operating Inc & Expend,T/A Vehicle Maintenance etc,Transport-Workshop,J01376,Transport Related Expenditure ,Contract Hire and Op Leasing  ,CC65,Vehicle Hire for Education              ,703,31/10/2013,R,CAPITAL CARS                  
729,CS -Oth Operating Inc & Expend,T/A Vehicle Maintenance etc,Transport-Workshop,J01376,Supplies & Services           ,Equip Furniture/Materials     ,DA01,Equipment - R & M                       ,858.85,26/10/2013,R,SUNLIGHT SERVICE GROUP LTD    
730,Cultural Env Reg&Plan Services,Mgt & Support (Env),Estates Mgt,J01420,Supplies & Services           ,Services                      ,DF03,CONSULTANTS                             ,"5,017.50",30/10/2013,R,DTZ DEBENHAM TIE LEUNG        
731,CS -Oth Operating Inc & Expend,Extraordinary Items & PY Adj.,Other Misc Props Budget,J01526,Premises Related Expenditure  ,RepairsAlterations&MtceOfBldgs,BA01,Other Misc Props Budget                 ,"1,145.00",20/11/2013,R,THE CRESCENT FENCING CO.      
732,CS -Oth Operating Inc & Expend,Extraordinary Items & PY Adj.,Durnsford Rd Budget,J01580,Premises Related Expenditure  ,RepairsAlterations&MtceOfBldgs,BA79,                               SECURITY ,"1,001.00",29/08/2013,R,OM METROPOLITAN TOTAL SEC.LTD 
733,CS -Oth Operating Inc & Expend,Extraordinary Items & PY Adj.,Durnsford Rd Budget,J01580,Premises Related Expenditure  ,RepairsAlterations&MtceOfBldgs,BA79,                               SECURITY ,910,30/06/2013,R,OM METROPOLITAN TOTAL SEC.LTD 
734,CS -Oth Operating Inc & Expend,Extraordinary Items & PY Adj.,Durnsford Rd Budget,J01580,Premises Related Expenditure  ,RepairsAlterations&MtceOfBldgs,BA79,                               SECURITY ,"1,053.00",15/09/2013,R,OM METROPOLITAN TOTAL SEC.LTD 
735,Central Services,NDC Unused Office Accomodation,Montgomery Close,J02044,Premises Related Expenditure  ,RepairsAlterations&MtceOfBldgs,BA03,DDM - MECHANICAL                        ,620.33,29/10/2013,R,COFELY LIMITED                
736,CS -Oth Operating Inc & Expend,Extraordinary Items & PY Adj.,Pollards Hill Comm Cntre,J08074,Premises Related Expenditure  ,RepairsAlterations&MtceOfBldgs,BA03,DDM - Mechanical                        ,695.47,29/10/2013,R,COFELY LIMITED                
737,CS -Oth Operating Inc & Expend,Extraordinary Items & PY Adj.,Pollards Hill Comm Cntre,J08074,Premises Related Expenditure  ,RepairsAlterations&MtceOfBldgs,BA05,DDM - Electrical                        ,718.49,31/10/2013,R,CROWN SECURITY SYSTEMS LTD    
738,CS -Oth Operating Inc & Expend,Extraordinary Items & PY Adj.,Pollards Hill Comm Cntre,J08074,Premises Related Expenditure  ,RepairsAlterations&MtceOfBldgs,BA05,DDM - Electrical                        ,935.57,31/10/2013,R,CROWN SECURITY SYSTEMS LTD    
739,Childrens & Education Services,Statutory & Regulatory Duties,Senior Mngt & Support Services,K01005,Supplies & Services           ,Services                      ,DF03,CONSULTANTS                             ,"1,312.50",01/11/2013,R,MILTONCOX LIMITED             
740,Childrens & Education Services,Statutory & Regulatory Duties,Senior Mngt & Support Services,K01005,Supplies & Services           ,Services                      ,DF11,Counsel's Fees                          ,520,22/07/2013,R,REDACTED
741,Childrens & Education Services,Statutory & Regulatory Duties,Senior Mngt & Support Services,K01005,Supplies & Services           ,Services                      ,DF11,Counsel's Fees                          ,950,09/05/2013,R,REDACTED
742,Childrens & Education Services,Statutory & Regulatory Duties,Senior Mngt & Support Services,K01005,Supplies & Services           ,Services                      ,DF11,Counsel's Fees                          ,525,17/10/2013,R,REDACTED
743,Childrens & Education Services,Statutory & Regulatory Duties,Senior Mngt & Support Services,K01005,Supplies & Services           ,Services                      ,DF11,Counsel's Fees                          ,"1,290.00",07/11/2013,R,REDACTED
744,Childrens & Education Services,Statutory & Regulatory Duties,Senior Mngt & Support Services,K01005,Supplies & Services           ,Services                      ,DF11,Counsel's Fees                          ,940,17/10/2013,R,REDACTED
745,Childrens & Education Services,Statutory & Regulatory Duties,Senior Mngt & Support Services,K01005,Supplies & Services           ,Services                      ,DF11,Counsel's Fees                          ,505,15/10/2013,R,REDACTED
746,Childrens & Education Services,Statutory & Regulatory Duties,Senior Mngt & Support Services,K01005,Supplies & Services           ,Services                      ,DF11,Counsel's Fees                          ,"1,050.00",17/10/2013,R,REDACTED
747,Childrens & Education Services,Statutory & Regulatory Duties,Schools IT Support,K02008,Supplies & Services           ,Comms and Computing           ,DG50,Other IT Expenditure                    ,"1,662.50",21/11/2013,R,LONDON GRID FOR LEARNING TRUST
748,Childrens & Education Services,Statutory & Regulatory Duties,Schools IT Support,K02008,Supplies & Services           ,Comms and Computing           ,DG50,Other IT Expenditure                    ,"2,137.50",21/11/2013,R,LONDON GRID FOR LEARNING TRUST
749,Childrens & Education Services,Statutory & Regulatory Duties,Schools IT Support,K02008,Supplies & Services           ,Comms and Computing           ,DG50,Other IT Expenditure                    ,"1,662.50",21/11/2013,R,LONDON GRID FOR LEARNING TRUST
750,Childrens & Education Services,Statutory & Regulatory Duties,Schools IT Support,K02008,Supplies & Services           ,Comms and Computing           ,DG50,Other IT Expenditure                    ,"1,662.50",21/11/2013,R,LONDON GRID FOR LEARNING TRUST
751,Childrens & Education Services,Statutory & Regulatory Duties,Schools IT Support,K02008,Supplies & Services           ,Comms and Computing           ,DG50,Other IT Expenditure                    ,"2,375.00",21/11/2013,R,LONDON GRID FOR LEARNING TRUST
752,Childrens & Education Services,Statutory & Regulatory Duties,Schools IT Support,K02008,Supplies & Services           ,Comms and Computing           ,DG50,Other IT Expenditure                    ,"2,137.50",21/11/2013,R,LONDON GRID FOR LEARNING TRUST
753,Childrens & Education Services,Statutory & Regulatory Duties,Schools IT Support,K02008,Supplies & Services           ,Comms and Computing           ,DG50,Other IT Expenditure                    ,"5,700.00",21/11/2013,R,LONDON GRID FOR LEARNING TRUST
754,Childrens & Education Services,Statutory & Regulatory Duties,Schools IT Support,K02008,Supplies & Services           ,Comms and Computing           ,DG50,Other IT Expenditure                    ,"6,650.00",21/11/2013,R,LONDON GRID FOR LEARNING TRUST
755,Childrens & Education Services,Statutory & Regulatory Duties,Schools IT Support,K02008,Supplies & Services           ,Comms and Computing           ,DG50,Other IT Expenditure                    ,"1,662.50",21/11/2013,R,LONDON GRID FOR LEARNING TRUST
756,Childrens & Education Services,Statutory & Regulatory Duties,Schools IT Support,K02008,Supplies & Services           ,Comms and Computing           ,DG50,Other IT Expenditure                    ,"1,662.50",21/11/2013,R,LONDON GRID FOR LEARNING TRUST
757,Childrens & Education Services,Statutory & Regulatory Duties,Schools IT Support,K02008,Supplies & Services           ,Comms and Computing           ,DG50,Other IT Expenditure                    ,950,21/11/2013,R,LONDON GRID FOR LEARNING TRUST
758,Childrens & Education Services,Statutory & Regulatory Duties,Schools IT Support,K02008,Supplies & Services           ,Comms and Computing           ,DG50,Other IT Expenditure                    ,"1,662.50",21/11/2013,R,LONDON GRID FOR LEARNING TRUST
759,Childrens & Education Services,Statutory & Regulatory Duties,Schools IT Support,K02008,Supplies & Services           ,Comms and Computing           ,DG50,Other IT Expenditure                    ,"2,137.50",21/11/2013,R,LONDON GRID FOR LEARNING TRUST
760,Childrens & Education Services,Statutory & Regulatory Duties,Schools IT Support,K02008,Supplies & Services           ,Comms and Computing           ,DG50,Other IT Expenditure                    ,"1,662.50",21/11/2013,R,LONDON GRID FOR LEARNING TRUST
761,Childrens & Education Services,Statutory & Regulatory Duties,Schools IT Support,K02008,Supplies & Services           ,Comms and Computing           ,DG50,Other IT Expenditure                    ,"2,375.00",21/11/2013,R,LONDON GRID FOR LEARNING TRUST
762,Childrens & Education Services,Statutory & Regulatory Duties,Schools IT Support,K02008,Supplies & Services           ,Comms and Computing           ,DG50,Other IT Expenditure                    ,"2,137.50",21/11/2013,R,LONDON GRID FOR LEARNING TRUST
763,Childrens & Education Services,Statutory & Regulatory Duties,Schools IT Support,K02008,Supplies & Services           ,Comms and Computing           ,DG50,Other IT Expenditure                    ,"2,375.00",21/11/2013,R,LONDON GRID FOR LEARNING TRUST
764,Childrens & Education Services,Statutory & Regulatory Duties,Schools IT Support,K02008,Supplies & Services           ,Comms and Computing           ,DG50,Other IT Expenditure                    ,"2,375.00",21/11/2013,R,LONDON GRID FOR LEARNING TRUST
765,Childrens & Education Services,Statutory & Regulatory Duties,Schools IT Support,K02008,Supplies & Services           ,Comms and Computing           ,DG50,Other IT Expenditure                    ,"2,375.00",21/11/2013,R,LONDON GRID FOR LEARNING TRUST
766,Childrens & Education Services,Statutory & Regulatory Duties,Schools IT Support,K02008,Supplies & Services           ,Comms and Computing           ,DG50,Other IT Expenditure                    ,500,02/08/2013,R,ATOMWIDE LTD                  
767,Childrens & Education Services,Statutory & Regulatory Duties,Schools IT Support,K02008,Supplies & Services           ,Comms and Computing           ,DG50,Other IT Expenditure                    ,"2,137.50",21/11/2013,R,LONDON GRID FOR LEARNING TRUST
768,Childrens & Education Services,Statutory & Regulatory Duties,Schools IT Support,K02008,Supplies & Services           ,Comms and Computing           ,DG50,Other IT Expenditure                    ,"1,662.50",21/11/2013,R,LONDON GRID FOR LEARNING TRUST
769,Childrens & Education Services,Statutory & Regulatory Duties,Schools IT Support,K02008,Supplies & Services           ,Comms and Computing           ,DG50,Other IT Expenditure                    ,"1,662.50",21/11/2013,R,LONDON GRID FOR LEARNING TRUST
770,Childrens & Education Services,Statutory & Regulatory Duties,Schools IT Support,K02008,Supplies & Services           ,Comms and Computing           ,DG50,Other IT Expenditure                    ,"2,137.50",21/11/2013,R,LONDON GRID FOR LEARNING TRUST
771,Childrens & Education Services,Statutory & Regulatory Duties,Commissioning Manager,K03001,Employees                     ,Indirect Employee Expenses    ,AB02,Recruitment Adverts                     ,939,19/11/2013,R,PENNA COMMUNICATIONS (NO 2 A/C
772,Childrens & Education Services,Statutory & Regulatory Duties,Research and Statistics,K03016,Supplies & Services           ,Comms and Computing           ,DG07,Computer Software                       ,"1,485.30",01/11/2013,R,NCER CIC                      
773,Childrens & Education Services,Asset Management,PFI Unitary Charges,K03023,Third Party Payments          ,Private Contractors           ,EH02,Miscellaneous Hired Services            ,"1,582.02",24/10/2013,R,NEWSCHOOLS (MERTON) LIMITED   
774,Childrens & Education Services,Asset Management,PFI Unitary Charges,K03023,Third Party Payments          ,Private Contractors           ,EH02,Miscellaneous Hired Services            ,"1,305.64",24/10/2013,R,NEWSCHOOLS (MERTON) LIMITED   
775,Childrens & Education Services,Statutory & Regulatory Duties,Head of Special Educatn Needs,K04017,Supplies & Services           ,Services                      ,DF03,Consultants                             ,"1,700.00",14/10/2013,R,ANAIRO SOLUTIONS LIMITED      
776,Childrens & Education Services,Statutory & Regulatory Duties,Head of Special Educatn Needs,K04017,Supplies & Services           ,Services                      ,DF03,Consultants                             ,"1,487.50",21/10/2013,R,ANAIRO SOLUTIONS LIMITED      
777,Childrens & Education Services,Statutory & Regulatory Duties,Head of Special Educatn Needs,K04017,Supplies & Services           ,Services                      ,DF03,Consultants                             ,"2,250.00",28/10/2013,R,ANAIRO SOLUTIONS LIMITED      
778,Childrens & Education Services,Education Psychology Service,Education Psychology.,K04018,Employees                     ,Direct Employee Expenses      ,AA17,Agency Staff & Casual Paymts            ,937.5,21/10/2013,R,REDACTED
779,Childrens & Education Services,Education Psychology Service,Education Psychology.,K04018,Employees                     ,Indirect Employee Expenses    ,AB02,Recruitment Adverts                     ,740,31/10/2013,R,PENNA COMMUNICATIONS (NO 2 A/C
780,Childrens & Education Services,Support for SEN Pupils,Statementing-Transport,K04023,Transport Related Expenditure ,Public Transport              ,CD50,Home Sch/Coll Trans(Trav Exps)          ,671.32,06/11/2013,R,REDACTED
781,Childrens & Education Services,Support for SEN Pupils,Statementing-Transport,K04023,Transport Related Expenditure ,Public Transport              ,CD50,Home Sch/Coll Trans(Trav Exps)          ,"1,520.00",30/10/2013,R,REDACTED
782,Childrens & Education Services,Behavioural Support,Statement Support Team,K04034,Employees                     ,Direct Employee Expenses      ,AA17,Agency Staff & Casual Paymts            ,"2,080.00",24/08/2013,R,REDACTED
783,Childrens & Education Services,Behavioural Support,Statement Support Team,K04034,Employees                     ,Direct Employee Expenses      ,AA17,Agency Staff & Casual Paymts            ,"2,080.00",31/08/2013,R,REDACTED
784,Childrens & Education Services,Behavioural Support,Statement Support Team,K04034,Employees                     ,Direct Employee Expenses      ,AA17,Agency Staff & Casual Paymts            ,"2,080.00",19/10/2013,R,REDACTED
785,Childrens & Education Services,Behavioural Support,Statement Support Team,K04034,Employees                     ,Direct Employee Expenses      ,AA17,Agency Staff & Casual Paymts            ,"2,125.00",27/11/2013,R,REDACTED
786,Childrens & Education Services,Oth U5s Provn Not Prim or Spec,Provider Support,K05078,Supplies & Services           ,Comms and Computing           ,DG09,Computer Purchases - Misc               ,"1,323.00",12/11/2013,R,ATOMWIDE LTD                  
787,Childrens & Education Services,Oth U5s Provn Not Prim or Spec,GSSG Workforce Development,K05111,Employees                     ,Indirect Employee Expenses    ,AB56,Internal Training Costs                 ,500,16/11/2013,R,REDACTED
788,Childrens & Education Services,Oth U5s Provn Not Prim or Spec,GSSG Workforce Development,K05111,Employees                     ,Indirect Employee Expenses    ,AB56,Internal Training Costs                 ,500,07/10/2013,R,REDACTED
789,Childrens & Education Services,Oth U5s Provn Not Prim or Spec,GSSG Workforce Development,K05111,Supplies & Services           ,Services                      ,DF03,Consultants                             ,"2,800.00",01/11/2013,R,REDACTED
790,Childrens & Education Services,Oth U5s Provn Not Prim or Spec,GSSG Workforce Development,K05111,Supplies & Services           ,Services                      ,DF03,Consultants                             ,"1,200.00",01/10/2013,R,REDACTED
791,Childrens & Education Services,Nursery schools,GSSG Central Administration,K05400,Supplies & Services           ,Services                      ,DF09,Miscellaneous Fees                      ,"4,500.00",08/11/2013,R,DAYCARE TRUST                 
792,Childrens & Education Services,GENERATED ACCOUNT,Lavender Children's Centre,K05410,Premises Related Expenditure  ,RepairsAlterations&MtceOfBldgs,BA79,Security of Premises                    ,597.86,01/12/2013,R,CHUBB ELECTRONIC SEC. SYSTEMS 
793,Childrens & Education Services,GENERATED ACCOUNT,Mitcham MAT,K05411,Supplies & Services           ,Services                      ,DF09,Miscellaneous Fees                      ,"1,328.35",31/10/2013,R,ADMINLAND LTD                 
794,Childrens & Education Services,GENERATED ACCOUNT,Mitcham MAT (Premises),K05412,Premises Related Expenditure  ,Cleaning and Domestic Supplies,BH03,Cleaning Services                       ,"1,186.24",31/10/2013,R,BIRKIN CLEANING SERVICES LTD  
795,Childrens & Education Services,Nursery schools,Lavender CC Non Childcare,K05415,Premises Related Expenditure  ,Cleaning and Domestic Supplies,BH03,Cleaning Services                       ,"1,189.54",31/10/2013,R,BIRKIN CLEANING SERVICES LTD  
796,Childrens & Education Services,Nursery schools,E.Years-Intergenerational Cntr,K05416,Employees                     ,Direct Employee Expenses      ,AA74,Public Duties (AP)                      ,"2,422.50",24/10/2013,R,ST MARK'S C OF E ACADEMY      
797,Childrens & Education Services,Nursery schools,E.Years-Intergenerational Cntr,K05416,Premises Related Expenditure  ,Energy Costs                  ,BB02,Electricity                             ,920.39,06/11/2013,R,SCOTTISHPOWER                 
798,Childrens & Education Services,Nursery schools,E.Years-Intergenerational Cntr,K05416,Premises Related Expenditure  ,Cleaning and Domestic Supplies,BH03,Cleaning Services                       ,796.82,31/10/2013,R,BIRKIN CLEANING SERVICES LTD  
799,Childrens & Education Services,Nursery schools,E.Years-Intergenerational Cntr,K05416,Supplies & Services           ,Services                      ,DF03,Consultants                             ,"2,585.52",04/11/2013,R,REDACTED
800,Childrens & Education Services,Vocational - Adult Education,AE-Familiy Learning,K06041,Supplies & Services           ,Services                      ,DF02,Misc Advertising/Publicity              ,"1,104.00",28/09/2013,R,NEWSQUEST (LONDON)LTD         
801,Childrens & Education Services,Vocational - Adult Education,MAE-Bldgs Repairs & Maintenanc,K06048,Premises Related Expenditure  ,Energy Costs                  ,BB02,Electricity                             ,"4,100.87",01/11/2013,R,EDF ENERGY 1 LIMITED          
802,Childrens & Education Services,Vocational - Adult Education,AE-Adult Education Main,K06049,Premises Related Expenditure  ,Energy Costs                  ,BB03,Gas (incl. Butane)                      ,"1,592.74",12/11/2013,R,GAZPROM MARKETING&TRADING LTD 
803,Childrens & Education Services,Vocational - Adult Education,AE-Adult Education Main,K06049,Premises Related Expenditure  ,Cleaning and Domestic Supplies,BH03,Cleaning Services                       ,"2,773.59",25/10/2013,R,JULIUS RUTHERFOORD & CO LTD   
804,Childrens & Education Services,Vocational - Adult Education,AE-Adult Education Main,K06049,Supplies & Services           ,Services                      ,DF02,Misc Advertising/Publicity              ,500,19/10/2013,R,NEWSQUEST (LONDON)LTD         
805,Childrens & Education Services,Vocational - Adult Education,AE-Adult Education Main,K06049,Supplies & Services           ,Services                      ,DF27,Examination Fees                        ,"1,441.00",06/11/2013,R,UCLES                         
806,Childrens & Education Services,Vocational - Adult Education,AE-Adult Education Main,K06049,Supplies & Services           ,Services                      ,DF27,Examination Fees                        ,"1,000.00",21/11/2013,R,ITEC                          
807,Childrens & Education Services,Vocational - Adult Education,AE-Adult Education Main,K06049,Supplies & Services           ,Services                      ,DF27,Examination Fees                        ,"3,679.75",14/11/2013,R,UCLES                         
808,Childrens & Education Services,Vocational - Adult Education,AE-Adult Education Main,K06049,Supplies & Services           ,Services                      ,DF27,Examination Fees                        ,843.5,22/10/2013,R,PEARSON EDUCATION LTD.        
809,Childrens & Education Services,Vocational - Adult Education,AE-Adult Education Main,K06049,Supplies & Services           ,Comms and Computing           ,DG02,Software Licences                       ,551.4,31/10/2013,R,STRAWBERRY GLOBAL TECHNOLOGY  
810,Childrens & Education Services,Vocational - Adult Education,AE-Adult Education Main,K06049,Supplies & Services           ,Comms and Computing           ,DG02,Software Licences                       ,560,12/11/2013,R,CIPD ENTERPRISES LIMITED      
811,Childrens & Education Services,Vocational - Adult Education,AE-Adult Education Main,K06049,Supplies & Services           ,Comms and Computing           ,DG04,Postage - General                       ,"1,194.32",04/11/2013,R,NEOPOST FINANCE LIMITED       
812,Childrens & Education Services,Vocational - Adult Education,AE-Adult Education Main,K06049,Supplies & Services           ,Comms and Computing           ,DG07,Computer Software                       ,840,27/11/2013,R,STUDIO ELEVEN LTD             
813,Childrens & Education Services,Vocational - Adult Education,AE-Learner Support Fund-Access,K06050,Supplies & Services           ,Services                      ,DF09,Miscellaneous Fees                      ,736.61,07/11/2013,R,DICKY BIRDS (PEPYS RD)        
814,Childrens & Education Services,Vocational - Adult Education,MAE- CATERING SERVICES 2011>,K06052,Supplies & Services           ,Catering                      ,DB01,Contract Catering                       ,520,17/10/2013,R,INVESTEC ASSET FINANCE PLC    
815,Childrens & Education Services,Youth Centres (Residential),Youth Service,K06053,Employees                     ,Indirect Employee Expenses    ,AB57,External Training Costs                 ,"4,500.00",30/10/2013,R,REDACTED
816,Childrens & Education Services,Youth Centres (Residential),Youth Opps Fund (GF C G),K06093,Supplies & Services           ,Grants and Subscriptions      ,DJ01,Grants                                  ,"1,078.00",11/11/2013,R,RICARDS LODGE SECONDARY SCHOOL
817,Childrens & Education Services,Pupil Support,Young Person Substance Misuse,K06114,Third Party Payments          ,Private Contractors           ,EH01,Miscellaneous Agency Services           ,"56,627.75",30/10/2013,R,CATCH 22                      
818,Childrens & Education Services,Asset Management,Premises and Contracts,K08069,Supplies & Services           ,Services                      ,DF03,Consultants                             ,935,31/10/2013,R,SYNERGY CPC LLP               
819,Childrens & Education Services,Asset Management,S106 Bid,K08077,Premises Related Expenditure  ,RepairsAlterations&MtceOfBldgs,BA79,Security of Premises                    ,"6,430.80",01/11/2013,R,SIGHT & SOUND                 
820,Childrens & Education Services,Asset Management,Centre Commissioned Servs,K08078,Supplies & Services           ,Grants and Subscriptions      ,DJ01,Grants                                  ,"9,500.00",26/11/2013,R,YMCA LONDON SOUTH WEST        
821,Childrens & Education Services,Asset Management,Centre Commissioned Servs,K08078,Supplies & Services           ,Grants and Subscriptions      ,DJ01,Grants                                  ,"4,500.00",21/10/2013,R,MERTON MENCAP                 
822,Childrens & Education Services,Asset Management,Centre Commissioned Servs,K08078,Supplies & Services           ,Grants and Subscriptions      ,DJ01,Grants                                  ,"12,500.00",21/10/2013,R,MERTON MENCAP                 
823,Childrens & Education Services,Asset Management,Centre Commissioned Servs,K08078,Supplies & Services           ,Grants and Subscriptions      ,DJ01,Grants                                  ,"6,000.00",25/11/2013,R,GROUNDWORK LONDON             
824,Childrens & Education Services,Asset Management,Centre Commissioned Servs,K08078,Supplies & Services           ,Grants and Subscriptions      ,DJ01,Grants                                  ,"7,500.00",09/10/2013,R,COMMONSIDE COMMUNITY DEV TRUST
825,Childrens & Education Services,Asset Management,Centre Commissioned Servs,K08078,Supplies & Services           ,Grants and Subscriptions      ,DJ01,Grants                                  ,"5,000.00",21/10/2013,R,MERTON MENCAP                 
826,Childrens & Education Services,Asset Management,Centre Commissioned Servs,K08078,Supplies & Services           ,Grants and Subscriptions      ,DJ01,Grants                                  ,"7,500.00",21/10/2013,R,MERTON MENCAP                 
827,Childrens & Education Services,Asset Management,Centre Commissioned Servs,K08078,Supplies & Services           ,Grants and Subscriptions      ,DJ01,Grants                                  ,"7,500.00",21/10/2013,R,MERTON MENCAP                 
828,Childrens & Education Services,Asset Management,Centre Commissioned Servs,K08078,Supplies & Services           ,Grants and Subscriptions      ,DJ01,Grants                                  ,"24,623.50",31/10/2013,R,HOME-START MERTON             
829,Childrens & Education Services,Asset Management,Centre Commissioned Servs,K08078,Supplies & Services           ,Grants and Subscriptions      ,DJ01,Grants                                  ,"9,000.00",03/10/2013,R,BARNARDOS                     
830,Childrens & Education Services,Asset Management,Centre Commissioned Servs,K08078,Supplies & Services           ,Grants and Subscriptions      ,DJ01,Grants                                  ,"2,000.00",21/10/2013,R,MERTON MENCAP                 
831,Childrens & Education Services,Asset Management,Centre Commissioned Servs,K08078,Supplies & Services           ,Grants and Subscriptions      ,DJ01,Grants                                  ,"5,507.50",21/10/2013,R,MERTON MENCAP                 
832,Childrens & Education Services,Asset Management,Centre Commissioned Servs,K08078,Supplies & Services           ,Grants and Subscriptions      ,DJ01,Grants                                  ,"6,250.00",14/10/2013,R,PRE-SCHOOL LEARNING ALLIANCE  
833,Childrens & Education Services,Facilitating School Improvemnt,SSQ,K09077,Supplies & Services           ,Expenses                      ,DH17,Advances                                ,"8,475.00",28/10/2013,R,INNOVATE TEACHING SCH ALLIANCE
834,Childrens & Education Services,Asset Management,Stouthall,K09082,Premises Related Expenditure  ,Energy Costs                  ,BB03,Gas (incl. Butane)                      ,791.11,14/09/2013,R,FLOGAS CO UK                  
835,Childrens & Education Services,Asset Management,Stouthall,K09082,Premises Related Expenditure  ,Energy Costs                  ,BB03,Gas (incl. Butane)                      ,956.36,16/10/2013,R,FLOGAS CO UK                  
836,Childrens & Education Services,Statutory & Regulatory Duties,Profess Develop Cntre,K09084,Premises Related Expenditure  ,Energy Costs                  ,BB02,Electricity                             ,"1,930.62",01/11/2013,R,EDF ENERGY 1 LIMITED          
837,Childrens & Education Services,Statutory & Regulatory Duties,Profess Develop Cntre,K09084,Premises Related Expenditure  ,Cleaning and Domestic Supplies,BH03,Cleaning Services                       ,"2,932.69",25/10/2013,R,JULIUS RUTHERFOORD & CO LTD   
838,Childrens & Education Services,Sch Meals & Milk-Not Delegated,Free School Meals,K90002,Premises Related Expenditure  ,RepairsAlterations&MtceOfBldgs,BA01,DDM - General Building                  ,"2,175.00",11/11/2013,R,DF20 LTD                      
839,Childrens & Education Services,Sch Meals & Milk-Not Delegated,Free School Meals,K90002,Supplies & Services           ,Services                      ,DF57,Consulting Engineers Fees               ,500,18/11/2013,R,RWS CONSULTING                
840,Childrens & Education Services,Pupil Referral Units,Head of Social Inclusion,K90005,Premises Related Expenditure  ,RepairsAlterations&MtceOfBldgs,BA01,DDM - General Building                  ,"14,990.87",12/11/2013,R,SALTASH ENTERPRISES LTD       
841,Childrens & Education Services,Facilitating School Improvemnt,Refugees Education Service,K90012,Supplies & Services           ,Equip Furniture/Materials     ,DA58,Education Materials                     ,685.96,31/10/2013,R,MIMEO UK                      
842,Childrens & Education Services,Facilitating School Improvemnt,Virtual Schools - PEA's,K90016,Supplies & Services           ,Expenses                      ,DH12,Young Peoples Expenses                  ,"1,060.05",02/10/2013,R,BOOK TRUST                    
843,Childrens & Education Services,Facilitating School Improvemnt,Virtual Schools - PEA's,K90016,Supplies & Services           ,Expenses                      ,DH12,Young Peoples Expenses                  ,800,12/11/2013,R,AIM HIGHER  LONDON SOUTH      
844,Childrens & Education Services,Support for SEN Pupils,Non-Delegated Statements,K90024,Employees                     ,Direct Employee Expenses      ,AA17,Agency Staff & Casual Paymts            ,"2,400.00",30/10/2013,R,REDACTED
845,Childrens & Education Services,Support for SEN Pupils,Non-Delegated Statements,K90024,Employees                     ,Direct Employee Expenses      ,AA17,Agency Staff & Casual Paymts            ,900,25/10/2013,R,REDACTED
846,Childrens & Education Services,Support for SEN Pupils,Non-Delegated Statements,K90024,Employees                     ,Direct Employee Expenses      ,AA17,Agency Staff & Casual Paymts            ,"1,313.64",31/10/2013,R,REDACTED
847,Childrens & Education Services,Support for SEN Pupils,Non-Delegated Statements,K90024,Employees                     ,Direct Employee Expenses      ,AA17,Agency Staff & Casual Paymts            ,780,28/10/2013,R,REDACTED
848,Childrens & Education Services,Support for SEN Pupils,Non-Delegated Statements,K90024,Supplies & Services           ,Equip Furniture/Materials     ,DA09,Equip-Purchases                         ,717.22,25/10/2013,R,ACTIVATE                      
849,Childrens & Education Services,Support for SEN Pupils,Non-Delegated Statements,K90024,Third Party Payments          ,Other Local Authorities       ,EB48,OLA PAYMENTS-STATEMENTS                 ,"2,134.37",07/11/2013,R,EARDLEY PRIMARY SCHOOL        
850,Childrens & Education Services,Support for SEN Pupils,Non-Delegated Statements,K90024,Third Party Payments          ,Other Local Authorities       ,EB48,OLA PAYMENTS-STATEMENTS                 ,"34,183.48",18/11/2013,R,GRAVENEY SCHOOL               
851,Childrens & Education Services,Support for SEN Pupils,Non-Delegated Statements,K90024,Third Party Payments          ,Other Local Authorities       ,EB48,OLA PAYMENTS-STATEMENTS                 ,"2,998.11",27/11/2013,R,CARSHALTON BOYS SPORTS COLLEGE
852,Childrens & Education Services,Support for SEN Pupils,Non-Delegated Statements,K90024,Third Party Payments          ,Other Local Authorities       ,EB50,OLA-Payments - Day Schools              ,"6,881.43",14/10/2013,R,THE LONDON BOROUGH OF BROMLEY 
853,Childrens & Education Services,Support for SEN Pupils,Non-Delegated Statements,K90024,Third Party Payments          ,Other Local Authorities       ,EB50,OLA-Payments - Day Schools              ,"426,090.74",16/10/2013,R,WANDSWORTH CORPORATION        
854,Childrens & Education Services,Support for SEN Pupils,Non-Delegated Statements,K90024,Third Party Payments          ,Other Local Authorities       ,EB50,OLA-Payments - Day Schools              ,"101,134.00",18/10/2013,R,WANDSWORTH CORPORATION        
855,Childrens & Education Services,Support for SEN Pupils,Non-Delegated Statements,K90024,Third Party Payments          ,Other Establishments          ,EG01,Alternative SEN Provision               ,"2,128.00",04/11/2013,R,HA TUTORS LTD                 
856,Childrens & Education Services,Support for SEN Pupils,Non-Delegated Statements,K90024,Third Party Payments          ,Other Establishments          ,EG01,Alternative SEN Provision               ,892,04/11/2013,R,HA TUTORS LTD                 
857,Childrens & Education Services,Support for SEN Pupils,Non-Delegated Statements,K90024,Third Party Payments          ,Other Establishments          ,EG01,Alternative SEN Provision               ,"1,330.00",04/11/2013,R,HA TUTORS LTD                 
858,Childrens & Education Services,Support for SEN Pupils,Non-Delegated Statements,K90024,Third Party Payments          ,Other Establishments          ,EG01,Alternative SEN Provision               ,720,04/11/2013,R,HA TUTORS LTD                 
859,Childrens & Education Services,Support for SEN Pupils,Non-Delegated Statements,K90024,Third Party Payments          ,Other Establishments          ,EG01,Alternative SEN Provision               ,610.14,04/11/2013,R,HA TUTORS LTD                 
860,Childrens & Education Services,Support for SEN Pupils,Non-Delegated Statements,K90024,Third Party Payments          ,Other Establishments          ,EG01,Alternative SEN Provision               ,"1,649.50",04/11/2013,R,HA TUTORS LTD                 
861,Childrens & Education Services,Support for SEN Pupils,Non-Delegated Statements,K90024,Third Party Payments          ,Other Establishments          ,EG50,Ind Day Schs Payments                   ,"18,372.00",20/10/2013,R,PHILPOTS MANOR SCHOOL         
862,Childrens & Education Services,Support for SEN Pupils,Non-Delegated Statements,K90024,Third Party Payments          ,Other Establishments          ,EG50,Ind Day Schs Payments                   ,"8,116.94",05/11/2013,R,BLOSSOM LOWER SCHOOL LTD      
863,Childrens & Education Services,Support for SEN Pupils,Non-Delegated Statements,K90024,Third Party Payments          ,Other Establishments          ,EG50,Ind Day Schs Payments                   ,"5,250.00",07/10/2013,R,LVS HASSOCKS                  
864,Childrens & Education Services,Support for SEN Pupils,Non-Delegated Statements,K90024,Third Party Payments          ,Other Establishments          ,EG50,Ind Day Schs Payments                   ,"20,041.66",15/11/2013,R,ROEHAMPTON LODGE PRIORY       
865,Childrens & Education Services,Support for SEN Pupils,Non-Delegated Statements,K90024,Third Party Payments          ,Other Establishments          ,EG50,Ind Day Schs Payments                   ,"10,797.00",01/07/2013,R,BLOSSOM HOUSE SCHOOL          
866,Childrens & Education Services,Support for SEN Pupils,Non-Delegated Statements,K90024,Third Party Payments          ,Other Establishments          ,EG50,Ind Day Schs Payments                   ,"6,520.00",02/09/2013,R,COLLINGHAM COLLEGE            
867,Childrens & Education Services,Behavioural Support,Language & Learning Service,K90025,Employees                     ,Direct Employee Expenses      ,AA17,Agency Staff & Casual Paymts            ,"1,050.00",29/10/2013,R,REDACTED
868,Childrens & Education Services,Admissions & Planning Sch Prov,Retained Schools Budgets,K90030,Supplies & Services           ,Prntng Stnry Gen Off Exp      ,DE22,Marketing                               ,"2,450.00",31/10/2013,R,GREBOT DONNELLY  ASSOCIAT. LTD
869,Childrens & Education Services,Admissions & Planning Sch Prov,Retained Schools Budgets,K90030,Supplies & Services           ,Services                      ,DF03,Consultants                             ,"7,000.00",27/09/2013,R,END USER LTD                  
870,Childrens & Education Services,Facilitating School Improvemnt,SSQ CORE OFFER - EMAG (DSG),K90041,Supplies & Services           ,Services                      ,DF03,Consultants                             ,"1,750.00",31/10/2013,R,GREBOT DONNELLY  ASSOCIAT. LTD
871,Childrens & Education Services,Nursery schools,EARLY YEARS NURSERY GRANTS,K90042,Supplies & Services           ,Grants and Subscriptions      ,DJ57,Nursery Grant Payment-4yr olds          ,"2,268.00",28/11/2013,R,HAPPY FACES@CRANMER           
872,Childrens & Education Services,Nursery schools,EARLY YEARS NURSERY GRANTS,K90042,Supplies & Services           ,Grants and Subscriptions      ,DJ57,Nursery Grant Payment-4yr olds          ,"1,455.30",29/11/2013,R,THE GRANGE DAY NURSERY        
873,Childrens & Education Services,Nursery schools,EARLY YEARS NURSERY GRANTS,K90042,Supplies & Services           ,Grants and Subscriptions      ,DJ57,Nursery Grant Payment-4yr olds          ,"2,748.90",29/11/2013,R,PLAYDAYS DAY NURSERY          
874,Childrens & Education Services,Nursery schools,EARLY YEARS NURSERY GRANTS,K90042,Supplies & Services           ,Grants and Subscriptions      ,DJ57,Nursery Grant Payment-4yr olds          ,"3,880.80",28/11/2013,R,EVELINE DAY & NURSERY SCHS LTD
875,Childrens & Education Services,Nursery schools,EARLY YEARS NURSERY GRANTS,K90042,Supplies & Services           ,Grants and Subscriptions      ,DJ57,Nursery Grant Payment-4yr olds          ,"3,234.00",29/11/2013,R,PLAYDAYS DAY NURSERY          
876,Childrens & Education Services,Nursery schools,EARLY YEARS NURSERY GRANTS,K90042,Supplies & Services           ,Grants and Subscriptions      ,DJ57,Nursery Grant Payment-4yr olds          ,539,28/11/2013,R,CROWN KINDERGARTEN            
877,Childrens & Education Services,Nursery schools,EARLY YEARS NURSERY GRANTS,K90042,Supplies & Services           ,Grants and Subscriptions      ,DJ57,Nursery Grant Payment-4yr olds          ,"4,042.50",28/11/2013,R,COOPERATIVE CHILDCARE         
878,Childrens & Education Services,Nursery schools,EARLY YEARS NURSERY GRANTS,K90042,Supplies & Services           ,Grants and Subscriptions      ,DJ57,Nursery Grant Payment-4yr olds          ,"1,778.70",28/11/2013,R,DEE'S DAYS NURSERY            
879,Childrens & Education Services,Nursery schools,EARLY YEARS NURSERY GRANTS,K90042,Supplies & Services           ,Grants and Subscriptions      ,DJ57,Nursery Grant Payment-4yr olds          ,970.2,28/11/2013,R,CHERUBS @ ST THOMAS           
880,Childrens & Education Services,Nursery schools,EARLY YEARS NURSERY GRANTS,K90042,Supplies & Services           ,Grants and Subscriptions      ,DJ57,Nursery Grant Payment-4yr olds          ,808.5,28/11/2013,R,LA PETITE FLEUR PRE-SCHOOL    
881,Childrens & Education Services,Nursery schools,EARLY YEARS NURSERY GRANTS,K90042,Supplies & Services           ,Grants and Subscriptions      ,DJ57,Nursery Grant Payment-4yr olds          ,"2,425.50",29/11/2013,R,LITTLE CATERPILLARS           
882,Childrens & Education Services,Nursery schools,EARLY YEARS NURSERY GRANTS,K90042,Supplies & Services           ,Grants and Subscriptions      ,DJ57,Nursery Grant Payment-4yr olds          ,"5,012.70",28/11/2013,R,BOW LANE PRE-SCHOOL           
883,Childrens & Education Services,Nursery schools,EARLY YEARS NURSERY GRANTS,K90042,Supplies & Services           ,Grants and Subscriptions      ,DJ57,Nursery Grant Payment-4yr olds          ,"6,306.30",29/11/2013,R,TEDDIES NURSERIES LTD         
884,Childrens & Education Services,Nursery schools,EARLY YEARS NURSERY GRANTS,K90042,Supplies & Services           ,Grants and Subscriptions      ,DJ57,Nursery Grant Payment-4yr olds          ,"5,642.91",28/11/2013,R,DONHEAD SCHOOL                
885,Childrens & Education Services,Nursery schools,EARLY YEARS NURSERY GRANTS,K90042,Supplies & Services           ,Grants and Subscriptions      ,DJ57,Nursery Grant Payment-4yr olds          ,"8,538.94",29/11/2013,R,DATE VALLEY SCHOOL            
886,Childrens & Education Services,Nursery schools,EARLY YEARS NURSERY GRANTS,K90042,Supplies & Services           ,Grants and Subscriptions      ,DJ57,Nursery Grant Payment-4yr olds          ,"7,761.60",28/11/2013,R,EVELINE DAY NURSERY SCHOOLS   
887,Childrens & Education Services,Nursery schools,EARLY YEARS NURSERY GRANTS,K90042,Supplies & Services           ,Grants and Subscriptions      ,DJ57,Nursery Grant Payment-4yr olds          ,"5,876.64",29/11/2013,R,WILLINGTON SCH.FOUNDATION LTD 
888,Childrens & Education Services,Nursery schools,EARLY YEARS NURSERY GRANTS,K90042,Supplies & Services           ,Grants and Subscriptions      ,DJ57,Nursery Grant Payment-4yr olds          ,907.2,18/11/2013,R,REDACTED
889,Childrens & Education Services,Nursery schools,EARLY YEARS NURSERY GRANTS,K90042,Supplies & Services           ,Grants and Subscriptions      ,DJ57,Nursery Grant Payment-4yr olds          ,"1,455.30",28/11/2013,R,HASLEMERE HOUSE DAY NURSERY   
890,Childrens & Education Services,Nursery schools,EARLY YEARS NURSERY GRANTS,K90042,Supplies & Services           ,Grants and Subscriptions      ,DJ57,Nursery Grant Payment-4yr olds          ,"1,617.00",14/11/2013,R,MONTIS DAY NURSERY            
891,Childrens & Education Services,Nursery schools,EARLY YEARS NURSERY GRANTS,K90042,Supplies & Services           ,Grants and Subscriptions      ,DJ57,Nursery Grant Payment-4yr olds          ,970,28/11/2013,R,CHERUBS CHILDCARE LTD         
892,Childrens & Education Services,Nursery schools,EARLY YEARS NURSERY GRANTS,K90042,Supplies & Services           ,Grants and Subscriptions      ,DJ57,Nursery Grant Payment-4yr olds          ,"1,860.32",29/11/2013,R,THE GARDEN ROOM               
893,Childrens & Education Services,Nursery schools,EARLY YEARS NURSERY GRANTS,K90042,Supplies & Services           ,Grants and Subscriptions      ,DJ57,Nursery Grant Payment-4yr olds          ,"2,029.53",29/11/2013,R,ST MARK'S MONTESSORI          
894,Childrens & Education Services,Nursery schools,EARLY YEARS NURSERY GRANTS,K90042,Supplies & Services           ,Grants and Subscriptions      ,DJ57,Nursery Grant Payment-4yr olds          ,"7,168.70",28/11/2013,R,DICKY BIRDS DAY NURSERIES     
895,Childrens & Education Services,Nursery schools,EARLY YEARS NURSERY GRANTS,K90042,Supplies & Services           ,Grants and Subscriptions      ,DJ57,Nursery Grant Payment-4yr olds          ,"1,458.00",15/11/2013,R,ST MARKS PRIMARY SCHOOL       
896,Childrens & Education Services,Nursery schools,EARLY YEARS NURSERY GRANTS,K90042,Supplies & Services           ,Grants and Subscriptions      ,DJ57,Nursery Grant Payment-4yr olds          ,"2,425.50",28/11/2013,R,DICKY BIRDS PRE-SCH NURSERIES 
897,Childrens & Education Services,Nursery schools,EARLY YEARS NURSERY GRANTS,K90042,Supplies & Services           ,Grants and Subscriptions      ,DJ57,Nursery Grant Payment-4yr olds          ,"7,761.60",29/11/2013,R,WIMBLEDON HOUSE DAY NURSERY   
898,Childrens & Education Services,Nursery schools,EARLY YEARS NURSERY GRANTS,K90042,Supplies & Services           ,Grants and Subscriptions      ,DJ57,Nursery Grant Payment-4yr olds          ,"2,587.20",28/11/2013,R,KINGSWOOD DAYCARE NURSERY     
899,Childrens & Education Services,Nursery schools,EARLY YEARS NURSERY GRANTS,K90042,Supplies & Services           ,Grants and Subscriptions      ,DJ57,Nursery Grant Payment-4yr olds          ,646.8,28/11/2013,R,JIGSAW DAY NURSERY            
900,Childrens & Education Services,Nursery schools,EARLY YEARS NURSERY GRANTS,K90042,Supplies & Services           ,Grants and Subscriptions      ,DJ57,Nursery Grant Payment-4yr olds          ,614.46,28/11/2013,R,ACORN NURSERY                 
901,Childrens & Education Services,Nursery schools,EARLY YEARS NURSERY GRANTS,K90042,Supplies & Services           ,Grants and Subscriptions      ,DJ57,Nursery Grant Payment-4yr olds          ,"2,263.80",28/11/2013,R,DICKY BIRDS PRE SCHOOL NURSERY
902,Childrens & Education Services,Nursery schools,EARLY YEARS NURSERY GRANTS,K90042,Supplies & Services           ,Grants and Subscriptions      ,DJ57,Nursery Grant Payment-4yr olds          ,"3,072.30",29/11/2013,R,WILLOW PRE SCHOOL             
903,Childrens & Education Services,Nursery schools,EARLY YEARS NURSERY GRANTS,K90042,Supplies & Services           ,Grants and Subscriptions      ,DJ57,Nursery Grant Payment-4yr olds          ,"2,425.50",29/11/2013,R,ARK AT SHERWOOD LTD           
904,Childrens & Education Services,Nursery schools,EARLY YEARS NURSERY GRANTS,K90042,Supplies & Services           ,Grants and Subscriptions      ,DJ57,Nursery Grant Payment-4yr olds          ,"6,845.30",28/11/2013,R,BUILDING BLOCKS NURSERY       
905,Childrens & Education Services,Nursery schools,EARLY YEARS NURSERY GRANTS,K90042,Supplies & Services           ,Grants and Subscriptions      ,DJ57,Nursery Grant Payment-4yr olds          ,889.35,28/11/2013,R,LITTLE LEARNERS               
906,Childrens & Education Services,Nursery schools,EARLY YEARS NURSERY GRANTS,K90042,Supplies & Services           ,Grants and Subscriptions      ,DJ57,Nursery Grant Payment-4yr olds          ,"10,995.60",29/11/2013,R,MINI TREASURES DAY NURSERY    
907,Childrens & Education Services,Nursery schools,EARLY YEARS NURSERY GRANTS,K90042,Supplies & Services           ,Grants and Subscriptions      ,DJ57,Nursery Grant Payment-4yr olds          ,"1,293.60",28/11/2013,R,LEAPFROG DAY NURSERIES        
908,Childrens & Education Services,Nursery schools,EARLY YEARS NURSERY GRANTS,K90042,Supplies & Services           ,Grants and Subscriptions      ,DJ57,Nursery Grant Payment-4yr olds          ,"1,293.60",28/11/2013,R,EARLY YEARS NURSERY           
909,Childrens & Education Services,Nursery schools,EARLY YEARS NURSERY GRANTS,K90042,Supplies & Services           ,Grants and Subscriptions      ,DJ57,Nursery Grant Payment-4yr olds          ,"3,395.70",29/11/2013,R,WILLOWS PRE-SCHOOL            
910,Childrens & Education Services,Nursery schools,EARLY YEARS NURSERY GRANTS,K90042,Supplies & Services           ,Grants and Subscriptions      ,DJ57,Nursery Grant Payment-4yr olds          ,"1,293.60",29/11/2013,R,LITTLE GATES                  
911,Childrens & Education Services,Nursery schools,EARLY YEARS NURSERY GRANTS,K90042,Supplies & Services           ,Grants and Subscriptions      ,DJ57,Nursery Grant Payment-4yr olds          ,"2,721.60",28/11/2013,R,JOLLYTIME PLAYGROUP           
912,Childrens & Education Services,Nursery schools,EARLY YEARS NURSERY GRANTS,K90042,Supplies & Services           ,Grants and Subscriptions      ,DJ57,Nursery Grant Payment-4yr olds          ,680.4,28/11/2013,R,CHERUBS @ NEWMINSTER          
913,Childrens & Education Services,Nursery schools,EARLY YEARS NURSERY GRANTS,K90042,Supplies & Services           ,Grants and Subscriptions      ,DJ58,Nursery Grant Payment-3yr olds          ,525,28/11/2013,R,CAROUSEL DAY NURSERY          
914,Childrens & Education Services,Nursery schools,EARLY YEARS NURSERY GRANTS,K90042,Supplies & Services           ,Grants and Subscriptions      ,DJ58,Nursery Grant Payment-3yr olds          ,525,28/11/2013,R,BOW LANE PRE-SCHOOL           
915,Childrens & Education Services,Nursery schools,EARLY YEARS NURSERY GRANTS,K90042,Supplies & Services           ,Grants and Subscriptions      ,DJ58,Nursery Grant Payment-3yr olds          ,525,28/11/2013,R,KINGSWOOD DAYCARE NURSERY     
916,Childrens & Education Services,Nursery schools,EARLY YEARS NURSERY GRANTS,K90042,Supplies & Services           ,Grants and Subscriptions      ,DJ58,Nursery Grant Payment-3yr olds          ,525,29/11/2013,R,PLAYDAYS DAY NURSERY          
917,Childrens & Education Services,Nursery schools,EARLY YEARS NURSERY GRANTS,K90042,Supplies & Services           ,Grants and Subscriptions      ,DJ58,Nursery Grant Payment-3yr olds          ,525,28/11/2013,R,DICKY BIRDS PRE SCHOOL NURSERY
918,Childrens & Education Services,Nursery schools,EARLY YEARS NURSERY GRANTS,K90042,Supplies & Services           ,Grants and Subscriptions      ,DJ58,Nursery Grant Payment-3yr olds          ,525,29/11/2013,R,MINI TREASURES DAY NURSERY    
919,Childrens & Education Services,Nursery schools,EARLY YEARS NURSERY GRANTS,K90042,Supplies & Services           ,Grants and Subscriptions      ,DJ58,Nursery Grant Payment-3yr olds          ,"1,050.00",29/11/2013,R,DATE VALLEY SCHOOL            
920,Childrens & Education Services,Support for SEN Pupils,ART SEN Residential (DSG),K90050,Third Party Payments          ,Other Establishments          ,EG51,Ind Resid Schs Payments                 ,"18,000.00",23/10/2013,R,CROYDON COUNCIL               
921,Childrens & Education Services,Support for SEN Pupils,ART SEN Residential (DSG),K90050,Third Party Payments          ,Other Establishments          ,EG51,Ind Resid Schs Payments                 ,"3,029.01",23/09/2013,R,KITES CHILDREN'S SERVICES LIMI
922,Childrens & Education Services,Support for SEN Pupils,ART SEN Residential (DSG),K90050,Third Party Payments          ,Other Establishments          ,EG51,Ind Resid Schs Payments                 ,"2,931.30",21/10/2013,R,KITES CHILDREN'S SERVICES LIMI
923,Childrens & Education Services,Support for SEN Pupils,ART SEN Residential (DSG),K90050,Third Party Payments          ,Other Establishments          ,EG51,Ind Resid Schs Payments                 ,"50,437.00",01/08/2013,R,THE LODDON SCHOOL             
924,Childrens & Education Services,Support for SEN Pupils,ART SEN Residential (DSG),K90050,Third Party Payments          ,Other Establishments          ,EG51,Ind Resid Schs Payments                 ,"12,499.84",02/05/2013,R,ST CATHERINE'S SCHOOL         
925,Childrens & Education Services,Nursery schools,2Year Old Offer                         ,K90051,Supplies & Services           ,Grants and Subscriptions      ,DJ01,Grants                                  ,"36,288.00",13/11/2013,R,IVY GARDENS CHILDREN' S CENTRE
926,Childrens & Education Services,Nursery schools,2Year Old Offer                         ,K90051,Supplies & Services           ,Grants and Subscriptions      ,DJ01,Grants                                  ,525,11/11/2013,R,HASLEMERE HOUSE DAY NURSERY   
927,Childrens & Education Services,Nursery schools,2Year Old Offer                         ,K90051,Supplies & Services           ,Grants and Subscriptions      ,DJ01,Grants                                  ,"5,670.00",14/11/2013,R,SACRED HEART FUN CLUB         
928,Childrens & Education Services,Nursery schools,2Year Old Offer                         ,K90051,Supplies & Services           ,Grants and Subscriptions      ,DJ01,Grants                                  ,"22,680.00",13/11/2013,R,ST MARKS PRIMARY SCHOOL       
929,Childrens & Education Services,Nursery schools,2Year Old Offer                         ,K90051,Supplies & Services           ,Grants and Subscriptions      ,DJ01,Grants                                  ,864,15/11/2013,R,ST MARKS PRIMARY SCHOOL       
